{"text_format":"1","workbook":"xlsx","n_sheets":3,"sheets":["Main","Risk Assessment","Action Prioritisation"],"not_rendered":{"charts":0,"images":3,"macros":1,"external_links":0,"defined_names":6,"comments":0,"pivot_tables":0},"unopened":[],"bounds":{"document_bytes":16777216,"sheet_cells":100000,"rows_first":2000,"rows_last":500,"rows_between":2000,"halvings":0,"cell_chars":16384,"cell_head_chars":4096},"cells_cut":0,"cells_raw":0,"read":"whole","date_system":"1900"}

{"sheet":"Main","index":0,"n_rows":29,"n_cols":3,"rows_kept":29,"cut":false,"hidden":false,"merged":[[14,3,14,7],[12,3,12,7],[7,3,7,7],[11,3,11,7],[9,3,9,7],[13,3,13,7],[21,2,22,11],[25,2,26,11],[23,2,24,11],[28,2,28,11],[15,3,15,7]]}
[]
[]
[]
[null,"Climate Change Adaptation Planning Project  Risk Assessment Tool"]
[]
[]
[]
[null,null,"Council"]
[]
[null,null,"Current year"]
[]
[null,null,"Name of participants"]
[]
[]
[]
[]
[]
[]
[]
[null,"Instructions:"]
[null,1,"Work through the Risk Assessment spreadsheet, columns B - P, using the drop down menus wherever available (important)."]
[null,2,"Work through the Risk Assessment spreadsheet, columns Q to AD, for risks that are evaluated as priority, 'High' or 'Extreme', using the drop down menus wherever available."]
[]
[null,3,"Copy proposed actions from the Risk Assessment Spreadsheet into the Action Prioritisation spreadsheet against the corresponding Action Codes."]
[]
[null,4,"Work through the Action Prioritisation spreadsheet using drop down menus wherever available.  The total score will provide a first pass assessment of relative action priority to inform an adaptation strategy."]
[]
[]
[null,null,"Note, full instructions on working through the RCCAP process are provided in the toolkit."]

{"sheet":"Risk Assessment","index":1,"n_rows":755,"n_cols":35,"rows_kept":755,"cut":false,"hidden":false,"merged":[[15,9,19,9],[45,11,49,11],[45,12,49,12],[50,11,54,11],[50,12,54,12],[55,11,59,11],[55,12,59,12],[60,11,64,11],[60,12,64,12],[65,11,69,11],[105,11,109,11],[105,12,109,12],[110,11,114,11],[110,12,114,12],[75,9,79,9],[70,9,74,9],[20,9,24,9],[150,9,154,9],[145,9,149,9],[140,9,144,9],[135,9,139,9],[130,9,134,9],[125,9,129,9],[120,9,124,9],[115,9,119,9],[110,9,114,9],[105,9,109,9],[100,9,104,9],[95,9,99,9],[90,9,94,9],[85,9,89,9],[80,9,84,9],[65,9,69,9],[60,9,64,9],[3,16,3,29],[120,11,124,11],[120,12,124,12],[125,11,129,11],[125,12,129,12],[130,11,134,11],[130,12,134,12],[135,11,139,11],[135,12,139,12],[140,11,144,11],[140,12,144,12],[65,12,69,12],[70,11,74,11],[70,12,74,12],[5,13,9,13],[5,14,9,14],[5,15,9,15],[5,11,9,11],[5,12,9,12],[10,11,14,11],[60,13,64,13],[60,14,64,14],[60,15,64,15],[80,13,84,13],[80,14,84,14],[80,15,84,15],[100,13,104,13],[100,14,104,14],[100,15,104,15],[120,13,124,13],[120,14,124,14],[120,15,124,15],[160,11,164,11],[160,12,164,12],[75,11,79,11],[75,12,79,12],[80,11,84,11],[80,12,84,12],[85,11,89,11],[85,12,89,12],[90,11,94,11],[90,12,94,12],[95,11,99,11],[95,12,99,12],[100,11,104,11],[100,12,104,12],[145,11,149,11],[145,12,149,12],[150,11,154,11],[150,12,154,12],[155,11,159,11],[155,12,159,12],[115,11,119,11],[115,12,119,12],[5,1,9,1],[5,7,9,7],[5,8,9,8],[5,10,9,10],[5,9,9,9],[30,2,34,2],[35,2,39,2],[40,2,44,2],[45,2,49,2],[50,2,54,2],[10,3,14,3],[10,2,14,2],[15,2,19,2],[20,2,24,2],[25,2,29,2],[15,3,19,3],[20,3,24,3],[25,3,29,3],[30,7,34,7],[30,8,34,8],[30,10,34,10],[5,6,9,6],[5,2,9,2],[5,3,9,3],[5,5,9,5],[25,9,29,9],[30,9,34,9],[35,9,39,9],[40,9,44,9],[45,9,49,9],[50,9,54,9],[10,9,14,9],[30,3,34,3],[35,3,39,3],[40,3,44,3],[45,3,49,3],[50,3,54,3],[20,13,24,13],[20,14,24,14],[20,15,24,15],[25,5,29,5],[25,7,29,7],[25,8,29,8],[25,10,29,10],[25,6,29,6],[20,11,24,11],[20,12,24,12],[25,11,29,11],[25,12,29,12],[40,13,44,13],[40,14,44,14],[40,15,44,15],[45,5,49,5],[45,7,49,7],[45,8,49,8],[45,10,49,10],[45,6,49,6],[45,13,49,13],[45,14,49,14],[45,15,49,15],[40,5,44,5],[40,7,44,7],[40,8,44,8],[40,10,44,10],[130,2,134,2],[135,2,139,2],[140,2,144,2],[145,2,149,2],[150,2,154,2],[105,2,109,2],[110,2,114,2],[115,2,119,2],[120,2,124,2],[125,2,129,2],[80,2,84,2],[85,2,89,2],[90,2,94,2],[95,2,99,2],[100,2,104,2],[55,2,59,2],[60,2,64,2],[65,2,69,2],[70,2,74,2],[75,2,79,2],[130,1,134,1],[135,1,139,1],[140,1,144,1],[145,1,149,1],[150,1,154,1],[105,1,109,1],[110,1,114,1],[115,1,119,1],[120,1,124,1],[125,1,129,1],[80,1,84,1],[85,1,89,1],[90,1,94,1],[95,1,99,1],[100,1,104,1],[10,1,14,1],[15,1,19,1],[20,1,24,1],[25,1,29,1],[30,1,34,1],[35,1,39,1],[40,1,44,1],[45,1,49,1],[50,1,54,1],[55,1,59,1],[60,1,64,1],[65,1,69,1],[70,1,74,1],[75,1,79,1],[105,0,109,0],[110,0,114,0],[115,0,119,0],[120,0,124,0],[125,0,129,0],[80,0,84,0],[85,0,89,0],[90,0,94,0],[95,0,99,0],[100,0,104,0],[55,0,59,0],[60,0,64,0],[65,0,69,0],[70,0,74,0],[75,0,79,0],[5,0,9,0],[10,0,14,0],[15,0,19,0],[20,0,24,0],[25,0,29,0],[30,0,34,0],[35,0,39,0],[40,0,44,0],[45,0,49,0],[50,0,54,0],[135,3,139,3],[140,3,144,3],[145,3,149,3],[150,3,154,3],[105,3,109,3],[110,3,114,3],[115,3,119,3],[120,3,124,3],[125,3,129,3],[80,3,84,3],[85,3,89,3],[90,3,94,3],[95,3,99,3],[100,3,104,3],[55,3,59,3],[60,3,64,3],[65,3,69,3],[70,3,74,3],[75,3,79,3],[130,3,134,3],[130,0,134,0],[135,0,139,0],[140,0,144,0],[145,0,149,0],[150,0,154,0],[25,13,29,13],[25,14,29,14],[25,15,29,15],[20,5,24,5],[20,7,24,7],[20,8,24,8],[20,10,24,10],[20,6,24,6],[10,13,14,13],[10,14,14,14],[10,15,14,15],[15,5,19,5],[15,7,19,7],[15,8,19,8],[15,10,19,10],[15,6,19,6],[15,13,19,13],[15,14,19,14],[15,15,19,15],[10,5,14,5],[10,7,14,7],[10,8,14,8],[10,10,14,10],[10,6,14,6],[10,12,14,12],[15,11,19,11],[15,12,19,12],[40,6,44,6],[30,13,34,13],[30,14,34,14],[30,15,34,15],[35,5,39,5],[35,7,39,7],[35,8,39,8],[35,10,39,10],[35,6,39,6],[35,13,39,13],[35,14,39,14],[35,15,39,15],[30,5,34,5],[30,6,34,6],[30,11,34,11],[30,12,34,12],[35,11,39,11],[35,12,39,12],[40,11,44,11],[40,12,44,12],[65,5,69,5],[65,7,69,7],[65,8,69,8],[65,10,69,10],[65,6,69,6],[65,13,69,13],[65,14,69,14],[65,15,69,15],[60,5,64,5],[60,7,64,7],[60,8,64,8],[60,10,64,10],[60,6,64,6],[50,13,54,13],[50,14,54,14],[50,15,54,15],[55,5,59,5],[55,7,59,7],[55,8,59,8],[55,10,59,10],[55,6,59,6],[55,13,59,13],[55,14,59,14],[55,15,59,15],[50,5,54,5],[50,7,54,7],[50,8,54,8],[50,10,54,10],[50,6,54,6],[55,9,59,9],[85,5,89,5],[85,7,89,7],[85,8,89,8],[85,10,89,10],[85,6,89,6],[85,13,89,13],[85,14,89,14],[85,15,89,15],[80,5,84,5],[80,7,84,7],[80,8,84,8],[80,10,84,10],[80,6,84,6],[70,13,74,13],[70,14,74,14],[70,15,74,15],[75,5,79,5],[75,7,79,7],[75,8,79,8],[75,10,79,10],[75,6,79,6],[75,13,79,13],[75,14,79,14],[75,15,79,15],[70,5,74,5],[70,7,74,7],[70,8,74,8],[70,10,74,10],[70,6,74,6],[105,5,109,5],[105,7,109,7],[105,8,109,8],[105,10,109,10],[105,6,109,6],[105,13,109,13],[105,14,109,14],[105,15,109,15],[100,5,104,5],[100,7,104,7],[100,8,104,8],[100,10,104,10],[100,6,104,6],[90,13,94,13],[90,14,94,14],[90,15,94,15],[95,5,99,5],[95,7,99,7],[95,8,99,8],[95,10,99,10],[95,6,99,6],[95,13,99,13],[95,14,99,14],[95,15,99,15],[90,5,94,5],[90,7,94,7],[90,8,94,8],[90,10,94,10],[90,6,94,6],[125,5,129,5],[125,7,129,7],[125,8,129,8],[125,10,129,10],[125,6,129,6],[125,13,129,13],[125,14,129,14],[125,15,129,15],[120,5,124,5],[120,7,124,7],[120,8,124,8],[120,10,124,10],[120,6,124,6],[110,13,114,13],[110,14,114,14],[110,15,114,15],[115,5,119,5],[115,7,119,7],[115,8,119,8],[115,10,119,10],[115,6,119,6],[115,13,119,13],[115,14,119,14],[115,15,119,15],[110,5,114,5],[110,7,114,7],[110,8,114,8],[110,10,114,10],[110,6,114,6],[140,13,144,13],[140,14,144,14],[140,15,144,15],[145,5,149,5],[145,7,149,7],[145,8,149,8],[145,10,149,10],[145,6,149,6],[145,13,149,13],[145,14,149,14],[145,15,149,15],[140,5,144,5],[140,7,144,7],[140,8,144,8],[140,10,144,10],[140,6,144,6],[130,13,134,13],[130,14,134,14],[130,15,134,15],[135,5,139,5],[135,7,139,7],[135,8,139,8],[135,10,139,10],[135,6,139,6],[135,13,139,13],[135,14,139,14],[135,15,139,15],[130,5,134,5],[130,7,134,7],[130,8,134,8],[130,10,134,10],[130,6,134,6],[160,6,164,6],[160,13,164,13],[160,14,164,14],[160,15,164,15],[160,1,164,1],[160,3,164,3],[160,5,164,5],[160,7,164,7],[160,8,164,8],[150,13,154,13],[150,14,154,14],[150,15,154,15],[155,1,159,1],[155,3,159,3],[155,5,159,5],[155,7,159,7],[155,8,159,8],[155,10,159,10],[155,6,159,6],[155,13,159,13],[155,14,159,14],[155,15,159,15],[150,5,154,5],[150,7,154,7],[150,8,154,8],[150,10,154,10],[150,6,154,6],[155,2,159,2],[160,2,164,2],[155,9,159,9],[160,9,164,9],[160,10,164,10],[165,15,169,15],[170,1,174,1],[170,2,174,2],[170,3,174,3],[170,5,174,5],[170,7,174,7],[170,8,174,8],[170,10,174,10],[170,6,174,6],[170,13,174,13],[170,14,174,14],[170,15,174,15],[165,8,169,8],[165,10,169,10],[165,6,169,6],[165,13,169,13],[165,14,169,14],[165,1,169,1],[165,2,169,2],[165,3,169,3],[165,5,169,5],[165,7,169,7],[165,11,169,11],[165,12,169,12],[170,11,174,11],[170,12,174,12],[165,9,169,9],[170,9,174,9],[175,15,179,15],[180,1,184,1],[180,2,184,2],[180,3,184,3],[180,5,184,5],[180,7,184,7],[180,8,184,8],[180,10,184,10],[180,6,184,6],[180,13,184,13],[180,14,184,14],[180,15,184,15],[175,8,179,8],[175,10,179,10],[175,6,179,6],[175,13,179,13],[175,14,179,14],[175,1,179,1],[175,2,179,2],[175,3,179,3],[175,5,179,5],[175,7,179,7],[175,11,179,11],[175,12,179,12],[180,11,184,11],[180,12,184,12],[175,9,179,9],[180,9,184,9],[185,15,189,15],[190,1,194,1],[190,2,194,2],[190,3,194,3],[190,5,194,5],[190,7,194,7],[190,8,194,8],[190,10,194,10],[190,6,194,6],[190,13,194,13],[190,14,194,14],[190,15,194,15],[185,8,189,8],[185,10,189,10],[185,6,189,6],[185,13,189,13],[185,14,189,14],[185,1,189,1],[185,2,189,2],[185,3,189,3],[185,5,189,5],[185,7,189,7],[190,11,194,11],[190,12,194,12],[185,11,189,11],[185,12,189,12],[185,9,189,9],[190,9,194,9],[195,15,199,15],[200,1,204,1],[200,2,204,2],[200,3,204,3],[200,5,204,5],[200,7,204,7],[200,8,204,8],[200,10,204,10],[200,6,204,6],[200,13,204,13],[200,14,204,14],[200,15,204,15],[195,8,199,8],[195,10,199,10],[195,6,199,6],[195,13,199,13],[195,14,199,14],[195,1,199,1],[195,2,199,2],[195,3,199,3],[195,5,199,5],[195,7,199,7],[195,11,199,11],[195,12,199,12],[200,11,204,11],[200,12,204,12],[195,9,199,9],[200,9,204,9],[205,15,209,15],[210,1,214,1],[210,2,214,2],[210,3,214,3],[210,5,214,5],[210,7,214,7],[210,8,214,8],[210,10,214,10],[210,6,214,6],[210,13,214,13],[210,14,214,14],[210,15,214,15],[205,8,209,8],[205,10,209,10],[205,6,209,6],[205,13,209,13],[205,14,209,14],[205,1,209,1],[205,2,209,2],[205,3,209,3],[205,5,209,5],[205,7,209,7],[205,11,209,11],[205,12,209,12],[210,11,214,11],[210,12,214,12],[210,9,214,9],[205,9,209,9],[215,15,219,15],[220,1,224,1],[220,2,224,2],[220,3,224,3],[220,5,224,5],[220,7,224,7],[220,8,224,8],[220,10,224,10],[220,6,224,6],[220,13,224,13],[220,14,224,14],[220,15,224,15],[215,8,219,8],[215,10,219,10],[215,6,219,6],[215,13,219,13],[215,14,219,14],[215,1,219,1],[215,2,219,2],[215,3,219,3],[215,5,219,5],[215,7,219,7],[215,11,219,11],[215,12,219,12],[220,11,224,11],[220,12,224,12],[215,9,219,9],[220,9,224,9],[225,15,229,15],[230,1,234,1],[230,2,234,2],[230,3,234,3],[230,5,234,5],[230,7,234,7],[230,8,234,8],[230,10,234,10],[230,6,234,6],[230,13,234,13],[230,14,234,14],[230,15,234,15],[225,8,229,8],[225,10,229,10],[225,6,229,6],[225,13,229,13],[225,14,229,14],[225,1,229,1],[225,2,229,2],[225,3,229,3],[225,5,229,5],[225,7,229,7],[225,9,229,9],[230,9,234,9],[225,11,229,11],[225,12,229,12],[230,11,234,11],[230,12,234,12],[235,15,239,15],[240,1,244,1],[240,2,244,2],[240,3,244,3],[240,5,244,5],[240,7,244,7],[240,8,244,8],[240,10,244,10],[240,6,244,6],[240,13,244,13],[240,14,244,14],[240,15,244,15],[235,8,239,8],[235,10,239,10],[235,6,239,6],[235,13,239,13],[235,14,239,14],[235,1,239,1],[235,2,239,2],[235,3,239,3],[235,5,239,5],[235,7,239,7],[235,9,239,9],[240,9,244,9],[235,11,239,11],[235,12,239,12],[240,11,244,11],[240,12,244,12],[245,15,249,15],[250,1,254,1],[250,2,254,2],[250,3,254,3],[250,5,254,5],[250,7,254,7],[250,8,254,8],[250,10,254,10],[250,6,254,6],[250,13,254,13],[250,14,254,14],[250,15,254,15],[245,8,249,8],[245,10,249,10],[245,6,249,6],[245,13,249,13],[245,14,249,14],[245,1,249,1],[245,2,249,2],[245,3,249,3],[245,5,249,5],[245,7,249,7],[245,9,249,9],[250,9,254,9],[245,11,249,11],[245,12,249,12],[250,11,254,11],[250,12,254,12],[255,15,259,15],[260,1,264,1],[260,2,264,2],[260,3,264,3],[260,5,264,5],[260,7,264,7],[260,8,264,8],[260,10,264,10],[260,6,264,6],[260,13,264,13],[260,14,264,14],[260,15,264,15],[255,8,259,8],[255,10,259,10],[255,6,259,6],[255,13,259,13],[255,14,259,14],[255,1,259,1],[255,2,259,2],[255,3,259,3],[255,5,259,5],[255,7,259,7],[255,9,259,9],[260,9,264,9],[255,11,259,11],[255,12,259,12],[260,11,264,11],[260,12,264,12],[265,15,269,15],[270,1,274,1],[270,2,274,2],[270,3,274,3],[270,5,274,5],[270,7,274,7],[270,8,274,8],[270,10,274,10],[270,6,274,6],[270,13,274,13],[270,14,274,14],[270,15,274,15],[265,8,269,8],[265,10,269,10],[265,6,269,6],[265,13,269,13],[265,14,269,14],[265,1,269,1],[265,2,269,2],[265,3,269,3],[265,5,269,5],[265,7,269,7],[265,9,269,9],[270,9,274,9],[265,11,269,11],[265,12,269,12],[270,11,274,11],[270,12,274,12],[275,15,279,15],[280,1,284,1],[280,2,284,2],[280,3,284,3],[280,5,284,5],[280,7,284,7],[280,8,284,8],[280,10,284,10],[280,6,284,6],[280,13,284,13],[280,14,284,14],[280,15,284,15],[275,8,279,8],[275,10,279,10],[275,6,279,6],[275,13,279,13],[275,14,279,14],[275,1,279,1],[275,2,279,2],[275,3,279,3],[275,5,279,5],[275,7,279,7],[275,9,279,9],[280,9,284,9],[275,11,279,11],[275,12,279,12],[280,11,284,11],[280,12,284,12],[285,15,289,15],[290,1,294,1],[290,2,294,2],[290,3,294,3],[290,5,294,5],[290,7,294,7],[290,8,294,8],[290,10,294,10],[290,6,294,6],[290,13,294,13],[290,14,294,14],[290,15,294,15],[285,8,289,8],[285,10,289,10],[285,6,289,6],[285,13,289,13],[285,14,289,14],[285,1,289,1],[285,2,289,2],[285,3,289,3],[285,5,289,5],[285,7,289,7],[285,9,289,9],[290,9,294,9],[285,11,289,11],[285,12,289,12],[290,11,294,11],[290,12,294,12],[295,15,299,15],[300,1,304,1],[300,2,304,2],[300,3,304,3],[300,5,304,5],[300,7,304,7],[300,8,304,8],[300,10,304,10],[300,6,304,6],[300,13,304,13],[300,14,304,14],[300,15,304,15],[295,8,299,8],[295,10,299,10],[295,6,299,6],[295,13,299,13],[295,14,299,14],[295,1,299,1],[295,2,299,2],[295,3,299,3],[295,5,299,5],[295,7,299,7],[295,9,299,9],[300,9,304,9],[295,11,299,11],[295,12,299,12],[300,11,304,11],[300,12,304,12],[305,15,309,15],[310,1,314,1],[310,2,314,2],[310,3,314,3],[310,5,314,5],[310,7,314,7],[310,8,314,8],[310,10,314,10],[310,6,314,6],[310,13,314,13],[310,14,314,14],[310,15,314,15],[305,8,309,8],[305,10,309,10],[305,6,309,6],[305,13,309,13],[305,14,309,14],[305,1,309,1],[305,2,309,2],[305,3,309,3],[305,5,309,5],[305,7,309,7],[305,9,309,9],[310,9,314,9],[305,11,309,11],[305,12,309,12],[310,11,314,11],[310,12,314,12],[315,15,319,15],[320,1,324,1],[320,2,324,2],[320,3,324,3],[320,5,324,5],[320,7,324,7],[320,8,324,8],[320,10,324,10],[320,6,324,6],[320,13,324,13],[320,14,324,14],[320,15,324,15],[315,8,319,8],[315,10,319,10],[315,6,319,6],[315,13,319,13],[315,14,319,14],[315,1,319,1],[315,2,319,2],[315,3,319,3],[315,5,319,5],[315,7,319,7],[315,9,319,9],[320,9,324,9],[315,11,319,11],[315,12,319,12],[320,11,324,11],[320,12,324,12],[325,15,329,15],[330,1,334,1],[330,2,334,2],[330,3,334,3],[330,5,334,5],[330,7,334,7],[330,8,334,8],[330,10,334,10],[330,6,334,6],[330,13,334,13],[330,14,334,14],[330,15,334,15],[325,8,329,8],[325,10,329,10],[325,6,329,6],[325,13,329,13],[325,14,329,14],[325,1,329,1],[325,2,329,2],[325,3,329,3],[325,5,329,5],[325,7,329,7],[325,9,329,9],[330,9,334,9],[325,11,329,11],[325,12,329,12],[330,11,334,11],[330,12,334,12],[335,15,339,15],[340,1,344,1],[340,2,344,2],[340,3,344,3],[340,5,344,5],[340,7,344,7],[340,8,344,8],[340,10,344,10],[340,6,344,6],[340,13,344,13],[340,14,344,14],[340,15,344,15],[335,8,339,8],[335,10,339,10],[335,6,339,6],[335,13,339,13],[335,14,339,14],[335,1,339,1],[335,2,339,2],[335,3,339,3],[335,5,339,5],[335,7,339,7],[335,9,339,9],[340,9,344,9],[335,11,339,11],[335,12,339,12],[340,11,344,11],[340,12,344,12],[345,15,349,15],[350,1,354,1],[350,2,354,2],[350,3,354,3],[350,5,354,5],[350,7,354,7],[350,8,354,8],[350,10,354,10],[350,6,354,6],[350,13,354,13],[350,14,354,14],[350,15,354,15],[345,8,349,8],[345,10,349,10],[345,6,349,6],[345,13,349,13],[345,14,349,14]],"merged_total":2132,"flags":["merged_cut"]}
[]
[null,"Climate Change Adaptation Planning Project - Risk Assessment"]
[]
[null,"Risk Identification and Evaluation",null,null,null,null,null,null,null,null,null,null,null,null,null,null,"Formulate Actions and Re-evaluate Risk"]
[null,"Risk Code",null,null,null,"Climate Impact","Success Criteria (Outcome)","Risk Statement                        (Impact + Hazard + Outcome)","Likelihood",null," Consequence",null,null,"Level of Risk","External Stakeholders ","Comments","Action Number","Proposed adaptation action(s)","Treated Likelihood",null,"Treated Consequence",null,null,"Residual Risk","Responsible Business Unit","Relevant Council Document","Timeframe for Implementation","Risk Codes for Other Risks Treated","Could this action be implemented at the regional level?","Comments"]
[null,"R-1",{"$f":"IF(F6=\"Sea level rise and storm surge\",\"SL\",IF(F6=\"Increased flooding\",\"FL\",IF(F6=\"Increased rainfall variability\",\"RV\",IF(F6=\"Increased average temperature\",\"AT\",IF(F6=\"Increase in hot days\",\"HD\",IF(F6=\"Increased fire risk\",\"FR\",IF(F6=\"Increased atmospheric CO2\",\"AC\",\"\")))))))","v":""},1,null,null,null,null,null,{"$f":"IF(I6=\"Almost Certain\",5,IF(I6=\"likely\",4,IF(I6=\"Possible\",3,IF(I6=\"Unlikely\",2,IF(I6=\"rare\",1,\"\")))))","v":""},null,{"$f":"IF(K6=\"Catastrophic\",5,IF(K6=\"Major\",4,IF(K6=\"Moderate\",3,IF(K6=\"Minor\",2,IF(K6=\"Insignificant\",1,\"\")))))","v":""},{"$f":"IF(L6=\"\",\"\",L6+J6)","v":""},{"$f":"IF(M6=\"\",\"\",IF(M6<5,\"Low\",IF(AND(M6>4,M6<7),\"Moderate\",IF(M6=7,\"High\",IF(M6>7,\"Extreme\",)))))","v":""},null,null,"A-1",null,null,{"$f":"IF(S6=\"Almost Certain\",5,IF(S6=\"likely\",4,IF(S6=\"Possible\",3,IF(S6=\"Unlikely\",2,IF(S6=\"rare\",1,\"\")))))","v":""},null,{"$f":"IF(U6=\"Catastrophic\",5,IF(U6=\"Major\",4,IF(U6=\"Moderate\",3,IF(U6=\"Minor\",2,IF(U6=\"Insignificant\",1,\"\")))))","v":""},{"$f":"IF(V6=\"\",\"\",V6+T6)","v":""},{"$f":"IF(W6=\"\",\"\",IF(W6<5,\"Low\",IF(AND(W6>4,W6<7),\"Moderate\",IF(W6=7,\"High\",IF(W6>7,\"Extreme\",)))))","v":""},null,null,null,null,null,null,null,null,null,null,"Yes"]
[null,null,null,null,null,null,null,null,null,null,null,null,null,null,null,null,"A-2",null,null,{"$f":"IF(S7=\"Almost Certain\",5,IF(S7=\"likely\",4,IF(S7=\"Possible\",3,IF(S7=\"Unlikely\",2,IF(S7=\"rare\",1,\"\")))))","v":""},null,{"$f":"IF(U7=\"Catastrophic\",5,IF(U7=\"Major\",4,IF(U7=\"Moderate\",3,IF(U7=\"Minor\",2,IF(U7=\"Insignificant\",1,\"\")))))","v":""},{"$f":"IF(V7=\"\",\"\",V7+T7)","v":""},{"$f":"IF(W7=\"\",\"\",IF(W7<5,\"Low\",IF(AND(W7>4,W7<7),\"Moderate\",IF(W7=7,\"High\",IF(W7>7,\"Extreme\",)))))","v":""},null,null,null,null,null,null,null,null,null,null,"No"]
[null,null,null,null,null,null,null,null,null,null,null,null,null,null,null,null,"A-3",null,null,"",null,{"$f":"IF(U8=\"Catastrophic\",5,IF(U8=\"Major\",4,IF(U8=\"Moderate\",3,IF(U8=\"Minor\",2,IF(U8=\"Insignificant\",1,\"\")))))","v":""},{"$f":"IF(V8=\"\",\"\",V8+T8)","v":""},{"$f":"IF(W8=\"\",\"\",IF(W8<5,\"Low\",IF(AND(W8>4,W8<7),\"Moderate\",IF(W8=7,\"High\",IF(W8>7,\"Extreme\",)))))","v":""}]
[null,null,null,null,null,null,null,null,null,null,null,null,null,null,null,null,"A-4",null,null,"",null,"","",""]
[null,null,null,null,null,null,null,null,null,null,null,null,null,null,null,null,"A-5",null,null,"",null,"","",""]
[null,"R-2",{"$f":"IF(F11=\"Sea level rise and storm surge\",\"SL\",IF(F11=\"Increased flooding\",\"FL\",IF(F11=\"Increased rainfall variability\",\"RV\",IF(F11=\"Increased average temperature\",\"AT\",IF(F11=\"Increase in hot days\",\"HD\",IF(F11=\"Increased fire risk\",\"FR\",IF(F11=\"Increased atmospheric CO2\",\"AC\",\"\")))))))","v":""},2,null,null,null,null,null,{"$f":"IF(I11=\"Almost Certain\",5,IF(I11=\"likely\",4,IF(I11=\"Possible\",3,IF(I11=\"Unlikely\",2,IF(I11=\"rare\",1,\"\")))))","v":""},null,{"$f":"IF(K11=\"Catastrophic\",5,IF(K11=\"Major\",4,IF(K11=\"Moderate\",3,IF(K11=\"Minor\",2,IF(K11=\"Insignificant\",1,\"\")))))","v":""},{"$f":"IF(L11=\"\",\"\",L11+J11)","v":""},{"$f":"IF(M11=\"\",\"\",IF(M11<5,\"Low\",IF(AND(M11>4,M11<7),\"Moderate\",IF(M11=7,\"High\",IF(M11>7,\"Extreme\",)))))","v":""},null,null,"A-6",null,null,"",null,"","",""]
[null,null,null,null,null,null,null,null,null,null,null,null,null,null,null,null,"A-7",null,null,"",null,"","",""]
[null,null,null,null,null,null,null,null,null,null,null,null,null,null,null,null,"A-8",null,null,"",null,"","",""]
[null,null,null,null,null,null,null,null,null,null,null,null,null,null,null,null,"A-9",null,null,"",null,"","",""]
[null,null,null,null,null,null,null,null,null,null,null,null,null,null,null,null,"A-10",null,null,"",null,"","",""]
[null,"R-3",{"$f":"IF(F16=\"Sea level rise and storm surge\",\"SL\",IF(F16=\"Increased flooding\",\"FL\",IF(F16=\"Increased rainfall variability\",\"RV\",IF(F16=\"Increased average temperature\",\"AT\",IF(F16=\"Increase in hot days\",\"HD\",IF(F16=\"Increased fire risk\",\"FR\",IF(F16=\"Increased atmospheric CO2\",\"AC\",\"\")))))))","v":""},3,null,null,null,null,null,{"$f":"IF(I16=\"Almost Certain\",5,IF(I16=\"likely\",4,IF(I16=\"Possible\",3,IF(I16=\"Unlikely\",2,IF(I16=\"rare\",1,\"\")))))","v":""},null,{"$f":"IF(K16=\"Catastrophic\",5,IF(K16=\"Major\",4,IF(K16=\"Moderate\",3,IF(K16=\"Minor\",2,IF(K16=\"Insignificant\",1,\"\")))))","v":""},{"$f":"IF(L16=\"\",\"\",L16+J16)","v":""},{"$f":"IF(M16=\"\",\"\",IF(M16<5,\"Low\",IF(AND(M16>4,M16<7),\"Moderate\",IF(M16=7,\"High\",IF(M16>7,\"Extreme\",)))))","v":""},null,null,"A-11",null,null,"",null,"","",""]
[null,null,null,null,null,null,null,null,null,null,null,null,null,null,null,null,"A-12",null,null,"",null,"","",""]
[null,null,null,null,null,null,null,null,null,null,null,null,null,null,null,null,"A-13",null,null,"",null,"","",""]
[null,null,null,null,null,null,null,null,null,null,null,null,null,null,null,null,"A-14",null,null,"",null,"","",""]
[null,null,null,null,null,null,null,null,null,null,null,null,null,null,null,null,"A-15",null,null,"",null,"","",""]
[null,"R-4",{"$f":"IF(F21=\"Sea level rise and storm surge\",\"SL\",IF(F21=\"Increased flooding\",\"FL\",IF(F21=\"Increased rainfall variability\",\"RV\",IF(F21=\"Increased average temperature\",\"AT\",IF(F21=\"Increase in hot days\",\"HD\",IF(F21=\"Increased fire risk\",\"FR\",IF(F21=\"Increased atmospheric CO2\",\"AC\",\"\")))))))","v":""},4,null,null,null,null,null,{"$f":"IF(I21=\"Almost Certain\",5,IF(I21=\"likely\",4,IF(I21=\"Possible\",3,IF(I21=\"Unlikely\",2,IF(I21=\"rare\",1,\"\")))))","v":""},null,{"$f":"IF(K21=\"Catastrophic\",5,IF(K21=\"Major\",4,IF(K21=\"Moderate\",3,IF(K21=\"Minor\",2,IF(K21=\"Insignificant\",1,\"\")))))","v":""},{"$f":"IF(L21=\"\",\"\",L21+J21)","v":""},{"$f":"IF(M21=\"\",\"\",IF(M21<5,\"Low\",IF(AND(M21>4,M21<7),\"Moderate\",IF(M21=7,\"High\",IF(M21>7,\"Extreme\",)))))","v":""},null,null,"A-16",null,null,"",null,"","",""]
[null,null,null,null,null,null,null,null,null,null,null,null,null,null,null,null,"A-17",null,null,"",null,"","",""]
[null,null,null,null,null,null,null,null,null,null,null,null,null,null,null,null,"A-18",null,null,{"$f":"IF(S23=\"Almost Certain\",5,IF(S23=\"likely\",4,IF(S23=\"Possible\",3,IF(S23=\"Unlikely\",2,IF(S23=\"rare\",1,\"\")))))","v":""},null,"","",""]
[null,null,null,null,null,null,null,null,null,null,null,null,null,null,null,null,"A-19",null,null,"",null,"","",""]
[null,null,null,null,null,null,null,null,null,null,null,null,null,null,null,null,"A-20",null,null,"",null,"","",""]
[null,"R-5",{"$f":"IF(F26=\"Sea level rise and storm surge\",\"SL\",IF(F26=\"Increased flooding\",\"FL\",IF(F26=\"Increased rainfall variability\",\"RV\",IF(F26=\"Increased average temperature\",\"AT\",IF(F26=\"Increase in hot days\",\"HD\",IF(F26=\"Increased fire risk\",\"FR\",IF(F26=\"Increased atmospheric CO2\",\"AC\",\"\")))))))","v":""},5,null,null,null,null,null,{"$f":"IF(I26=\"Almost Certain\",5,IF(I26=\"likely\",4,IF(I26=\"Possible\",3,IF(I26=\"Unlikely\",2,IF(I26=\"rare\",1,\"\")))))","v":""},null,{"$f":"IF(K26=\"Catastrophic\",5,IF(K26=\"Major\",4,IF(K26=\"Moderate\",3,IF(K26=\"Minor\",2,IF(K26=\"Insignificant\",1,\"\")))))","v":""},{"$f":"IF(L26=\"\",\"\",L26+J26)","v":""},{"$f":"IF(M26=\"\",\"\",IF(M26<5,\"Low\",IF(AND(M26>4,M26<7),\"Moderate\",IF(M26=7,\"High\",IF(M26>7,\"Extreme\",)))))","v":""},null,null,"A-21",null,null,"",null,"","",""]
[null,null,null,null,null,null,null,null,null,null,null,null,null,null,null,null,"A-22",null,null,"",null,"","",""]
[null,null,null,null,null,null,null,null,null,null,null,null,null,null,null,null,"A-23",null,null,"",null,"","",""]
[null,null,null,null,null,null,null,null,null,null,null,null,null,null,null,null,"A-24",null,null,"",null,"","",""]
[null,null,null,null,null,null,null,null,null,null,null,null,null,null,null,null,"A-25",null,null,"",null,"","",""]
[null,"R-6",{"$f":"IF(F31=\"Sea level rise and storm surge\",\"SL\",IF(F31=\"Increased flooding\",\"FL\",IF(F31=\"Increased rainfall variability\",\"RV\",IF(F31=\"Increased average temperature\",\"AT\",IF(F31=\"Increase in hot days\",\"HD\",IF(F31=\"Increased fire risk\",\"FR\",IF(F31=\"Increased atmospheric CO2\",\"AC\",\"\")))))))","v":""},6,null,null,null,null,null,{"$f":"IF(I31=\"Almost Certain\",5,IF(I31=\"likely\",4,IF(I31=\"Possible\",3,IF(I31=\"Unlikely\",2,IF(I31=\"rare\",1,\"\")))))","v":""},null,{"$f":"IF(K31=\"Catastrophic\",5,IF(K31=\"Major\",4,IF(K31=\"Moderate\",3,IF(K31=\"Minor\",2,IF(K31=\"Insignificant\",1,\"\")))))","v":""},{"$f":"IF(L31=\"\",\"\",L31+J31)","v":""},{"$f":"IF(M31=\"\",\"\",IF(M31<5,\"Low\",IF(AND(M31>4,M31<7),\"Moderate\",IF(M31=7,\"High\",IF(M31>7,\"Extreme\",)))))","v":""},null,null,"A-26",null,null,"",null,"","",""]
[null,null,null,null,null,null,null,null,null,null,null,null,null,null,null,null,"A-27",null,null,"",null,"","",""]
[null,null,null,null,null,null,null,null,null,null,null,null,null,null,null,null,"A-28",null,null,"",null,"","",""]
[null,null,null,null,null,null,null,null,null,null,null,null,null,null,null,null,"A-29",null,null,"",null,"","",""]
[null,null,null,null,null,null,null,null,null,null,null,null,null,null,null,null,"A-30",null,null,"",null,"","",""]
[null,"R-7",{"$f":"IF(F36=\"Sea level rise and storm surge\",\"SL\",IF(F36=\"Increased flooding\",\"FL\",IF(F36=\"Increased rainfall variability\",\"RV\",IF(F36=\"Increased average temperature\",\"AT\",IF(F36=\"Increase in hot days\",\"HD\",IF(F36=\"Increased fire risk\",\"FR\",IF(F36=\"Increased atmospheric CO2\",\"AC\",\"\")))))))","v":""},7,null,null,null,null,null,{"$f":"IF(I36=\"Almost Certain\",5,IF(I36=\"likely\",4,IF(I36=\"Possible\",3,IF(I36=\"Unlikely\",2,IF(I36=\"rare\",1,\"\")))))","v":""},null,{"$f":"IF(K36=\"Catastrophic\",5,IF(K36=\"Major\",4,IF(K36=\"Moderate\",3,IF(K36=\"Minor\",2,IF(K36=\"Insignificant\",1,\"\")))))","v":""},{"$f":"IF(L36=\"\",\"\",L36+J36)","v":""},{"$f":"IF(M36=\"\",\"\",IF(M36<5,\"Low\",IF(AND(M36>4,M36<7),\"Moderate\",IF(M36=7,\"High\",IF(M36>7,\"Extreme\",)))))","v":""},null,null,"A-31",null,null,"",null,"","",""]
[null,null,null,null,null,null,null,null,null,null,null,null,null,null,null,null,"A-32",null,null,"",null,"","",""]
[null,null,null,null,null,null,null,null,null,null,null,null,null,null,null,null,"A-33",null,null,"",null,"","",""]
[null,null,null,null,null,null,null,null,null,null,null,null,null,null,null,null,"A-34",null,null,"",null,"","",""]
[null,null,null,null,null,null,null,null,null,null,null,null,null,null,null,null,"A-35",null,null,"",null,"","",""]
[null,"R-8",{"$f":"IF(F41=\"Sea level rise and storm surge\",\"SL\",IF(F41=\"Increased flooding\",\"FL\",IF(F41=\"Increased rainfall variability\",\"RV\",IF(F41=\"Increased average temperature\",\"AT\",IF(F41=\"Increase in hot days\",\"HD\",IF(F41=\"Increased fire risk\",\"FR\",IF(F41=\"Increased atmospheric CO2\",\"AC\",\"\")))))))","v":""},8,null,null,null,null,null,{"$f":"IF(I41=\"Almost Certain\",5,IF(I41=\"likely\",4,IF(I41=\"Possible\",3,IF(I41=\"Unlikely\",2,IF(I41=\"rare\",1,\"\")))))","v":""},null,{"$f":"IF(K41=\"Catastrophic\",5,IF(K41=\"Major\",4,IF(K41=\"Moderate\",3,IF(K41=\"Minor\",2,IF(K41=\"Insignificant\",1,\"\")))))","v":""},{"$f":"IF(L41=\"\",\"\",L41+J41)","v":""},{"$f":"IF(M41=\"\",\"\",IF(M41<5,\"Low\",IF(AND(M41>4,M41<7),\"Moderate\",IF(M41=7,\"High\",IF(M41>7,\"Extreme\",)))))","v":""},null,null,"A-36",null,null,"",null,"","",""]
[null,null,null,null,null,null,null,null,null,null,null,null,null,null,null,null,"A-37",null,null,"",null,"","",""]
[null,null,null,null,null,null,null,null,null,null,null,null,null,null,null,null,"A-38",null,null,"",null,"","",""]
[null,null,null,null,null,null,null,null,null,null,null,null,null,null,null,null,"A-39",null,null,"",null,"","",""]
[null,null,null,null,null,null,null,null,null,null,null,null,null,null,null,null,"A-40",null,null,"",null,"","",""]
[null,"R-9",{"$f":"IF(F46=\"Sea level rise and storm surge\",\"SL\",IF(F46=\"Increased flooding\",\"FL\",IF(F46=\"Increased rainfall variability\",\"RV\",IF(F46=\"Increased average temperature\",\"AT\",IF(F46=\"Increase in hot days\",\"HD\",IF(F46=\"Increased fire risk\",\"FR\",IF(F46=\"Increased atmospheric CO2\",\"AC\",\"\")))))))","v":""},9,null,null,null,null,null,{"$f":"IF(I46=\"Almost Certain\",5,IF(I46=\"likely\",4,IF(I46=\"Possible\",3,IF(I46=\"Unlikely\",2,IF(I46=\"rare\",1,\"\")))))","v":""},null,{"$f":"IF(K46=\"Catastrophic\",5,IF(K46=\"Major\",4,IF(K46=\"Moderate\",3,IF(K46=\"Minor\",2,IF(K46=\"Insignificant\",1,\"\")))))","v":""},{"$f":"IF(L46=\"\",\"\",L46+J46)","v":""},{"$f":"IF(M46=\"\",\"\",IF(M46<5,\"Low\",IF(AND(M46>4,M46<7),\"Moderate\",IF(M46=7,\"High\",IF(M46>7,\"Extreme\",)))))","v":""},null,null,"A-41"]
[null,null,null,null,null,null,null,null,null,null,null,null,null,null,null,null,"A-42"]
[null,null,null,null,null,null,null,null,null,null,null,null,null,null,null,null,"A-43"]
[null,null,null,null,null,null,null,null,null,null,null,null,null,null,null,null,"A-44"]
[null,null,null,null,null,null,null,null,null,null,null,null,null,null,null,null,"A-45"]
[null,"R-10",{"$f":"IF(F51=\"Sea level rise and storm surge\",\"SL\",IF(F51=\"Increased flooding\",\"FL\",IF(F51=\"Increased rainfall variability\",\"RV\",IF(F51=\"Increased average temperature\",\"AT\",IF(F51=\"Increase in hot days\",\"HD\",IF(F51=\"Increased fire risk\",\"FR\",IF(F51=\"Increased atmospheric CO2\",\"AC\",\"\")))))))","v":""},10,null,null,null,null,null,{"$f":"IF(I51=\"Almost Certain\",5,IF(I51=\"likely\",4,IF(I51=\"Possible\",3,IF(I51=\"Unlikely\",2,IF(I51=\"rare\",1,\"\")))))","v":""},null,{"$f":"IF(K51=\"Catastrophic\",5,IF(K51=\"Major\",4,IF(K51=\"Moderate\",3,IF(K51=\"Minor\",2,IF(K51=\"Insignificant\",1,\"\")))))","v":""},{"$f":"IF(L51=\"\",\"\",L51+J51)","v":""},{"$f":"IF(M51=\"\",\"\",IF(M51<5,\"Low\",IF(AND(M51>4,M51<7),\"Moderate\",IF(M51=7,\"High\",IF(M51>7,\"Extreme\",)))))","v":""},null,null,"A-46"]
[null,null,null,null,null,null,null,null,null,null,null,null,null,null,null,null,"A-47"]
[null,null,null,null,null,null,null,null,null,null,null,null,null,null,null,null,"A-48"]
[null,null,null,null,null,null,null,null,null,null,null,null,null,null,null,null,"A-49"]
[null,null,null,null,null,null,null,null,null,null,null,null,null,null,null,null,"A-50"]
[null,"R-11",{"$f":"IF(F56=\"Sea level rise and storm surge\",\"SL\",IF(F56=\"Increased flooding\",\"FL\",IF(F56=\"Increased rainfall variability\",\"RV\",IF(F56=\"Increased average temperature\",\"AT\",IF(F56=\"Increase in hot days\",\"HD\",IF(F56=\"Increased fire risk\",\"FR\",IF(F56=\"Increased atmospheric CO2\",\"AC\",\"\")))))))","v":""},11,null,null,null,null,null,{"$f":"IF(I56=\"Almost Certain\",5,IF(I56=\"likely\",4,IF(I56=\"Possible\",3,IF(I56=\"Unlikely\",2,IF(I56=\"rare\",1,\"\")))))","v":""},null,{"$f":"IF(K56=\"Catastrophic\",5,IF(K56=\"Major\",4,IF(K56=\"Moderate\",3,IF(K56=\"Minor\",2,IF(K56=\"Insignificant\",1,\"\")))))","v":""},{"$f":"IF(L56=\"\",\"\",L56+J56)","v":""},{"$f":"IF(M56=\"\",\"\",IF(M56<5,\"Low\",IF(AND(M56>4,M56<7),\"Moderate\",IF(M56=7,\"High\",IF(M56>7,\"Extreme\",)))))","v":""},null,null,"A-51"]
[null,null,null,null,null,null,null,null,null,null,null,null,null,null,null,null,"A-52"]
[null,null,null,null,null,null,null,null,null,null,null,null,null,null,null,null,"A-53"]
[null,null,null,null,null,null,null,null,null,null,null,null,null,null,null,null,"A-54"]
[null,null,null,null,null,null,null,null,null,null,null,null,null,null,null,null,"A-55",null,null,"",null,"","",""]
[null,"R-12",{"$f":"IF(F61=\"Sea level rise and storm surge\",\"SL\",IF(F61=\"Increased flooding\",\"FL\",IF(F61=\"Increased rainfall variability\",\"RV\",IF(F61=\"Increased average temperature\",\"AT\",IF(F61=\"Increase in hot days\",\"HD\",IF(F61=\"Increased fire risk\",\"FR\",IF(F61=\"Increased atmospheric CO2\",\"AC\",\"\")))))))","v":""},12,null,null,null,null,null,{"$f":"IF(I61=\"Almost Certain\",5,IF(I61=\"likely\",4,IF(I61=\"Possible\",3,IF(I61=\"Unlikely\",2,IF(I61=\"rare\",1,\"\")))))","v":""},null,{"$f":"IF(K61=\"Catastrophic\",5,IF(K61=\"Major\",4,IF(K61=\"Moderate\",3,IF(K61=\"Minor\",2,IF(K61=\"Insignificant\",1,\"\")))))","v":""},{"$f":"IF(L61=\"\",\"\",L61+J61)","v":""},{"$f":"IF(M61=\"\",\"\",IF(M61<5,\"Low\",IF(AND(M61>4,M61<7),\"Moderate\",IF(M61=7,\"High\",IF(M61>7,\"Extreme\",)))))","v":""},null,null,"A-56",null,null,"",null,"","",""]
[null,null,null,null,null,null,null,null,null,null,null,null,null,null,null,null,"A-57",null,null,"",null,"","",""]
[null,null,null,null,null,null,null,null,null,null,null,null,null,null,null,null,"A-58",null,null,"",null,"","",""]
[null,null,null,null,null,null,null,null,null,null,null,null,null,null,null,null,"A-59",null,null,"",null,"","",""]
[null,null,null,null,null,null,null,null,null,null,null,null,null,null,null,null,"A-60",null,null,"",null,"","",""]
[null,"R-13",{"$f":"IF(F66=\"Sea level rise and storm surge\",\"SL\",IF(F66=\"Increased flooding\",\"FL\",IF(F66=\"Increased rainfall variability\",\"RV\",IF(F66=\"Increased average temperature\",\"AT\",IF(F66=\"Increase in hot days\",\"HD\",IF(F66=\"Increased fire risk\",\"FR\",IF(F66=\"Increased atmospheric CO2\",\"AC\",\"\")))))))","v":""},13,null,null,null,null,null,{"$f":"IF(I66=\"Almost Certain\",5,IF(I66=\"likely\",4,IF(I66=\"Possible\",3,IF(I66=\"Unlikely\",2,IF(I66=\"rare\",1,\"\")))))","v":""},null,{"$f":"IF(K66=\"Catastrophic\",5,IF(K66=\"Major\",4,IF(K66=\"Moderate\",3,IF(K66=\"Minor\",2,IF(K66=\"Insignificant\",1,\"\")))))","v":""},{"$f":"IF(L66=\"\",\"\",L66+J66)","v":""},{"$f":"IF(M66=\"\",\"\",IF(M66<5,\"Low\",IF(AND(M66>4,M66<7),\"Moderate\",IF(M66=7,\"High\",IF(M66>7,\"Extreme\",)))))","v":""},null,null,"A-61",null,null,"",null,"","",""]
[null,null,null,null,null,null,null,null,null,null,null,null,null,null,null,null,"A-62",null,null,"",null,"","",""]
[null,null,null,null,null,null,null,null,null,null,null,null,null,null,null,null,"A-63",null,null,"",null,"","",""]
[null,null,null,null,null,null,null,null,null,null,null,null,null,null,null,null,"A-64",null,null,"",null,"","",""]
[null,null,null,null,null,null,null,null,null,null,null,null,null,null,null,null,"A-65",null,null,"",null,"","",""]
[null,"R-14",{"$f":"IF(F71=\"Sea level rise and storm surge\",\"SL\",IF(F71=\"Increased flooding\",\"FL\",IF(F71=\"Increased rainfall variability\",\"RV\",IF(F71=\"Increased average temperature\",\"AT\",IF(F71=\"Increase in hot days\",\"HD\",IF(F71=\"Increased fire risk\",\"FR\",IF(F71=\"Increased atmospheric CO2\",\"AC\",\"\")))))))","v":""},14,null,null,null,null,null,{"$f":"IF(I71=\"Almost Certain\",5,IF(I71=\"likely\",4,IF(I71=\"Possible\",3,IF(I71=\"Unlikely\",2,IF(I71=\"rare\",1,\"\")))))","v":""},null,{"$f":"IF(K71=\"Catastrophic\",5,IF(K71=\"Major\",4,IF(K71=\"Moderate\",3,IF(K71=\"Minor\",2,IF(K71=\"Insignificant\",1,\"\")))))","v":""},{"$f":"IF(L71=\"\",\"\",L71+J71)","v":""},{"$f":"IF(M71=\"\",\"\",IF(M71<5,\"Low\",IF(AND(M71>4,M71<7),\"Moderate\",IF(M71=7,\"High\",IF(M71>7,\"Extreme\",)))))","v":""},null,null,"A-66",null,null,"",null,"","",""]
[null,null,null,null,null,null,null,null,null,null,null,null,null,null,null,null,"A-67",null,null,"",null,{"$f":"IF(U72=\"Catastrophic\",5,IF(U72=\"Major\",4,IF(U72=\"Moderate\",3,IF(U72=\"Minor\",2,IF(U72=\"Insignificant\",1,\"\")))))","v":""},{"$f":"IF(V72=\"\",\"\",V72+T72)","v":""},{"$f":"IF(W72=\"\",\"\",IF(W72<5,\"Low\",IF(AND(W72>4,W72<7),\"Moderate\",IF(W72=7,\"High\",IF(W72>7,\"Extreme\",)))))","v":""}]
[null,null,null,null,null,null,null,null,null,null,null,null,null,null,null,null,"A-68",null,null,"",null,"","",""]
[null,null,null,null,null,null,null,null,null,null,null,null,null,null,null,null,"A-69",null,null,"",null,"","",""]
[null,null,null,null,null,null,null,null,null,null,null,null,null,null,null,null,"A-70",null,null,"",null,"","",""]
[null,"R-15",{"$f":"IF(F76=\"Sea level rise and storm surge\",\"SL\",IF(F76=\"Increased flooding\",\"FL\",IF(F76=\"Increased rainfall variability\",\"RV\",IF(F76=\"Increased average temperature\",\"AT\",IF(F76=\"Increase in hot days\",\"HD\",IF(F76=\"Increased fire risk\",\"FR\",IF(F76=\"Increased atmospheric CO2\",\"AC\",\"\")))))))","v":""},15,null,null,null,null,null,{"$f":"IF(I76=\"Almost Certain\",5,IF(I76=\"likely\",4,IF(I76=\"Possible\",3,IF(I76=\"Unlikely\",2,IF(I76=\"rare\",1,\"\")))))","v":""},null,{"$f":"IF(K76=\"Catastrophic\",5,IF(K76=\"Major\",4,IF(K76=\"Moderate\",3,IF(K76=\"Minor\",2,IF(K76=\"Insignificant\",1,\"\")))))","v":""},{"$f":"IF(L76=\"\",\"\",L76+J76)","v":""},{"$f":"IF(M76=\"\",\"\",IF(M76<5,\"Low\",IF(AND(M76>4,M76<7),\"Moderate\",IF(M76=7,\"High\",IF(M76>7,\"Extreme\",)))))","v":""},null,null,"A-71",null,null,"",null,"","",""]
[null,null,null,null,null,null,null,null,null,null,null,null,null,null,null,null,"A-72",null,null,"",null,"","",""]
[null,null,null,null,null,null,null,null,null,null,null,null,null,null,null,null,"A-73",null,null,"",null,"","",""]
[null,null,null,null,null,null,null,null,null,null,null,null,null,null,null,null,"A-74",null,null,"",null,"","",""]
[null,null,null,null,null,null,null,null,null,null,null,null,null,null,null,null,"A-75",null,null,"",null,"","",""]
[null,"R-16",{"$f":"IF(F81=\"Sea level rise and storm surge\",\"SL\",IF(F81=\"Increased flooding\",\"FL\",IF(F81=\"Increased rainfall variability\",\"RV\",IF(F81=\"Increased average temperature\",\"AT\",IF(F81=\"Increase in hot days\",\"HD\",IF(F81=\"Increased fire risk\",\"FR\",IF(F81=\"Increased atmospheric CO2\",\"AC\",\"\")))))))","v":""},16,null,null,null,null,null,{"$f":"IF(I81=\"Almost Certain\",5,IF(I81=\"likely\",4,IF(I81=\"Possible\",3,IF(I81=\"Unlikely\",2,IF(I81=\"rare\",1,\"\")))))","v":""},null,{"$f":"IF(K81=\"Catastrophic\",5,IF(K81=\"Major\",4,IF(K81=\"Moderate\",3,IF(K81=\"Minor\",2,IF(K81=\"Insignificant\",1,\"\")))))","v":""},{"$f":"IF(L81=\"\",\"\",L81+J81)","v":""},{"$f":"IF(M81=\"\",\"\",IF(M81<5,\"Low\",IF(AND(M81>4,M81<7),\"Moderate\",IF(M81=7,\"High\",IF(M81>7,\"Extreme\",)))))","v":""},null,null,"A-76",null,null,"",null,"","",""]
[null,null,null,null,null,null,null,null,null,null,null,null,null,null,null,null,"A-77",null,null,"",null,"","",""]
[null,null,null,null,null,null,null,null,null,null,null,null,null,null,null,null,"A-78",null,null,"",null,"","",""]
[null,null,null,null,null,null,null,null,null,null,null,null,null,null,null,null,"A-79",null,null,"",null,"","",""]
[null,null,null,null,null,null,null,null,null,null,null,null,null,null,null,null,"A-80",null,null,"",null,"","",""]
[null,"R-17",{"$f":"IF(F86=\"Sea level rise and storm surge\",\"SL\",IF(F86=\"Increased flooding\",\"FL\",IF(F86=\"Increased rainfall variability\",\"RV\",IF(F86=\"Increased average temperature\",\"AT\",IF(F86=\"Increase in hot days\",\"HD\",IF(F86=\"Increased fire risk\",\"FR\",IF(F86=\"Increased atmospheric CO2\",\"AC\",\"\")))))))","v":""},17,null,null,null,null,null,{"$f":"IF(I86=\"Almost Certain\",5,IF(I86=\"likely\",4,IF(I86=\"Possible\",3,IF(I86=\"Unlikely\",2,IF(I86=\"rare\",1,\"\")))))","v":""},null,{"$f":"IF(K86=\"Catastrophic\",5,IF(K86=\"Major\",4,IF(K86=\"Moderate\",3,IF(K86=\"Minor\",2,IF(K86=\"Insignificant\",1,\"\")))))","v":""},{"$f":"IF(L86=\"\",\"\",L86+J86)","v":""},{"$f":"IF(M86=\"\",\"\",IF(M86<5,\"Low\",IF(AND(M86>4,M86<7),\"Moderate\",IF(M86=7,\"High\",IF(M86>7,\"Extreme\",)))))","v":""},null,null,"A-81",null,null,{"$f":"IF(S86=\"Almost Certain\",5,IF(S86=\"likely\",4,IF(S86=\"Possible\",3,IF(S86=\"Unlikely\",2,IF(S86=\"rare\",1,\"\")))))","v":""},null,"","",""]
[null,null,null,null,null,null,null,null,null,null,null,null,null,null,null,null,"A-82",null,null,"",null,"","",""]
[null,null,null,null,null,null,null,null,null,null,null,null,null,null,null,null,"A-83",null,null,"",null,"","",""]
[null,null,null,null,null,null,null,null,null,null,null,null,null,null,null,null,"A-84",null,null,"",null,"","",""]
[null,null,null,null,null,null,null,null,null,null,null,null,null,null,null,null,"A-85",null,null,"",null,"","",""]
[null,"R-18",{"$f":"IF(F91=\"Sea level rise and storm surge\",\"SL\",IF(F91=\"Increased flooding\",\"FL\",IF(F91=\"Increased rainfall variability\",\"RV\",IF(F91=\"Increased average temperature\",\"AT\",IF(F91=\"Increase in hot days\",\"HD\",IF(F91=\"Increased fire risk\",\"FR\",IF(F91=\"Increased atmospheric CO2\",\"AC\",\"\")))))))","v":""},18,null,null,null,null,null,{"$f":"IF(I91=\"Almost Certain\",5,IF(I91=\"likely\",4,IF(I91=\"Possible\",3,IF(I91=\"Unlikely\",2,IF(I91=\"rare\",1,\"\")))))","v":""},null,{"$f":"IF(K91=\"Catastrophic\",5,IF(K91=\"Major\",4,IF(K91=\"Moderate\",3,IF(K91=\"Minor\",2,IF(K91=\"Insignificant\",1,\"\")))))","v":""},{"$f":"IF(L91=\"\",\"\",L91+J91)","v":""},{"$f":"IF(M91=\"\",\"\",IF(M91<5,\"Low\",IF(AND(M91>4,M91<7),\"Moderate\",IF(M91=7,\"High\",IF(M91>7,\"Extreme\",)))))","v":""},null,null,"A-86",null,null,"",null,"","",""]
[null,null,null,null,null,null,null,null,null,null,null,null,null,null,null,null,"A-87",null,null,"",null,"","",""]
[null,null,null,null,null,null,null,null,null,null,null,null,null,null,null,null,"A-88",null,null,"",null,"","",""]
[null,null,null,null,null,null,null,null,null,null,null,null,null,null,null,null,"A-89",null,null,"",null,"","",""]
[null,null,null,null,null,null,null,null,null,null,null,null,null,null,null,null,"A-90",null,null,"",null,"","",""]
[null,"R-19",{"$f":"IF(F96=\"Sea level rise and storm surge\",\"SL\",IF(F96=\"Increased flooding\",\"FL\",IF(F96=\"Increased rainfall variability\",\"RV\",IF(F96=\"Increased average temperature\",\"AT\",IF(F96=\"Increase in hot days\",\"HD\",IF(F96=\"Increased fire risk\",\"FR\",IF(F96=\"Increased atmospheric CO2\",\"AC\",\"\")))))))","v":""},19,null,null,null,null,null,{"$f":"IF(I96=\"Almost Certain\",5,IF(I96=\"likely\",4,IF(I96=\"Possible\",3,IF(I96=\"Unlikely\",2,IF(I96=\"rare\",1,\"\")))))","v":""},null,{"$f":"IF(K96=\"Catastrophic\",5,IF(K96=\"Major\",4,IF(K96=\"Moderate\",3,IF(K96=\"Minor\",2,IF(K96=\"Insignificant\",1,\"\")))))","v":""},{"$f":"IF(L96=\"\",\"\",L96+J96)","v":""},{"$f":"IF(M96=\"\",\"\",IF(M96<5,\"Low\",IF(AND(M96>4,M96<7),\"Moderate\",IF(M96=7,\"High\",IF(M96>7,\"Extreme\",)))))","v":""},null,null,"A-91",null,null,"",null,"","",""]
[null,null,null,null,null,null,null,null,null,null,null,null,null,null,null,null,"A-92",null,null,"",null,"","",""]
[null,null,null,null,null,null,null,null,null,null,null,null,null,null,null,null,"A-93",null,null,"",null,"","",""]
[null,null,null,null,null,null,null,null,null,null,null,null,null,null,null,null,"A-94",null,null,"",null,"","",""]
[null,null,null,null,null,null,null,null,null,null,null,null,null,null,null,null,"A-95",null,null,"",null,"","",""]
[null,"R-20",{"$f":"IF(F101=\"Sea level rise and storm surge\",\"SL\",IF(F101=\"Increased flooding\",\"FL\",IF(F101=\"Increased rainfall variability\",\"RV\",IF(F101=\"Increased average temperature\",\"AT\",IF(F101=\"Increase in hot days\",\"HD\",IF(F101=\"Increased fire risk\",\"FR\",IF(F101=\"Increased atmospheric CO2\",\"AC\",\"\")))))))","v":""},20,null,null,null,null,null,{"$f":"IF(I101=\"Almost Certain\",5,IF(I101=\"likely\",4,IF(I101=\"Possible\",3,IF(I101=\"Unlikely\",2,IF(I101=\"rare\",1,\"\")))))","v":""},null,{"$f":"IF(K101=\"Catastrophic\",5,IF(K101=\"Major\",4,IF(K101=\"Moderate\",3,IF(K101=\"Minor\",2,IF(K101=\"Insignificant\",1,\"\")))))","v":""},{"$f":"IF(L101=\"\",\"\",L101+J101)","v":""},{"$f":"IF(M101=\"\",\"\",IF(M101<5,\"Low\",IF(AND(M101>4,M101<7),\"Moderate\",IF(M101=7,\"High\",IF(M101>7,\"Extreme\",)))))","v":""},null,null,"A-96",null,null,"",null,"","",""]
[null,null,null,null,null,null,null,null,null,null,null,null,null,null,null,null,"A-97",null,null,"",null,"","",""]
[null,null,null,null,null,null,null,null,null,null,null,null,null,null,null,null,"A-98",null,null,"",null,"","",""]
[null,null,null,null,null,null,null,null,null,null,null,null,null,null,null,null,"A-99",null,null,"",null,"","",""]
[null,null,null,null,null,null,null,null,null,null,null,null,null,null,null,null,"A-100",null,null,"",null,"","",""]
[null,"R-21",{"$f":"IF(F106=\"Sea level rise and storm surge\",\"SL\",IF(F106=\"Increased flooding\",\"FL\",IF(F106=\"Increased rainfall variability\",\"RV\",IF(F106=\"Increased average temperature\",\"AT\",IF(F106=\"Increase in hot days\",\"HD\",IF(F106=\"Increased fire risk\",\"FR\",IF(F106=\"Increased atmospheric CO2\",\"AC\",\"\")))))))","v":""},21,null,null,null,null,null,{"$f":"IF(I106=\"Almost Certain\",5,IF(I106=\"likely\",4,IF(I106=\"Possible\",3,IF(I106=\"Unlikely\",2,IF(I106=\"rare\",1,\"\")))))","v":""},null,{"$f":"IF(K106=\"Catastrophic\",5,IF(K106=\"Major\",4,IF(K106=\"Moderate\",3,IF(K106=\"Minor\",2,IF(K106=\"Insignificant\",1,\"\")))))","v":""},{"$f":"IF(L106=\"\",\"\",L106+J106)","v":""},{"$f":"IF(M106=\"\",\"\",IF(M106<5,\"Low\",IF(AND(M106>4,M106<7),\"Moderate\",IF(M106=7,\"High\",IF(M106>7,\"Extreme\",)))))","v":""},null,null,"A-101",null,null,"",null,"","",""]
[null,null,null,null,null,null,null,null,null,null,null,null,null,null,null,null,"A-102",null,null,"",null,"","",""]
[null,null,null,null,null,null,null,null,null,null,null,null,null,null,null,null,"A-103",null,null,"",null,"","",""]
[null,null,null,null,null,null,null,null,null,null,null,null,null,null,null,null,"A-104",null,null,"",null,"","",""]
[null,null,null,null,null,null,null,null,null,null,null,null,null,null,null,null,"A-105",null,null,"",null,"","",""]
[null,"R-22",{"$f":"IF(F111=\"Sea level rise and storm surge\",\"SL\",IF(F111=\"Increased flooding\",\"FL\",IF(F111=\"Increased rainfall variability\",\"RV\",IF(F111=\"Increased average temperature\",\"AT\",IF(F111=\"Increase in hot days\",\"HD\",IF(F111=\"Increased fire risk\",\"FR\",IF(F111=\"Increased atmospheric CO2\",\"AC\",\"\")))))))","v":""},22,null,null,null,null,null,{"$f":"IF(I111=\"Almost Certain\",5,IF(I111=\"likely\",4,IF(I111=\"Possible\",3,IF(I111=\"Unlikely\",2,IF(I111=\"rare\",1,\"\")))))","v":""},null,{"$f":"IF(K111=\"Catastrophic\",5,IF(K111=\"Major\",4,IF(K111=\"Moderate\",3,IF(K111=\"Minor\",2,IF(K111=\"Insignificant\",1,\"\")))))","v":""},{"$f":"IF(L111=\"\",\"\",L111+J111)","v":""},{"$f":"IF(M111=\"\",\"\",IF(M111<5,\"Low\",IF(AND(M111>4,M111<7),\"Moderate\",IF(M111=7,\"High\",IF(M111>7,\"Extreme\",)))))","v":""},null,null,"A-106",null,null,"",null,"","",""]
[null,null,null,null,null,null,null,null,null,null,null,null,null,null,null,null,"A-107",null,null,"",null,"","",""]
[null,null,null,null,null,null,null,null,null,null,null,null,null,null,null,null,"A-108",null,null,"",null,"","",""]
[null,null,null,null,null,null,null,null,null,null,null,null,null,null,null,null,"A-109",null,null,"",null,"","",""]
[null,null,null,null,null,null,null,null,null,null,null,null,null,null,null,null,"A-110",null,null,"",null,"","",""]
[null,"R-23",{"$f":"IF(F116=\"Sea level rise and storm surge\",\"SL\",IF(F116=\"Increased flooding\",\"FL\",IF(F116=\"Increased rainfall variability\",\"RV\",IF(F116=\"Increased average temperature\",\"AT\",IF(F116=\"Increase in hot days\",\"HD\",IF(F116=\"Increased fire risk\",\"FR\",IF(F116=\"Increased atmospheric CO2\",\"AC\",\"\")))))))","v":""},23,null,null,null,null,null,{"$f":"IF(I116=\"Almost Certain\",5,IF(I116=\"likely\",4,IF(I116=\"Possible\",3,IF(I116=\"Unlikely\",2,IF(I116=\"rare\",1,\"\")))))","v":""},null,{"$f":"IF(K116=\"Catastrophic\",5,IF(K116=\"Major\",4,IF(K116=\"Moderate\",3,IF(K116=\"Minor\",2,IF(K116=\"Insignificant\",1,\"\")))))","v":""},{"$f":"IF(L116=\"\",\"\",L116+J116)","v":""},{"$f":"IF(M116=\"\",\"\",IF(M116<5,\"Low\",IF(AND(M116>4,M116<7),\"Moderate\",IF(M116=7,\"High\",IF(M116>7,\"Extreme\",)))))","v":""},null,null,"A-111",null,null,"",null,"","",""]
[null,null,null,null,null,null,null,null,null,null,null,null,null,null,null,null,"A-112",null,null,"",null,"","",""]
[null,null,null,null,null,null,null,null,null,null,null,null,null,null,null,null,"A-113",null,null,"",null,"","",""]
[null,null,null,null,null,null,null,null,null,null,null,null,null,null,null,null,"A-114",null,null,"",null,"","",""]
[null,null,null,null,null,null,null,null,null,null,null,null,null,null,null,null,"A-115",null,null,"",null,"","",""]
[null,"R-24",{"$f":"IF(F121=\"Sea level rise and storm surge\",\"SL\",IF(F121=\"Increased flooding\",\"FL\",IF(F121=\"Increased rainfall variability\",\"RV\",IF(F121=\"Increased average temperature\",\"AT\",IF(F121=\"Increase in hot days\",\"HD\",IF(F121=\"Increased fire risk\",\"FR\",IF(F121=\"Increased atmospheric CO2\",\"AC\",\"\")))))))","v":""},24,null,null,null,null,null,{"$f":"IF(I121=\"Almost Certain\",5,IF(I121=\"likely\",4,IF(I121=\"Possible\",3,IF(I121=\"Unlikely\",2,IF(I121=\"rare\",1,\"\")))))","v":""},null,{"$f":"IF(K121=\"Catastrophic\",5,IF(K121=\"Major\",4,IF(K121=\"Moderate\",3,IF(K121=\"Minor\",2,IF(K121=\"Insignificant\",1,\"\")))))","v":""},{"$f":"IF(L121=\"\",\"\",L121+J121)","v":""},{"$f":"IF(M121=\"\",\"\",IF(M121<5,\"Low\",IF(AND(M121>4,M121<7),\"Moderate\",IF(M121=7,\"High\",IF(M121>7,\"Extreme\",)))))","v":""},null,null,"A-116",null,null,"",null,"","",""]
[null,null,null,null,null,null,null,null,null,null,null,null,null,null,null,null,"A-117",null,null,"",null,"","",""]
[null,null,null,null,null,null,null,null,null,null,null,null,null,null,null,null,"A-118",null,null,"",null,"","",""]
[null,null,null,null,null,null,null,null,null,null,null,null,null,null,null,null,"A-119",null,null,"",null,"","",""]
[null,null,null,null,null,null,null,null,null,null,null,null,null,null,null,null,"A-120",null,null,"",null,"","",""]
[null,"R-25",{"$f":"IF(F126=\"Sea level rise and storm surge\",\"SL\",IF(F126=\"Increased flooding\",\"FL\",IF(F126=\"Increased rainfall variability\",\"RV\",IF(F126=\"Increased average temperature\",\"AT\",IF(F126=\"Increase in hot days\",\"HD\",IF(F126=\"Increased fire risk\",\"FR\",IF(F126=\"Increased atmospheric CO2\",\"AC\",\"\")))))))","v":""},25,null,null,null,null,null,{"$f":"IF(I126=\"Almost Certain\",5,IF(I126=\"likely\",4,IF(I126=\"Possible\",3,IF(I126=\"Unlikely\",2,IF(I126=\"rare\",1,\"\")))))","v":""},null,{"$f":"IF(K126=\"Catastrophic\",5,IF(K126=\"Major\",4,IF(K126=\"Moderate\",3,IF(K126=\"Minor\",2,IF(K126=\"Insignificant\",1,\"\")))))","v":""},{"$f":"IF(L126=\"\",\"\",L126+J126)","v":""},{"$f":"IF(M126=\"\",\"\",IF(M126<5,\"Low\",IF(AND(M126>4,M126<7),\"Moderate\",IF(M126=7,\"High\",IF(M126>7,\"Extreme\",)))))","v":""},null,null,"A-121",null,null,"",null,"","",""]
[null,null,null,null,null,null,null,null,null,null,null,null,null,null,null,null,"A-122",null,null,"",null,"","",""]
[null,null,null,null,null,null,null,null,null,null,null,null,null,null,null,null,"A-123",null,null,"",null,"","",""]
[null,null,null,null,null,null,null,null,null,null,null,null,null,null,null,null,"A-124",null,null,"",null,"","",""]
[null,null,null,null,null,null,null,null,null,null,null,null,null,null,null,null,"A-125",null,null,"",null,"","",""]
[null,"R-26",{"$f":"IF(F131=\"Sea level rise and storm surge\",\"SL\",IF(F131=\"Increased flooding\",\"FL\",IF(F131=\"Increased rainfall variability\",\"RV\",IF(F131=\"Increased average temperature\",\"AT\",IF(F131=\"Increase in hot days\",\"HD\",IF(F131=\"Increased fire risk\",\"FR\",IF(F131=\"Increased atmospheric CO2\",\"AC\",\"\")))))))","v":""},26,null,null,null,null,null,{"$f":"IF(I131=\"Almost Certain\",5,IF(I131=\"likely\",4,IF(I131=\"Possible\",3,IF(I131=\"Unlikely\",2,IF(I131=\"rare\",1,\"\")))))","v":""},null,{"$f":"IF(K131=\"Catastrophic\",5,IF(K131=\"Major\",4,IF(K131=\"Moderate\",3,IF(K131=\"Minor\",2,IF(K131=\"Insignificant\",1,\"\")))))","v":""},{"$f":"IF(L131=\"\",\"\",L131+J131)","v":""},{"$f":"IF(M131=\"\",\"\",IF(M131<5,\"Low\",IF(AND(M131>4,M131<7),\"Moderate\",IF(M131=7,\"High\",IF(M131>7,\"Extreme\",)))))","v":""},null,null,"A-126",null,null,"",null,"","",""]
[null,null,null,null,null,null,null,null,null,null,null,null,null,null,null,null,"A-127",null,null,"",null,"","",""]
[null,null,null,null,null,null,null,null,null,null,null,null,null,null,null,null,"A-128",null,null,"",null,"","",""]
[null,null,null,null,null,null,null,null,null,null,null,null,null,null,null,null,"A-129",null,null,"",null,"","",""]
[null,null,null,null,null,null,null,null,null,null,null,null,null,null,null,null,"A-130",null,null,"",null,"","",""]
[null,"R-27",{"$f":"IF(F136=\"Sea level rise and storm surge\",\"SL\",IF(F136=\"Increased flooding\",\"FL\",IF(F136=\"Increased rainfall variability\",\"RV\",IF(F136=\"Increased average temperature\",\"AT\",IF(F136=\"Increase in hot days\",\"HD\",IF(F136=\"Increased fire risk\",\"FR\",IF(F136=\"Increased atmospheric CO2\",\"AC\",\"\")))))))","v":""},27,null,null,null,null,null,{"$f":"IF(I136=\"Almost Certain\",5,IF(I136=\"likely\",4,IF(I136=\"Possible\",3,IF(I136=\"Unlikely\",2,IF(I136=\"rare\",1,\"\")))))","v":""},null,{"$f":"IF(K136=\"Catastrophic\",5,IF(K136=\"Major\",4,IF(K136=\"Moderate\",3,IF(K136=\"Minor\",2,IF(K136=\"Insignificant\",1,\"\")))))","v":""},{"$f":"IF(L136=\"\",\"\",L136+J136)","v":""},{"$f":"IF(M136=\"\",\"\",IF(M136<5,\"Low\",IF(AND(M136>4,M136<7),\"Moderate\",IF(M136=7,\"High\",IF(M136>7,\"Extreme\",)))))","v":""},null,null,"A-131",null,null,"",null,{"$f":"IF(U136=\"Catastrophic\",5,IF(U136=\"Major\",4,IF(U136=\"Moderate\",3,IF(U136=\"Minor\",2,IF(U136=\"Insignificant\",1,\"\")))))","v":""},{"$f":"IF(V136=\"\",\"\",V136+T136)","v":""},{"$f":"IF(W136=\"\",\"\",IF(W136<5,\"Low\",IF(AND(W136>4,W136<7),\"Moderate\",IF(W136=7,\"High\",IF(W136>7,\"Extreme\",)))))","v":""}]
[null,null,null,null,null,null,null,null,null,null,null,null,null,null,null,null,"A-132",null,null,"",null,"","",""]
[null,null,null,null,null,null,null,null,null,null,null,null,null,null,null,null,"A-133",null,null,"",null,"","",""]
[null,null,null,null,null,null,null,null,null,null,null,null,null,null,null,null,"A-134",null,null,"",null,"","",""]
[null,null,null,null,null,null,null,null,null,null,null,null,null,null,null,null,"A-135",null,null,"",null,"","",""]
[null,"R-28",{"$f":"IF(F141=\"Sea level rise and storm surge\",\"SL\",IF(F141=\"Increased flooding\",\"FL\",IF(F141=\"Increased rainfall variability\",\"RV\",IF(F141=\"Increased average temperature\",\"AT\",IF(F141=\"Increase in hot days\",\"HD\",IF(F141=\"Increased fire risk\",\"FR\",IF(F141=\"Increased atmospheric CO2\",\"AC\",\"\")))))))","v":""},28,null,null,null,null,null,{"$f":"IF(I141=\"Almost Certain\",5,IF(I141=\"likely\",4,IF(I141=\"Possible\",3,IF(I141=\"Unlikely\",2,IF(I141=\"rare\",1,\"\")))))","v":""},null,{"$f":"IF(K141=\"Catastrophic\",5,IF(K141=\"Major\",4,IF(K141=\"Moderate\",3,IF(K141=\"Minor\",2,IF(K141=\"Insignificant\",1,\"\")))))","v":""},{"$f":"IF(L141=\"\",\"\",L141+J141)","v":""},{"$f":"IF(M141=\"\",\"\",IF(M141<5,\"Low\",IF(AND(M141>4,M141<7),\"Moderate\",IF(M141=7,\"High\",IF(M141>7,\"Extreme\",)))))","v":""},null,null,"A-136",null,null,"",null,"","",""]
[null,null,null,null,null,null,null,null,null,null,null,null,null,null,null,null,"A-137",null,null,"",null,"","",""]
[null,null,null,null,null,null,null,null,null,null,null,null,null,null,null,null,"A-138",null,null,"",null,"","",""]
[null,null,null,null,null,null,null,null,null,null,null,null,null,null,null,null,"A-139",null,null,"",null,"","",""]
[null,null,null,null,null,null,null,null,null,null,null,null,null,null,null,null,"A-140",null,null,"",null,"","",""]
[null,"R-29",{"$f":"IF(F146=\"Sea level rise and storm surge\",\"SL\",IF(F146=\"Increased flooding\",\"FL\",IF(F146=\"Increased rainfall variability\",\"RV\",IF(F146=\"Increased average temperature\",\"AT\",IF(F146=\"Increase in hot days\",\"HD\",IF(F146=\"Increased fire risk\",\"FR\",IF(F146=\"Increased atmospheric CO2\",\"AC\",\"\")))))))","v":""},29,null,null,null,null,null,{"$f":"IF(I146=\"Almost Certain\",5,IF(I146=\"likely\",4,IF(I146=\"Possible\",3,IF(I146=\"Unlikely\",2,IF(I146=\"rare\",1,\"\")))))","v":""},null,{"$f":"IF(K146=\"Catastrophic\",5,IF(K146=\"Major\",4,IF(K146=\"Moderate\",3,IF(K146=\"Minor\",2,IF(K146=\"Insignificant\",1,\"\")))))","v":""},{"$f":"IF(L146=\"\",\"\",L146+J146)","v":""},{"$f":"IF(M146=\"\",\"\",IF(M146<5,\"Low\",IF(AND(M146>4,M146<7),\"Moderate\",IF(M146=7,\"High\",IF(M146>7,\"Extreme\",)))))","v":""},null,null,"A-141",null,null,"",null,"","",""]
[null,null,null,null,null,null,null,null,null,null,null,null,null,null,null,null,"A-142",null,null,"",null,"","",""]
[null,null,null,null,null,null,null,null,null,null,null,null,null,null,null,null,"A-143",null,null,"",null,"","",""]
[null,null,null,null,null,null,null,null,null,null,null,null,null,null,null,null,"A-144",null,null,"",null,"","",""]
[null,null,null,null,null,null,null,null,null,null,null,null,null,null,null,null,"A-145",null,null,{"$f":"IF(S150=\"Almost Certain\",5,IF(S150=\"likely\",4,IF(S150=\"Possible\",3,IF(S150=\"Unlikely\",2,IF(S150=\"rare\",1,\"\")))))","v":""},null,"","",""]
[null,"R-30",{"$f":"IF(F151=\"Sea level rise and storm surge\",\"SL\",IF(F151=\"Increased flooding\",\"FL\",IF(F151=\"Increased rainfall variability\",\"RV\",IF(F151=\"Increased average temperature\",\"AT\",IF(F151=\"Increase in hot days\",\"HD\",IF(F151=\"Increased fire risk\",\"FR\",IF(F151=\"Increased atmospheric CO2\",\"AC\",\"\")))))))","v":""},30,null,null,null,null,null,{"$f":"IF(I151=\"Almost Certain\",5,IF(I151=\"likely\",4,IF(I151=\"Possible\",3,IF(I151=\"Unlikely\",2,IF(I151=\"rare\",1,\"\")))))","v":""},null,{"$f":"IF(K151=\"Catastrophic\",5,IF(K151=\"Major\",4,IF(K151=\"Moderate\",3,IF(K151=\"Minor\",2,IF(K151=\"Insignificant\",1,\"\")))))","v":""},{"$f":"IF(L151=\"\",\"\",L151+J151)","v":""},{"$f":"IF(M151=\"\",\"\",IF(M151<5,\"Low\",IF(AND(M151>4,M151<7),\"Moderate\",IF(M151=7,\"High\",IF(M151>7,\"Extreme\",)))))","v":""},null,null,"A-146",null,null,"",null,"","",""]
[null,null,null,null,null,null,null,null,null,null,null,null,null,null,null,null,"A-147",null,null,"",null,"","",""]
[null,null,null,null,null,null,null,null,null,null,null,null,null,null,null,null,"A-148",null,null,"",null,"","",""]
[null,null,null,null,null,null,null,null,null,null,null,null,null,null,null,null,"A-149",null,null,"",null,"","",""]
[null,null,null,null,null,null,null,null,null,null,null,null,null,null,null,null,"A-150",null,null,"",null,"","",""]
[null,"R-31",{"$f":"IF(F156=\"Sea level rise and storm surge\",\"SL\",IF(F156=\"Increased flooding\",\"FL\",IF(F156=\"Increased rainfall variability\",\"RV\",IF(F156=\"Increased average temperature\",\"AT\",IF(F156=\"Increase in hot days\",\"HD\",IF(F156=\"Increased fire risk\",\"FR\",IF(F156=\"Increased atmospheric CO2\",\"AC\",\"\")))))))","v":""},31,null,null,null,null,null,{"$f":"IF(I156=\"Almost Certain\",5,IF(I156=\"likely\",4,IF(I156=\"Possible\",3,IF(I156=\"Unlikely\",2,IF(I156=\"rare\",1,\"\")))))","v":""},null,{"$f":"IF(K156=\"Catastrophic\",5,IF(K156=\"Major\",4,IF(K156=\"Moderate\",3,IF(K156=\"Minor\",2,IF(K156=\"Insignificant\",1,\"\")))))","v":""},{"$f":"IF(L156=\"\",\"\",L156+J156)","v":""},{"$f":"IF(M156=\"\",\"\",IF(M156<5,\"Low\",IF(AND(M156>4,M156<7),\"Moderate\",IF(M156=7,\"High\",IF(M156>7,\"Extreme\",)))))","v":""},null,null,"A-151",null,null,"",null,"","",""]
[null,null,null,null,null,null,null,null,null,null,null,null,null,null,null,null,"A-152",null,null,"",null,"","",""]
[null,null,null,null,null,null,null,null,null,null,null,null,null,null,null,null,"A-153",null,null,"",null,"","",""]
[null,null,null,null,null,null,null,null,null,null,null,null,null,null,null,null,"A-154",null,null,"",null,"","",""]
[null,null,null,null,null,null,null,null,null,null,null,null,null,null,null,null,"A-155",null,null,"",null,"","",""]
[null,"R-32",{"$f":"IF(F161=\"Sea level rise and storm surge\",\"SL\",IF(F161=\"Increased flooding\",\"FL\",IF(F161=\"Increased rainfall variability\",\"RV\",IF(F161=\"Increased average temperature\",\"AT\",IF(F161=\"Increase in hot days\",\"HD\",IF(F161=\"Increased fire risk\",\"FR\",IF(F161=\"Increased atmospheric CO2\",\"AC\",\"\")))))))","v":""},32,null,null,null,null,null,{"$f":"IF(I161=\"Almost Certain\",5,IF(I161=\"likely\",4,IF(I161=\"Possible\",3,IF(I161=\"Unlikely\",2,IF(I161=\"rare\",1,\"\")))))","v":""},null,{"$f":"IF(K161=\"Catastrophic\",5,IF(K161=\"Major\",4,IF(K161=\"Moderate\",3,IF(K161=\"Minor\",2,IF(K161=\"Insignificant\",1,\"\")))))","v":""},{"$f":"IF(L161=\"\",\"\",L161+J161)","v":""},{"$f":"IF(M161=\"\",\"\",IF(M161<5,\"Low\",IF(AND(M161>4,M161<7),\"Moderate\",IF(M161=7,\"High\",IF(M161>7,\"Extreme\",)))))","v":""},null,null,"A-156",null,null,"",null,"","",""]
[null,null,null,null,null,null,null,null,null,null,null,null,null,null,null,null,"A-157",null,null,"",null,"","",""]
[null,null,null,null,null,null,null,null,null,null,null,null,null,null,null,null,"A-158",null,null,"",null,"","",""]
[null,null,null,null,null,null,null,null,null,null,null,null,null,null,null,null,"A-159",null,null,"",null,"","",""]
[null,null,null,null,null,null,null,null,null,null,null,null,null,null,null,null,"A-160",null,null,"",null,"","",""]
[null,"R-33",{"$f":"IF(F166=\"Sea level rise and storm surge\",\"SL\",IF(F166=\"Increased flooding\",\"FL\",IF(F166=\"Increased rainfall variability\",\"RV\",IF(F166=\"Increased average temperature\",\"AT\",IF(F166=\"Increase in hot days\",\"HD\",IF(F166=\"Increased fire risk\",\"FR\",IF(F166=\"Increased atmospheric CO2\",\"AC\",\"\")))))))","v":""},33,null,null,null,null,null,{"$f":"IF(I166=\"Almost Certain\",5,IF(I166=\"likely\",4,IF(I166=\"Possible\",3,IF(I166=\"Unlikely\",2,IF(I166=\"rare\",1,\"\")))))","v":""},null,{"$f":"IF(K166=\"Catastrophic\",5,IF(K166=\"Major\",4,IF(K166=\"Moderate\",3,IF(K166=\"Minor\",2,IF(K166=\"Insignificant\",1,\"\")))))","v":""},{"$f":"IF(L166=\"\",\"\",L166+J166)","v":""},{"$f":"IF(M166=\"\",\"\",IF(M166<5,\"Low\",IF(AND(M166>4,M166<7),\"Moderate\",IF(M166=7,\"High\",IF(M166>7,\"Extreme\",)))))","v":""},null,null,"A-161",null,null,"",null,"","",""]
[null,null,null,null,null,null,null,null,null,null,null,null,null,null,null,null,"A-162",null,null,"",null,"","",""]
[null,null,null,null,null,null,null,null,null,null,null,null,null,null,null,null,"A-163",null,null,"",null,"","",""]
[null,null,null,null,null,null,null,null,null,null,null,null,null,null,null,null,"A-164",null,null,"",null,"","",""]
[null,null,null,null,null,null,null,null,null,null,null,null,null,null,null,null,"A-165",null,null,"",null,"","",""]
[null,"R-34",{"$f":"IF(F171=\"Sea level rise and storm surge\",\"SL\",IF(F171=\"Increased flooding\",\"FL\",IF(F171=\"Increased rainfall variability\",\"RV\",IF(F171=\"Increased average temperature\",\"AT\",IF(F171=\"Increase in hot days\",\"HD\",IF(F171=\"Increased fire risk\",\"FR\",IF(F171=\"Increased atmospheric CO2\",\"AC\",\"\")))))))","v":""},34,null,null,null,null,null,{"$f":"IF(I171=\"Almost Certain\",5,IF(I171=\"likely\",4,IF(I171=\"Possible\",3,IF(I171=\"Unlikely\",2,IF(I171=\"rare\",1,\"\")))))","v":""},null,{"$f":"IF(K171=\"Catastrophic\",5,IF(K171=\"Major\",4,IF(K171=\"Moderate\",3,IF(K171=\"Minor\",2,IF(K171=\"Insignificant\",1,\"\")))))","v":""},{"$f":"IF(L171=\"\",\"\",L171+J171)","v":""},{"$f":"IF(M171=\"\",\"\",IF(M171<5,\"Low\",IF(AND(M171>4,M171<7),\"Moderate\",IF(M171=7,\"High\",IF(M171>7,\"Extreme\",)))))","v":""},null,null,"A-166",null,null,"",null,"","",""]
[null,null,null,null,null,null,null,null,null,null,null,null,null,null,null,null,"A-167",null,null,"",null,"","",""]
[null,null,null,null,null,null,null,null,null,null,null,null,null,null,null,null,"A-168",null,null,"",null,"","",""]
[null,null,null,null,null,null,null,null,null,null,null,null,null,null,null,null,"A-169",null,null,"",null,"","",""]
[null,null,null,null,null,null,null,null,null,null,null,null,null,null,null,null,"A-170",null,null,"",null,"","",""]
[null,"R-35",{"$f":"IF(F176=\"Sea level rise and storm surge\",\"SL\",IF(F176=\"Increased flooding\",\"FL\",IF(F176=\"Increased rainfall variability\",\"RV\",IF(F176=\"Increased average temperature\",\"AT\",IF(F176=\"Increase in hot days\",\"HD\",IF(F176=\"Increased fire risk\",\"FR\",IF(F176=\"Increased atmospheric CO2\",\"AC\",\"\")))))))","v":""},35,null,null,null,null,null,{"$f":"IF(I176=\"Almost Certain\",5,IF(I176=\"likely\",4,IF(I176=\"Possible\",3,IF(I176=\"Unlikely\",2,IF(I176=\"rare\",1,\"\")))))","v":""},null,{"$f":"IF(K176=\"Catastrophic\",5,IF(K176=\"Major\",4,IF(K176=\"Moderate\",3,IF(K176=\"Minor\",2,IF(K176=\"Insignificant\",1,\"\")))))","v":""},{"$f":"IF(L176=\"\",\"\",L176+J176)","v":""},{"$f":"IF(M176=\"\",\"\",IF(M176<5,\"Low\",IF(AND(M176>4,M176<7),\"Moderate\",IF(M176=7,\"High\",IF(M176>7,\"Extreme\",)))))","v":""},null,null,"A-171",null,null,"",null,"","",""]
[null,null,null,null,null,null,null,null,null,null,null,null,null,null,null,null,"A-172",null,null,"",null,"","",""]
[null,null,null,null,null,null,null,null,null,null,null,null,null,null,null,null,"A-173",null,null,"",null,"","",""]
[null,null,null,null,null,null,null,null,null,null,null,null,null,null,null,null,"A-174",null,null,"",null,"","",""]
[null,null,null,null,null,null,null,null,null,null,null,null,null,null,null,null,"A-175",null,null,"",null,"","",""]
[null,"R-36",{"$f":"IF(F181=\"Sea level rise and storm surge\",\"SL\",IF(F181=\"Increased flooding\",\"FL\",IF(F181=\"Increased rainfall variability\",\"RV\",IF(F181=\"Increased average temperature\",\"AT\",IF(F181=\"Increase in hot days\",\"HD\",IF(F181=\"Increased fire risk\",\"FR\",IF(F181=\"Increased atmospheric CO2\",\"AC\",\"\")))))))","v":""},36,null,null,null,null,null,{"$f":"IF(I181=\"Almost Certain\",5,IF(I181=\"likely\",4,IF(I181=\"Possible\",3,IF(I181=\"Unlikely\",2,IF(I181=\"rare\",1,\"\")))))","v":""},null,{"$f":"IF(K181=\"Catastrophic\",5,IF(K181=\"Major\",4,IF(K181=\"Moderate\",3,IF(K181=\"Minor\",2,IF(K181=\"Insignificant\",1,\"\")))))","v":""},{"$f":"IF(L181=\"\",\"\",L181+J181)","v":""},{"$f":"IF(M181=\"\",\"\",IF(M181<5,\"Low\",IF(AND(M181>4,M181<7),\"Moderate\",IF(M181=7,\"High\",IF(M181>7,\"Extreme\",)))))","v":""},null,null,"A-176",null,null,"",null,"","",""]
[null,null,null,null,null,null,null,null,null,null,null,null,null,null,null,null,"A-177",null,null,"",null,"","",""]
[null,null,null,null,null,null,null,null,null,null,null,null,null,null,null,null,"A-178",null,null,"",null,"","",""]
[null,null,null,null,null,null,null,null,null,null,null,null,null,null,null,null,"A-179",null,null,"",null,"","",""]
[null,null,null,null,null,null,null,null,null,null,null,null,null,null,null,null,"A-180",null,null,"",null,"","",""]
[null,"R-37",{"$f":"IF(F186=\"Sea level rise and storm surge\",\"SL\",IF(F186=\"Increased flooding\",\"FL\",IF(F186=\"Increased rainfall variability\",\"RV\",IF(F186=\"Increased average temperature\",\"AT\",IF(F186=\"Increase in hot days\",\"HD\",IF(F186=\"Increased fire risk\",\"FR\",IF(F186=\"Increased atmospheric CO2\",\"AC\",\"\")))))))","v":""},37,null,null,null,null,null,{"$f":"IF(I186=\"Almost Certain\",5,IF(I186=\"likely\",4,IF(I186=\"Possible\",3,IF(I186=\"Unlikely\",2,IF(I186=\"rare\",1,\"\")))))","v":""},null,{"$f":"IF(K186=\"Catastrophic\",5,IF(K186=\"Major\",4,IF(K186=\"Moderate\",3,IF(K186=\"Minor\",2,IF(K186=\"Insignificant\",1,\"\")))))","v":""},{"$f":"IF(L186=\"\",\"\",L186+J186)","v":""},{"$f":"IF(M186=\"\",\"\",IF(M186<5,\"Low\",IF(AND(M186>4,M186<7),\"Moderate\",IF(M186=7,\"High\",IF(M186>7,\"Extreme\",)))))","v":""},null,null,"A-181",null,null,"",null,"","",""]
[null,null,null,null,null,null,null,null,null,null,null,null,null,null,null,null,"A-182",null,null,"",null,"","",""]
[null,null,null,null,null,null,null,null,null,null,null,null,null,null,null,null,"A-183",null,null,"",null,"","",""]
[null,null,null,null,null,null,null,null,null,null,null,null,null,null,null,null,"A-184",null,null,"",null,"","",""]
[null,null,null,null,null,null,null,null,null,null,null,null,null,null,null,null,"A-185",null,null,"",null,"","",""]
[null,"R-38",{"$f":"IF(F191=\"Sea level rise and storm surge\",\"SL\",IF(F191=\"Increased flooding\",\"FL\",IF(F191=\"Increased rainfall variability\",\"RV\",IF(F191=\"Increased average temperature\",\"AT\",IF(F191=\"Increase in hot days\",\"HD\",IF(F191=\"Increased fire risk\",\"FR\",IF(F191=\"Increased atmospheric CO2\",\"AC\",\"\")))))))","v":""},38,null,null,null,null,null,{"$f":"IF(I191=\"Almost Certain\",5,IF(I191=\"likely\",4,IF(I191=\"Possible\",3,IF(I191=\"Unlikely\",2,IF(I191=\"rare\",1,\"\")))))","v":""},null,{"$f":"IF(K191=\"Catastrophic\",5,IF(K191=\"Major\",4,IF(K191=\"Moderate\",3,IF(K191=\"Minor\",2,IF(K191=\"Insignificant\",1,\"\")))))","v":""},{"$f":"IF(L191=\"\",\"\",L191+J191)","v":""},{"$f":"IF(M191=\"\",\"\",IF(M191<5,\"Low\",IF(AND(M191>4,M191<7),\"Moderate\",IF(M191=7,\"High\",IF(M191>7,\"Extreme\",)))))","v":""},null,null,"A-186",null,null,"",null,"","",""]
[null,null,null,null,null,null,null,null,null,null,null,null,null,null,null,null,"A-187",null,null,"",null,"","",""]
[null,null,null,null,null,null,null,null,null,null,null,null,null,null,null,null,"A-188",null,null,"",null,"","",""]
[null,null,null,null,null,null,null,null,null,null,null,null,null,null,null,null,"A-189",null,null,"",null,"","",""]
[null,null,null,null,null,null,null,null,null,null,null,null,null,null,null,null,"A-190",null,null,"",null,"","",""]
[null,"R-39",{"$f":"IF(F196=\"Sea level rise and storm surge\",\"SL\",IF(F196=\"Increased flooding\",\"FL\",IF(F196=\"Increased rainfall variability\",\"RV\",IF(F196=\"Increased average temperature\",\"AT\",IF(F196=\"Increase in hot days\",\"HD\",IF(F196=\"Increased fire risk\",\"FR\",IF(F196=\"Increased atmospheric CO2\",\"AC\",\"\")))))))","v":""},39,null,null,null,null,null,{"$f":"IF(I196=\"Almost Certain\",5,IF(I196=\"likely\",4,IF(I196=\"Possible\",3,IF(I196=\"Unlikely\",2,IF(I196=\"rare\",1,\"\")))))","v":""},null,{"$f":"IF(K196=\"Catastrophic\",5,IF(K196=\"Major\",4,IF(K196=\"Moderate\",3,IF(K196=\"Minor\",2,IF(K196=\"Insignificant\",1,\"\")))))","v":""},{"$f":"IF(L196=\"\",\"\",L196+J196)","v":""},{"$f":"IF(M196=\"\",\"\",IF(M196<5,\"Low\",IF(AND(M196>4,M196<7),\"Moderate\",IF(M196=7,\"High\",IF(M196>7,\"Extreme\",)))))","v":""},null,null,"A-191",null,null,"",null,"","",""]
[null,null,null,null,null,null,null,null,null,null,null,null,null,null,null,null,"A-192",null,null,"",null,"","",""]
[null,null,null,null,null,null,null,null,null,null,null,null,null,null,null,null,"A-193",null,null,"",null,"","",""]
[null,null,null,null,null,null,null,null,null,null,null,null,null,null,null,null,"A-194",null,null,"",null,"","",""]
[null,null,null,null,null,null,null,null,null,null,null,null,null,null,null,null,"A-195",null,null,"",null,{"$f":"IF(U200=\"Catastrophic\",5,IF(U200=\"Major\",4,IF(U200=\"Moderate\",3,IF(U200=\"Minor\",2,IF(U200=\"Insignificant\",1,\"\")))))","v":""},{"$f":"IF(V200=\"\",\"\",V200+T200)","v":""},{"$f":"IF(W200=\"\",\"\",IF(W200<5,\"Low\",IF(AND(W200>4,W200<7),\"Moderate\",IF(W200=7,\"High\",IF(W200>7,\"Extreme\",)))))","v":""}]
[null,"R-40",{"$f":"IF(F201=\"Sea level rise and storm surge\",\"SL\",IF(F201=\"Increased flooding\",\"FL\",IF(F201=\"Increased rainfall variability\",\"RV\",IF(F201=\"Increased average temperature\",\"AT\",IF(F201=\"Increase in hot days\",\"HD\",IF(F201=\"Increased fire risk\",\"FR\",IF(F201=\"Increased atmospheric CO2\",\"AC\",\"\")))))))","v":""},40,null,null,null,null,null,{"$f":"IF(I201=\"Almost Certain\",5,IF(I201=\"likely\",4,IF(I201=\"Possible\",3,IF(I201=\"Unlikely\",2,IF(I201=\"rare\",1,\"\")))))","v":""},null,{"$f":"IF(K201=\"Catastrophic\",5,IF(K201=\"Major\",4,IF(K201=\"Moderate\",3,IF(K201=\"Minor\",2,IF(K201=\"Insignificant\",1,\"\")))))","v":""},{"$f":"IF(L201=\"\",\"\",L201+J201)","v":""},{"$f":"IF(M201=\"\",\"\",IF(M201<5,\"Low\",IF(AND(M201>4,M201<7),\"Moderate\",IF(M201=7,\"High\",IF(M201>7,\"Extreme\",)))))","v":""},null,null,"A-196",null,null,"",null,"","",""]
[null,null,null,null,null,null,null,null,null,null,null,null,null,null,null,null,"A-197",null,null,"",null,"","",""]
[null,null,null,null,null,null,null,null,null,null,null,null,null,null,null,null,"A-198",null,null,"",null,"","",""]
[null,null,null,null,null,null,null,null,null,null,null,null,null,null,null,null,"A-199",null,null,"",null,"","",""]
[null,null,null,null,null,null,null,null,null,null,null,null,null,null,null,null,"A-200",null,null,"",null,"","",""]
[null,"R-41",{"$f":"IF(F206=\"Sea level rise and storm surge\",\"SL\",IF(F206=\"Increased flooding\",\"FL\",IF(F206=\"Increased rainfall variability\",\"RV\",IF(F206=\"Increased average temperature\",\"AT\",IF(F206=\"Increase in hot days\",\"HD\",IF(F206=\"Increased fire risk\",\"FR\",IF(F206=\"Increased atmospheric CO2\",\"AC\",\"\")))))))","v":""},41,null,null,null,null,null,{"$f":"IF(I206=\"Almost Certain\",5,IF(I206=\"likely\",4,IF(I206=\"Possible\",3,IF(I206=\"Unlikely\",2,IF(I206=\"rare\",1,\"\")))))","v":""},null,{"$f":"IF(K206=\"Catastrophic\",5,IF(K206=\"Major\",4,IF(K206=\"Moderate\",3,IF(K206=\"Minor\",2,IF(K206=\"Insignificant\",1,\"\")))))","v":""},{"$f":"IF(L206=\"\",\"\",L206+J206)","v":""},{"$f":"IF(M206=\"\",\"\",IF(M206<5,\"Low\",IF(AND(M206>4,M206<7),\"Moderate\",IF(M206=7,\"High\",IF(M206>7,\"Extreme\",)))))","v":""},null,null,"A-201",null,null,"",null,"","",""]
[null,null,null,null,null,null,null,null,null,null,null,null,null,null,null,null,"A-202",null,null,"",null,"","",""]
[null,null,null,null,null,null,null,null,null,null,null,null,null,null,null,null,"A-203",null,null,"",null,"","",""]
[null,null,null,null,null,null,null,null,null,null,null,null,null,null,null,null,"A-204",null,null,"",null,"","",""]
[null,null,null,null,null,null,null,null,null,null,null,null,null,null,null,null,"A-205",null,null,"",null,"","",""]
[null,"R-42",{"$f":"IF(F211=\"Sea level rise and storm surge\",\"SL\",IF(F211=\"Increased flooding\",\"FL\",IF(F211=\"Increased rainfall variability\",\"RV\",IF(F211=\"Increased average temperature\",\"AT\",IF(F211=\"Increase in hot days\",\"HD\",IF(F211=\"Increased fire risk\",\"FR\",IF(F211=\"Increased atmospheric CO2\",\"AC\",\"\")))))))","v":""},42,null,null,null,null,null,{"$f":"IF(I211=\"Almost Certain\",5,IF(I211=\"likely\",4,IF(I211=\"Possible\",3,IF(I211=\"Unlikely\",2,IF(I211=\"rare\",1,\"\")))))","v":""},null,{"$f":"IF(K211=\"Catastrophic\",5,IF(K211=\"Major\",4,IF(K211=\"Moderate\",3,IF(K211=\"Minor\",2,IF(K211=\"Insignificant\",1,\"\")))))","v":""},{"$f":"IF(L211=\"\",\"\",L211+J211)","v":""},{"$f":"IF(M211=\"\",\"\",IF(M211<5,\"Low\",IF(AND(M211>4,M211<7),\"Moderate\",IF(M211=7,\"High\",IF(M211>7,\"Extreme\",)))))","v":""},null,null,"A-206",null,null,"",null,"","",""]
[null,null,null,null,null,null,null,null,null,null,null,null,null,null,null,null,"A-207",null,null,"",null,"","",""]
[null,null,null,null,null,null,null,null,null,null,null,null,null,null,null,null,"A-208",null,null,"",null,"","",""]
[null,null,null,null,null,null,null,null,null,null,null,null,null,null,null,null,"A-209",null,null,{"$f":"IF(S214=\"Almost Certain\",5,IF(S214=\"likely\",4,IF(S214=\"Possible\",3,IF(S214=\"Unlikely\",2,IF(S214=\"rare\",1,\"\")))))","v":""},null,"","",""]
[null,null,null,null,null,null,null,null,null,null,null,null,null,null,null,null,"A-210",null,null,"",null,"","",""]
[null,"R-43",{"$f":"IF(F216=\"Sea level rise and storm surge\",\"SL\",IF(F216=\"Increased flooding\",\"FL\",IF(F216=\"Increased rainfall variability\",\"RV\",IF(F216=\"Increased average temperature\",\"AT\",IF(F216=\"Increase in hot days\",\"HD\",IF(F216=\"Increased fire risk\",\"FR\",IF(F216=\"Increased atmospheric CO2\",\"AC\",\"\")))))))","v":""},43,null,null,null,null,null,{"$f":"IF(I216=\"Almost Certain\",5,IF(I216=\"likely\",4,IF(I216=\"Possible\",3,IF(I216=\"Unlikely\",2,IF(I216=\"rare\",1,\"\")))))","v":""},null,{"$f":"IF(K216=\"Catastrophic\",5,IF(K216=\"Major\",4,IF(K216=\"Moderate\",3,IF(K216=\"Minor\",2,IF(K216=\"Insignificant\",1,\"\")))))","v":""},{"$f":"IF(L216=\"\",\"\",L216+J216)","v":""},{"$f":"IF(M216=\"\",\"\",IF(M216<5,\"Low\",IF(AND(M216>4,M216<7),\"Moderate\",IF(M216=7,\"High\",IF(M216>7,\"Extreme\",)))))","v":""},null,null,"A-211",null,null,"",null,"","",""]
[null,null,null,null,null,null,null,null,null,null,null,null,null,null,null,null,"A-212",null,null,"",null,"","",""]
[null,null,null,null,null,null,null,null,null,null,null,null,null,null,null,null,"A-213",null,null,"",null,"","",""]
[null,null,null,null,null,null,null,null,null,null,null,null,null,null,null,null,"A-214",null,null,"",null,"","",""]
[null,null,null,null,null,null,null,null,null,null,null,null,null,null,null,null,"A-215",null,null,"",null,"","",""]
[null,"R-44",{"$f":"IF(F221=\"Sea level rise and storm surge\",\"SL\",IF(F221=\"Increased flooding\",\"FL\",IF(F221=\"Increased rainfall variability\",\"RV\",IF(F221=\"Increased average temperature\",\"AT\",IF(F221=\"Increase in hot days\",\"HD\",IF(F221=\"Increased fire risk\",\"FR\",IF(F221=\"Increased atmospheric CO2\",\"AC\",\"\")))))))","v":""},44,null,null,null,null,null,{"$f":"IF(I221=\"Almost Certain\",5,IF(I221=\"likely\",4,IF(I221=\"Possible\",3,IF(I221=\"Unlikely\",2,IF(I221=\"rare\",1,\"\")))))","v":""},null,{"$f":"IF(K221=\"Catastrophic\",5,IF(K221=\"Major\",4,IF(K221=\"Moderate\",3,IF(K221=\"Minor\",2,IF(K221=\"Insignificant\",1,\"\")))))","v":""},{"$f":"IF(L221=\"\",\"\",L221+J221)","v":""},{"$f":"IF(M221=\"\",\"\",IF(M221<5,\"Low\",IF(AND(M221>4,M221<7),\"Moderate\",IF(M221=7,\"High\",IF(M221>7,\"Extreme\",)))))","v":""},null,null,"A-216",null,null,"",null,"","",""]
[null,null,null,null,null,null,null,null,null,null,null,null,null,null,null,null,"A-217",null,null,"",null,"","",""]
[null,null,null,null,null,null,null,null,null,null,null,null,null,null,null,null,"A-218",null,null,"",null,"","",""]
[null,null,null,null,null,null,null,null,null,null,null,null,null,null,null,null,"A-219",null,null,"",null,"","",""]
[null,null,null,null,null,null,null,null,null,null,null,null,null,null,null,null,"A-220",null,null,"",null,"","",""]
[null,"R-45",{"$f":"IF(F226=\"Sea level rise and storm surge\",\"SL\",IF(F226=\"Increased flooding\",\"FL\",IF(F226=\"Increased rainfall variability\",\"RV\",IF(F226=\"Increased average temperature\",\"AT\",IF(F226=\"Increase in hot days\",\"HD\",IF(F226=\"Increased fire risk\",\"FR\",IF(F226=\"Increased atmospheric CO2\",\"AC\",\"\")))))))","v":""},45,null,null,null,null,null,{"$f":"IF(I226=\"Almost Certain\",5,IF(I226=\"likely\",4,IF(I226=\"Possible\",3,IF(I226=\"Unlikely\",2,IF(I226=\"rare\",1,\"\")))))","v":""},null,{"$f":"IF(K226=\"Catastrophic\",5,IF(K226=\"Major\",4,IF(K226=\"Moderate\",3,IF(K226=\"Minor\",2,IF(K226=\"Insignificant\",1,\"\")))))","v":""},{"$f":"IF(L226=\"\",\"\",L226+J226)","v":""},{"$f":"IF(M226=\"\",\"\",IF(M226<5,\"Low\",IF(AND(M226>4,M226<7),\"Moderate\",IF(M226=7,\"High\",IF(M226>7,\"Extreme\",)))))","v":""},null,null,"A-221",null,null,"",null,"","",""]
[null,null,null,null,null,null,null,null,null,null,null,null,null,null,null,null,"A-222",null,null,"",null,"","",""]
[null,null,null,null,null,null,null,null,null,null,null,null,null,null,null,null,"A-223",null,null,"",null,"","",""]
[null,null,null,null,null,null,null,null,null,null,null,null,null,null,null,null,"A-224",null,null,"",null,"","",""]
[null,null,null,null,null,null,null,null,null,null,null,null,null,null,null,null,"A-225",null,null,"",null,"","",""]
[null,"R-46",{"$f":"IF(F231=\"Sea level rise and storm surge\",\"SL\",IF(F231=\"Increased flooding\",\"FL\",IF(F231=\"Increased rainfall variability\",\"RV\",IF(F231=\"Increased average temperature\",\"AT\",IF(F231=\"Increase in hot days\",\"HD\",IF(F231=\"Increased fire risk\",\"FR\",IF(F231=\"Increased atmospheric CO2\",\"AC\",\"\")))))))","v":""},46,null,null,null,null,null,{"$f":"IF(I231=\"Almost Certain\",5,IF(I231=\"likely\",4,IF(I231=\"Possible\",3,IF(I231=\"Unlikely\",2,IF(I231=\"rare\",1,\"\")))))","v":""},null,{"$f":"IF(K231=\"Catastrophic\",5,IF(K231=\"Major\",4,IF(K231=\"Moderate\",3,IF(K231=\"Minor\",2,IF(K231=\"Insignificant\",1,\"\")))))","v":""},{"$f":"IF(L231=\"\",\"\",L231+J231)","v":""},{"$f":"IF(M231=\"\",\"\",IF(M231<5,\"Low\",IF(AND(M231>4,M231<7),\"Moderate\",IF(M231=7,\"High\",IF(M231>7,\"Extreme\",)))))","v":""},null,null,"A-226",null,null,"",null,"","",""]
[null,null,null,null,null,null,null,null,null,null,null,null,null,null,null,null,"A-227",null,null,"",null,"","",""]
[null,null,null,null,null,null,null,null,null,null,null,null,null,null,null,null,"A-228",null,null,"",null,"","",""]
[null,null,null,null,null,null,null,null,null,null,null,null,null,null,null,null,"A-229",null,null,"",null,"","",""]
[null,null,null,null,null,null,null,null,null,null,null,null,null,null,null,null,"A-230",null,null,"",null,"","",""]
[null,"R-47",{"$f":"IF(F236=\"Sea level rise and storm surge\",\"SL\",IF(F236=\"Increased flooding\",\"FL\",IF(F236=\"Increased rainfall variability\",\"RV\",IF(F236=\"Increased average temperature\",\"AT\",IF(F236=\"Increase in hot days\",\"HD\",IF(F236=\"Increased fire risk\",\"FR\",IF(F236=\"Increased atmospheric CO2\",\"AC\",\"\")))))))","v":""},47,null,null,null,null,null,{"$f":"IF(I236=\"Almost Certain\",5,IF(I236=\"likely\",4,IF(I236=\"Possible\",3,IF(I236=\"Unlikely\",2,IF(I236=\"rare\",1,\"\")))))","v":""},null,{"$f":"IF(K236=\"Catastrophic\",5,IF(K236=\"Major\",4,IF(K236=\"Moderate\",3,IF(K236=\"Minor\",2,IF(K236=\"Insignificant\",1,\"\")))))","v":""},{"$f":"IF(L236=\"\",\"\",L236+J236)","v":""},{"$f":"IF(M236=\"\",\"\",IF(M236<5,\"Low\",IF(AND(M236>4,M236<7),\"Moderate\",IF(M236=7,\"High\",IF(M236>7,\"Extreme\",)))))","v":""},null,null,"A-231",null,null,"",null,"","",""]
[null,null,null,null,null,null,null,null,null,null,null,null,null,null,null,null,"A-232",null,null,"",null,"","",""]
[null,null,null,null,null,null,null,null,null,null,null,null,null,null,null,null,"A-233",null,null,"",null,"","",""]
[null,null,null,null,null,null,null,null,null,null,null,null,null,null,null,null,"A-234",null,null,"",null,"","",""]
[null,null,null,null,null,null,null,null,null,null,null,null,null,null,null,null,"A-235",null,null,"",null,"","",""]
[null,"R-48",{"$f":"IF(F241=\"Sea level rise and storm surge\",\"SL\",IF(F241=\"Increased flooding\",\"FL\",IF(F241=\"Increased rainfall variability\",\"RV\",IF(F241=\"Increased average temperature\",\"AT\",IF(F241=\"Increase in hot days\",\"HD\",IF(F241=\"Increased fire risk\",\"FR\",IF(F241=\"Increased atmospheric CO2\",\"AC\",\"\")))))))","v":""},48,null,null,null,null,null,{"$f":"IF(I241=\"Almost Certain\",5,IF(I241=\"likely\",4,IF(I241=\"Possible\",3,IF(I241=\"Unlikely\",2,IF(I241=\"rare\",1,\"\")))))","v":""},null,{"$f":"IF(K241=\"Catastrophic\",5,IF(K241=\"Major\",4,IF(K241=\"Moderate\",3,IF(K241=\"Minor\",2,IF(K241=\"Insignificant\",1,\"\")))))","v":""},{"$f":"IF(L241=\"\",\"\",L241+J241)","v":""},{"$f":"IF(M241=\"\",\"\",IF(M241<5,\"Low\",IF(AND(M241>4,M241<7),\"Moderate\",IF(M241=7,\"High\",IF(M241>7,\"Extreme\",)))))","v":""},null,null,"A-236",null,null,"",null,"","",""]
[null,null,null,null,null,null,null,null,null,null,null,null,null,null,null,null,"A-237",null,null,"",null,"","",""]
[null,null,null,null,null,null,null,null,null,null,null,null,null,null,null,null,"A-238",null,null,"",null,"","",""]
[null,null,null,null,null,null,null,null,null,null,null,null,null,null,null,null,"A-239",null,null,"",null,"","",""]
[null,null,null,null,null,null,null,null,null,null,null,null,null,null,null,null,"A-240",null,null,"",null,"","",""]
[null,"R-49",{"$f":"IF(F246=\"Sea level rise and storm surge\",\"SL\",IF(F246=\"Increased flooding\",\"FL\",IF(F246=\"Increased rainfall variability\",\"RV\",IF(F246=\"Increased average temperature\",\"AT\",IF(F246=\"Increase in hot days\",\"HD\",IF(F246=\"Increased fire risk\",\"FR\",IF(F246=\"Increased atmospheric CO2\",\"AC\",\"\")))))))","v":""},49,null,null,null,null,null,{"$f":"IF(I246=\"Almost Certain\",5,IF(I246=\"likely\",4,IF(I246=\"Possible\",3,IF(I246=\"Unlikely\",2,IF(I246=\"rare\",1,\"\")))))","v":""},null,{"$f":"IF(K246=\"Catastrophic\",5,IF(K246=\"Major\",4,IF(K246=\"Moderate\",3,IF(K246=\"Minor\",2,IF(K246=\"Insignificant\",1,\"\")))))","v":""},{"$f":"IF(L246=\"\",\"\",L246+J246)","v":""},{"$f":"IF(M246=\"\",\"\",IF(M246<5,\"Low\",IF(AND(M246>4,M246<7),\"Moderate\",IF(M246=7,\"High\",IF(M246>7,\"Extreme\",)))))","v":""},null,null,"A-241",null,null,"",null,"","",""]
[null,null,null,null,null,null,null,null,null,null,null,null,null,null,null,null,"A-242",null,null,"",null,"","",""]
[null,null,null,null,null,null,null,null,null,null,null,null,null,null,null,null,"A-243",null,null,"",null,"","",""]
[null,null,null,null,null,null,null,null,null,null,null,null,null,null,null,null,"A-244",null,null,"",null,"","",""]
[null,null,null,null,null,null,null,null,null,null,null,null,null,null,null,null,"A-245",null,null,"",null,"","",""]
[null,"R-50",{"$f":"IF(F251=\"Sea level rise and storm surge\",\"SL\",IF(F251=\"Increased flooding\",\"FL\",IF(F251=\"Increased rainfall variability\",\"RV\",IF(F251=\"Increased average temperature\",\"AT\",IF(F251=\"Increase in hot days\",\"HD\",IF(F251=\"Increased fire risk\",\"FR\",IF(F251=\"Increased atmospheric CO2\",\"AC\",\"\")))))))","v":""},50,null,null,null,null,null,{"$f":"IF(I251=\"Almost Certain\",5,IF(I251=\"likely\",4,IF(I251=\"Possible\",3,IF(I251=\"Unlikely\",2,IF(I251=\"rare\",1,\"\")))))","v":""},null,{"$f":"IF(K251=\"Catastrophic\",5,IF(K251=\"Major\",4,IF(K251=\"Moderate\",3,IF(K251=\"Minor\",2,IF(K251=\"Insignificant\",1,\"\")))))","v":""},{"$f":"IF(L251=\"\",\"\",L251+J251)","v":""},{"$f":"IF(M251=\"\",\"\",IF(M251<5,\"Low\",IF(AND(M251>4,M251<7),\"Moderate\",IF(M251=7,\"High\",IF(M251>7,\"Extreme\",)))))","v":""},null,null,"A-246",null,null,"",null,"","",""]
[null,null,null,null,null,null,null,null,null,null,null,null,null,null,null,null,"A-247",null,null,"",null,"","",""]
[null,null,null,null,null,null,null,null,null,null,null,null,null,null,null,null,"A-248",null,null,"",null,"","",""]
[null,null,null,null,null,null,null,null,null,null,null,null,null,null,null,null,"A-249",null,null,"",null,"","",""]
[null,null,null,null,null,null,null,null,null,null,null,null,null,null,null,null,"A-250",null,null,"",null,"","",""]
[null,"R-51",{"$f":"IF(F256=\"Sea level rise and storm surge\",\"SL\",IF(F256=\"Increased flooding\",\"FL\",IF(F256=\"Increased rainfall variability\",\"RV\",IF(F256=\"Increased average temperature\",\"AT\",IF(F256=\"Increase in hot days\",\"HD\",IF(F256=\"Increased fire risk\",\"FR\",IF(F256=\"Increased atmospheric CO2\",\"AC\",\"\")))))))","v":""},51,null,null,null,null,null,{"$f":"IF(I256=\"Almost Certain\",5,IF(I256=\"likely\",4,IF(I256=\"Possible\",3,IF(I256=\"Unlikely\",2,IF(I256=\"rare\",1,\"\")))))","v":""},null,{"$f":"IF(K256=\"Catastrophic\",5,IF(K256=\"Major\",4,IF(K256=\"Moderate\",3,IF(K256=\"Minor\",2,IF(K256=\"Insignificant\",1,\"\")))))","v":""},{"$f":"IF(L256=\"\",\"\",L256+J256)","v":""},{"$f":"IF(M256=\"\",\"\",IF(M256<5,\"Low\",IF(AND(M256>4,M256<7),\"Moderate\",IF(M256=7,\"High\",IF(M256>7,\"Extreme\",)))))","v":""},null,null,"A-251",null,null,"",null,"","",""]
[null,null,null,null,null,null,null,null,null,null,null,null,null,null,null,null,"A-252",null,null,"",null,"","",""]
[null,null,null,null,null,null,null,null,null,null,null,null,null,null,null,null,"A-253",null,null,"",null,"","",""]
[null,null,null,null,null,null,null,null,null,null,null,null,null,null,null,null,"A-254",null,null,"",null,"","",""]
[null,null,null,null,null,null,null,null,null,null,null,null,null,null,null,null,"A-255",null,null,"",null,"","",""]
[null,"R-52",{"$f":"IF(F261=\"Sea level rise and storm surge\",\"SL\",IF(F261=\"Increased flooding\",\"FL\",IF(F261=\"Increased rainfall variability\",\"RV\",IF(F261=\"Increased average temperature\",\"AT\",IF(F261=\"Increase in hot days\",\"HD\",IF(F261=\"Increased fire risk\",\"FR\",IF(F261=\"Increased atmospheric CO2\",\"AC\",\"\")))))))","v":""},52,null,null,null,null,null,{"$f":"IF(I261=\"Almost Certain\",5,IF(I261=\"likely\",4,IF(I261=\"Possible\",3,IF(I261=\"Unlikely\",2,IF(I261=\"rare\",1,\"\")))))","v":""},null,{"$f":"IF(K261=\"Catastrophic\",5,IF(K261=\"Major\",4,IF(K261=\"Moderate\",3,IF(K261=\"Minor\",2,IF(K261=\"Insignificant\",1,\"\")))))","v":""},{"$f":"IF(L261=\"\",\"\",L261+J261)","v":""},{"$f":"IF(M261=\"\",\"\",IF(M261<5,\"Low\",IF(AND(M261>4,M261<7),\"Moderate\",IF(M261=7,\"High\",IF(M261>7,\"Extreme\",)))))","v":""},null,null,"A-256",null,null,"",null,"","",""]
[null,null,null,null,null,null,null,null,null,null,null,null,null,null,null,null,"A-257",null,null,"",null,"","",""]
[null,null,null,null,null,null,null,null,null,null,null,null,null,null,null,null,"A-258",null,null,"",null,"","",""]
[null,null,null,null,null,null,null,null,null,null,null,null,null,null,null,null,"A-259",null,null,"",null,{"$f":"IF(U264=\"Catastrophic\",5,IF(U264=\"Major\",4,IF(U264=\"Moderate\",3,IF(U264=\"Minor\",2,IF(U264=\"Insignificant\",1,\"\")))))","v":""},{"$f":"IF(V264=\"\",\"\",V264+T264)","v":""},{"$f":"IF(W264=\"\",\"\",IF(W264<5,\"Low\",IF(AND(W264>4,W264<7),\"Moderate\",IF(W264=7,\"High\",IF(W264>7,\"Extreme\",)))))","v":""}]
[null,null,null,null,null,null,null,null,null,null,null,null,null,null,null,null,"A-260",null,null,"",null,"","",""]
[null,"R-53",{"$f":"IF(F266=\"Sea level rise and storm surge\",\"SL\",IF(F266=\"Increased flooding\",\"FL\",IF(F266=\"Increased rainfall variability\",\"RV\",IF(F266=\"Increased average temperature\",\"AT\",IF(F266=\"Increase in hot days\",\"HD\",IF(F266=\"Increased fire risk\",\"FR\",IF(F266=\"Increased atmospheric CO2\",\"AC\",\"\")))))))","v":""},53,null,null,null,null,null,{"$f":"IF(I266=\"Almost Certain\",5,IF(I266=\"likely\",4,IF(I266=\"Possible\",3,IF(I266=\"Unlikely\",2,IF(I266=\"rare\",1,\"\")))))","v":""},null,{"$f":"IF(K266=\"Catastrophic\",5,IF(K266=\"Major\",4,IF(K266=\"Moderate\",3,IF(K266=\"Minor\",2,IF(K266=\"Insignificant\",1,\"\")))))","v":""},{"$f":"IF(L266=\"\",\"\",L266+J266)","v":""},{"$f":"IF(M266=\"\",\"\",IF(M266<5,\"Low\",IF(AND(M266>4,M266<7),\"Moderate\",IF(M266=7,\"High\",IF(M266>7,\"Extreme\",)))))","v":""},null,null,"A-261",null,null,"",null,"","",""]
[null,null,null,null,null,null,null,null,null,null,null,null,null,null,null,null,"A-262",null,null,"",null,"","",""]
[null,null,null,null,null,null,null,null,null,null,null,null,null,null,null,null,"A-263",null,null,"",null,"","",""]
[null,null,null,null,null,null,null,null,null,null,null,null,null,null,null,null,"A-264",null,null,"",null,"","",""]
[null,null,null,null,null,null,null,null,null,null,null,null,null,null,null,null,"A-265",null,null,"",null,"","",""]
[null,"R-54",{"$f":"IF(F271=\"Sea level rise and storm surge\",\"SL\",IF(F271=\"Increased flooding\",\"FL\",IF(F271=\"Increased rainfall variability\",\"RV\",IF(F271=\"Increased average temperature\",\"AT\",IF(F271=\"Increase in hot days\",\"HD\",IF(F271=\"Increased fire risk\",\"FR\",IF(F271=\"Increased atmospheric CO2\",\"AC\",\"\")))))))","v":""},54,null,null,null,null,null,{"$f":"IF(I271=\"Almost Certain\",5,IF(I271=\"likely\",4,IF(I271=\"Possible\",3,IF(I271=\"Unlikely\",2,IF(I271=\"rare\",1,\"\")))))","v":""},null,{"$f":"IF(K271=\"Catastrophic\",5,IF(K271=\"Major\",4,IF(K271=\"Moderate\",3,IF(K271=\"Minor\",2,IF(K271=\"Insignificant\",1,\"\")))))","v":""},{"$f":"IF(L271=\"\",\"\",L271+J271)","v":""},{"$f":"IF(M271=\"\",\"\",IF(M271<5,\"Low\",IF(AND(M271>4,M271<7),\"Moderate\",IF(M271=7,\"High\",IF(M271>7,\"Extreme\",)))))","v":""},null,null,"A-266",null,null,"",null,"","",""]
[null,null,null,null,null,null,null,null,null,null,null,null,null,null,null,null,"A-267",null,null,"",null,"","",""]
[null,null,null,null,null,null,null,null,null,null,null,null,null,null,null,null,"A-268",null,null,"",null,"","",""]
[null,null,null,null,null,null,null,null,null,null,null,null,null,null,null,null,"A-269",null,null,"",null,"","",""]
[null,null,null,null,null,null,null,null,null,null,null,null,null,null,null,null,"A-270",null,null,"",null,"","",""]
[null,"R-55",{"$f":"IF(F276=\"Sea level rise and storm surge\",\"SL\",IF(F276=\"Increased flooding\",\"FL\",IF(F276=\"Increased rainfall variability\",\"RV\",IF(F276=\"Increased average temperature\",\"AT\",IF(F276=\"Increase in hot days\",\"HD\",IF(F276=\"Increased fire risk\",\"FR\",IF(F276=\"Increased atmospheric CO2\",\"AC\",\"\")))))))","v":""},55,null,null,null,null,null,{"$f":"IF(I276=\"Almost Certain\",5,IF(I276=\"likely\",4,IF(I276=\"Possible\",3,IF(I276=\"Unlikely\",2,IF(I276=\"rare\",1,\"\")))))","v":""},null,{"$f":"IF(K276=\"Catastrophic\",5,IF(K276=\"Major\",4,IF(K276=\"Moderate\",3,IF(K276=\"Minor\",2,IF(K276=\"Insignificant\",1,\"\")))))","v":""},{"$f":"IF(L276=\"\",\"\",L276+J276)","v":""},{"$f":"IF(M276=\"\",\"\",IF(M276<5,\"Low\",IF(AND(M276>4,M276<7),\"Moderate\",IF(M276=7,\"High\",IF(M276>7,\"Extreme\",)))))","v":""},null,null,"A-271",null,null,"",null,"","",""]
[null,null,null,null,null,null,null,null,null,null,null,null,null,null,null,null,"A-272",null,null,"",null,"","",""]
[null,null,null,null,null,null,null,null,null,null,null,null,null,null,null,null,"A-273",null,null,{"$f":"IF(S278=\"Almost Certain\",5,IF(S278=\"likely\",4,IF(S278=\"Possible\",3,IF(S278=\"Unlikely\",2,IF(S278=\"rare\",1,\"\")))))","v":""},null,"","",""]
[null,null,null,null,null,null,null,null,null,null,null,null,null,null,null,null,"A-274",null,null,"",null,"","",""]
[null,null,null,null,null,null,null,null,null,null,null,null,null,null,null,null,"A-275",null,null,"",null,"","",""]
[null,"R-56",{"$f":"IF(F281=\"Sea level rise and storm surge\",\"SL\",IF(F281=\"Increased flooding\",\"FL\",IF(F281=\"Increased rainfall variability\",\"RV\",IF(F281=\"Increased average temperature\",\"AT\",IF(F281=\"Increase in hot days\",\"HD\",IF(F281=\"Increased fire risk\",\"FR\",IF(F281=\"Increased atmospheric CO2\",\"AC\",\"\")))))))","v":""},56,null,null,null,null,null,{"$f":"IF(I281=\"Almost Certain\",5,IF(I281=\"likely\",4,IF(I281=\"Possible\",3,IF(I281=\"Unlikely\",2,IF(I281=\"rare\",1,\"\")))))","v":""},null,{"$f":"IF(K281=\"Catastrophic\",5,IF(K281=\"Major\",4,IF(K281=\"Moderate\",3,IF(K281=\"Minor\",2,IF(K281=\"Insignificant\",1,\"\")))))","v":""},{"$f":"IF(L281=\"\",\"\",L281+J281)","v":""},{"$f":"IF(M281=\"\",\"\",IF(M281<5,\"Low\",IF(AND(M281>4,M281<7),\"Moderate\",IF(M281=7,\"High\",IF(M281>7,\"Extreme\",)))))","v":""},null,null,"A-276",null,null,"",null,"","",""]
[null,null,null,null,null,null,null,null,null,null,null,null,null,null,null,null,"A-277",null,null,"",null,"","",""]
[null,null,null,null,null,null,null,null,null,null,null,null,null,null,null,null,"A-278",null,null,"",null,"","",""]
[null,null,null,null,null,null,null,null,null,null,null,null,null,null,null,null,"A-279",null,null,"",null,"","",""]
[null,null,null,null,null,null,null,null,null,null,null,null,null,null,null,null,"A-280",null,null,"",null,"","",""]
[null,"R-57",{"$f":"IF(F286=\"Sea level rise and storm surge\",\"SL\",IF(F286=\"Increased flooding\",\"FL\",IF(F286=\"Increased rainfall variability\",\"RV\",IF(F286=\"Increased average temperature\",\"AT\",IF(F286=\"Increase in hot days\",\"HD\",IF(F286=\"Increased fire risk\",\"FR\",IF(F286=\"Increased atmospheric CO2\",\"AC\",\"\")))))))","v":""},57,null,null,null,null,null,{"$f":"IF(I286=\"Almost Certain\",5,IF(I286=\"likely\",4,IF(I286=\"Possible\",3,IF(I286=\"Unlikely\",2,IF(I286=\"rare\",1,\"\")))))","v":""},null,{"$f":"IF(K286=\"Catastrophic\",5,IF(K286=\"Major\",4,IF(K286=\"Moderate\",3,IF(K286=\"Minor\",2,IF(K286=\"Insignificant\",1,\"\")))))","v":""},{"$f":"IF(L286=\"\",\"\",L286+J286)","v":""},{"$f":"IF(M286=\"\",\"\",IF(M286<5,\"Low\",IF(AND(M286>4,M286<7),\"Moderate\",IF(M286=7,\"High\",IF(M286>7,\"Extreme\",)))))","v":""},null,null,"A-281",null,null,"",null,"","",""]
[null,null,null,null,null,null,null,null,null,null,null,null,null,null,null,null,"A-282",null,null,"",null,"","",""]
[null,null,null,null,null,null,null,null,null,null,null,null,null,null,null,null,"A-283",null,null,"",null,"","",""]
[null,null,null,null,null,null,null,null,null,null,null,null,null,null,null,null,"A-284",null,null,"",null,"","",""]
[null,null,null,null,null,null,null,null,null,null,null,null,null,null,null,null,"A-285",null,null,"",null,"","",""]
[null,"R-58",{"$f":"IF(F291=\"Sea level rise and storm surge\",\"SL\",IF(F291=\"Increased flooding\",\"FL\",IF(F291=\"Increased rainfall variability\",\"RV\",IF(F291=\"Increased average temperature\",\"AT\",IF(F291=\"Increase in hot days\",\"HD\",IF(F291=\"Increased fire risk\",\"FR\",IF(F291=\"Increased atmospheric CO2\",\"AC\",\"\")))))))","v":""},58,null,null,null,null,null,{"$f":"IF(I291=\"Almost Certain\",5,IF(I291=\"likely\",4,IF(I291=\"Possible\",3,IF(I291=\"Unlikely\",2,IF(I291=\"rare\",1,\"\")))))","v":""},null,{"$f":"IF(K291=\"Catastrophic\",5,IF(K291=\"Major\",4,IF(K291=\"Moderate\",3,IF(K291=\"Minor\",2,IF(K291=\"Insignificant\",1,\"\")))))","v":""},{"$f":"IF(L291=\"\",\"\",L291+J291)","v":""},{"$f":"IF(M291=\"\",\"\",IF(M291<5,\"Low\",IF(AND(M291>4,M291<7),\"Moderate\",IF(M291=7,\"High\",IF(M291>7,\"Extreme\",)))))","v":""},null,null,"A-286",null,null,"",null,"","",""]
[null,null,null,null,null,null,null,null,null,null,null,null,null,null,null,null,"A-287",null,null,"",null,"","",""]
[null,null,null,null,null,null,null,null,null,null,null,null,null,null,null,null,"A-288",null,null,"",null,"","",""]
[null,null,null,null,null,null,null,null,null,null,null,null,null,null,null,null,"A-289",null,null,"",null,"","",""]
[null,null,null,null,null,null,null,null,null,null,null,null,null,null,null,null,"A-290",null,null,"",null,"","",""]
[null,"R-59",{"$f":"IF(F296=\"Sea level rise and storm surge\",\"SL\",IF(F296=\"Increased flooding\",\"FL\",IF(F296=\"Increased rainfall variability\",\"RV\",IF(F296=\"Increased average temperature\",\"AT\",IF(F296=\"Increase in hot days\",\"HD\",IF(F296=\"Increased fire risk\",\"FR\",IF(F296=\"Increased atmospheric CO2\",\"AC\",\"\")))))))","v":""},59,null,null,null,null,null,{"$f":"IF(I296=\"Almost Certain\",5,IF(I296=\"likely\",4,IF(I296=\"Possible\",3,IF(I296=\"Unlikely\",2,IF(I296=\"rare\",1,\"\")))))","v":""},null,{"$f":"IF(K296=\"Catastrophic\",5,IF(K296=\"Major\",4,IF(K296=\"Moderate\",3,IF(K296=\"Minor\",2,IF(K296=\"Insignificant\",1,\"\")))))","v":""},{"$f":"IF(L296=\"\",\"\",L296+J296)","v":""},{"$f":"IF(M296=\"\",\"\",IF(M296<5,\"Low\",IF(AND(M296>4,M296<7),\"Moderate\",IF(M296=7,\"High\",IF(M296>7,\"Extreme\",)))))","v":""},null,null,"A-291",null,null,"",null,"","",""]
[null,null,null,null,null,null,null,null,null,null,null,null,null,null,null,null,"A-292",null,null,"",null,"","",""]
[null,null,null,null,null,null,null,null,null,null,null,null,null,null,null,null,"A-293",null,null,"",null,"","",""]
[null,null,null,null,null,null,null,null,null,null,null,null,null,null,null,null,"A-294",null,null,"",null,"","",""]
[null,null,null,null,null,null,null,null,null,null,null,null,null,null,null,null,"A-295",null,null,"",null,"","",""]
[null,"R-60",{"$f":"IF(F301=\"Sea level rise and storm surge\",\"SL\",IF(F301=\"Increased flooding\",\"FL\",IF(F301=\"Increased rainfall variability\",\"RV\",IF(F301=\"Increased average temperature\",\"AT\",IF(F301=\"Increase in hot days\",\"HD\",IF(F301=\"Increased fire risk\",\"FR\",IF(F301=\"Increased atmospheric CO2\",\"AC\",\"\")))))))","v":""},60,null,null,null,null,null,{"$f":"IF(I301=\"Almost Certain\",5,IF(I301=\"likely\",4,IF(I301=\"Possible\",3,IF(I301=\"Unlikely\",2,IF(I301=\"rare\",1,\"\")))))","v":""},null,{"$f":"IF(K301=\"Catastrophic\",5,IF(K301=\"Major\",4,IF(K301=\"Moderate\",3,IF(K301=\"Minor\",2,IF(K301=\"Insignificant\",1,\"\")))))","v":""},{"$f":"IF(L301=\"\",\"\",L301+J301)","v":""},{"$f":"IF(M301=\"\",\"\",IF(M301<5,\"Low\",IF(AND(M301>4,M301<7),\"Moderate\",IF(M301=7,\"High\",IF(M301>7,\"Extreme\",)))))","v":""},null,null,"A-296",null,null,"",null,"","",""]
[null,null,null,null,null,null,null,null,null,null,null,null,null,null,null,null,"A-297",null,null,"",null,"","",""]
[null,null,null,null,null,null,null,null,null,null,null,null,null,null,null,null,"A-298",null,null,"",null,"","",""]
[null,null,null,null,null,null,null,null,null,null,null,null,null,null,null,null,"A-299",null,null,"",null,"","",""]
[null,null,null,null,null,null,null,null,null,null,null,null,null,null,null,null,"A-300",null,null,"",null,"","",""]
[null,"R-61",{"$f":"IF(F306=\"Sea level rise and storm surge\",\"SL\",IF(F306=\"Increased flooding\",\"FL\",IF(F306=\"Increased rainfall variability\",\"RV\",IF(F306=\"Increased average temperature\",\"AT\",IF(F306=\"Increase in hot days\",\"HD\",IF(F306=\"Increased fire risk\",\"FR\",IF(F306=\"Increased atmospheric CO2\",\"AC\",\"\")))))))","v":""},61,null,null,null,null,null,{"$f":"IF(I306=\"Almost Certain\",5,IF(I306=\"likely\",4,IF(I306=\"Possible\",3,IF(I306=\"Unlikely\",2,IF(I306=\"rare\",1,\"\")))))","v":""},null,{"$f":"IF(K306=\"Catastrophic\",5,IF(K306=\"Major\",4,IF(K306=\"Moderate\",3,IF(K306=\"Minor\",2,IF(K306=\"Insignificant\",1,\"\")))))","v":""},{"$f":"IF(L306=\"\",\"\",L306+J306)","v":""},{"$f":"IF(M306=\"\",\"\",IF(M306<5,\"Low\",IF(AND(M306>4,M306<7),\"Moderate\",IF(M306=7,\"High\",IF(M306>7,\"Extreme\",)))))","v":""},null,null,"A-301",null,null,"",null,"","",""]
[null,null,null,null,null,null,null,null,null,null,null,null,null,null,null,null,"A-302",null,null,"",null,"","",""]
[null,null,null,null,null,null,null,null,null,null,null,null,null,null,null,null,"A-303",null,null,"",null,"","",""]
[null,null,null,null,null,null,null,null,null,null,null,null,null,null,null,null,"A-304",null,null,"",null,"","",""]
[null,null,null,null,null,null,null,null,null,null,null,null,null,null,null,null,"A-305",null,null,"",null,"","",""]
[null,"R-62",{"$f":"IF(F311=\"Sea level rise and storm surge\",\"SL\",IF(F311=\"Increased flooding\",\"FL\",IF(F311=\"Increased rainfall variability\",\"RV\",IF(F311=\"Increased average temperature\",\"AT\",IF(F311=\"Increase in hot days\",\"HD\",IF(F311=\"Increased fire risk\",\"FR\",IF(F311=\"Increased atmospheric CO2\",\"AC\",\"\")))))))","v":""},62,null,null,null,null,null,{"$f":"IF(I311=\"Almost Certain\",5,IF(I311=\"likely\",4,IF(I311=\"Possible\",3,IF(I311=\"Unlikely\",2,IF(I311=\"rare\",1,\"\")))))","v":""},null,{"$f":"IF(K311=\"Catastrophic\",5,IF(K311=\"Major\",4,IF(K311=\"Moderate\",3,IF(K311=\"Minor\",2,IF(K311=\"Insignificant\",1,\"\")))))","v":""},{"$f":"IF(L311=\"\",\"\",L311+J311)","v":""},{"$f":"IF(M311=\"\",\"\",IF(M311<5,\"Low\",IF(AND(M311>4,M311<7),\"Moderate\",IF(M311=7,\"High\",IF(M311>7,\"Extreme\",)))))","v":""},null,null,"A-306",null,null,"",null,"","",""]
[null,null,null,null,null,null,null,null,null,null,null,null,null,null,null,null,"A-307",null,null,"",null,"","",""]
[null,null,null,null,null,null,null,null,null,null,null,null,null,null,null,null,"A-308",null,null,"",null,"","",""]
[null,null,null,null,null,null,null,null,null,null,null,null,null,null,null,null,"A-309",null,null,"",null,"","",""]
[null,null,null,null,null,null,null,null,null,null,null,null,null,null,null,null,"A-310",null,null,"",null,"","",""]
[null,"R-63",{"$f":"IF(F316=\"Sea level rise and storm surge\",\"SL\",IF(F316=\"Increased flooding\",\"FL\",IF(F316=\"Increased rainfall variability\",\"RV\",IF(F316=\"Increased average temperature\",\"AT\",IF(F316=\"Increase in hot days\",\"HD\",IF(F316=\"Increased fire risk\",\"FR\",IF(F316=\"Increased atmospheric CO2\",\"AC\",\"\")))))))","v":""},63,null,null,null,null,null,{"$f":"IF(I316=\"Almost Certain\",5,IF(I316=\"likely\",4,IF(I316=\"Possible\",3,IF(I316=\"Unlikely\",2,IF(I316=\"rare\",1,\"\")))))","v":""},null,{"$f":"IF(K316=\"Catastrophic\",5,IF(K316=\"Major\",4,IF(K316=\"Moderate\",3,IF(K316=\"Minor\",2,IF(K316=\"Insignificant\",1,\"\")))))","v":""},{"$f":"IF(L316=\"\",\"\",L316+J316)","v":""},{"$f":"IF(M316=\"\",\"\",IF(M316<5,\"Low\",IF(AND(M316>4,M316<7),\"Moderate\",IF(M316=7,\"High\",IF(M316>7,\"Extreme\",)))))","v":""},null,null,"A-311",null,null,"",null,"","",""]
[null,null,null,null,null,null,null,null,null,null,null,null,null,null,null,null,"A-312",null,null,"",null,"","",""]
[null,null,null,null,null,null,null,null,null,null,null,null,null,null,null,null,"A-313",null,null,"",null,"","",""]
[null,null,null,null,null,null,null,null,null,null,null,null,null,null,null,null,"A-314",null,null,"",null,"","",""]
[null,null,null,null,null,null,null,null,null,null,null,null,null,null,null,null,"A-315",null,null,"",null,"","",""]
[null,"R-64",{"$f":"IF(F321=\"Sea level rise and storm surge\",\"SL\",IF(F321=\"Increased flooding\",\"FL\",IF(F321=\"Increased rainfall variability\",\"RV\",IF(F321=\"Increased average temperature\",\"AT\",IF(F321=\"Increase in hot days\",\"HD\",IF(F321=\"Increased fire risk\",\"FR\",IF(F321=\"Increased atmospheric CO2\",\"AC\",\"\")))))))","v":""},64,null,null,null,null,null,{"$f":"IF(I321=\"Almost Certain\",5,IF(I321=\"likely\",4,IF(I321=\"Possible\",3,IF(I321=\"Unlikely\",2,IF(I321=\"rare\",1,\"\")))))","v":""},null,{"$f":"IF(K321=\"Catastrophic\",5,IF(K321=\"Major\",4,IF(K321=\"Moderate\",3,IF(K321=\"Minor\",2,IF(K321=\"Insignificant\",1,\"\")))))","v":""},{"$f":"IF(L321=\"\",\"\",L321+J321)","v":""},{"$f":"IF(M321=\"\",\"\",IF(M321<5,\"Low\",IF(AND(M321>4,M321<7),\"Moderate\",IF(M321=7,\"High\",IF(M321>7,\"Extreme\",)))))","v":""},null,null,"A-316",null,null,"",null,"","",""]
[null,null,null,null,null,null,null,null,null,null,null,null,null,null,null,null,"A-317",null,null,"",null,"","",""]
[null,null,null,null,null,null,null,null,null,null,null,null,null,null,null,null,"A-318",null,null,"",null,"","",""]
[null,null,null,null,null,null,null,null,null,null,null,null,null,null,null,null,"A-319",null,null,"",null,"","",""]
[null,null,null,null,null,null,null,null,null,null,null,null,null,null,null,null,"A-320",null,null,"",null,"","",""]
[null,"R-65",{"$f":"IF(F326=\"Sea level rise and storm surge\",\"SL\",IF(F326=\"Increased flooding\",\"FL\",IF(F326=\"Increased rainfall variability\",\"RV\",IF(F326=\"Increased average temperature\",\"AT\",IF(F326=\"Increase in hot days\",\"HD\",IF(F326=\"Increased fire risk\",\"FR\",IF(F326=\"Increased atmospheric CO2\",\"AC\",\"\")))))))","v":""},65,null,null,null,null,null,{"$f":"IF(I326=\"Almost Certain\",5,IF(I326=\"likely\",4,IF(I326=\"Possible\",3,IF(I326=\"Unlikely\",2,IF(I326=\"rare\",1,\"\")))))","v":""},null,{"$f":"IF(K326=\"Catastrophic\",5,IF(K326=\"Major\",4,IF(K326=\"Moderate\",3,IF(K326=\"Minor\",2,IF(K326=\"Insignificant\",1,\"\")))))","v":""},{"$f":"IF(L326=\"\",\"\",L326+J326)","v":""},{"$f":"IF(M326=\"\",\"\",IF(M326<5,\"Low\",IF(AND(M326>4,M326<7),\"Moderate\",IF(M326=7,\"High\",IF(M326>7,\"Extreme\",)))))","v":""},null,null,"A-321",null,null,"",null,"","",""]
[null,null,null,null,null,null,null,null,null,null,null,null,null,null,null,null,"A-322",null,null,"",null,"","",""]
[null,null,null,null,null,null,null,null,null,null,null,null,null,null,null,null,"A-323",null,null,"",null,{"$f":"IF(U328=\"Catastrophic\",5,IF(U328=\"Major\",4,IF(U328=\"Moderate\",3,IF(U328=\"Minor\",2,IF(U328=\"Insignificant\",1,\"\")))))","v":""},{"$f":"IF(V328=\"\",\"\",V328+T328)","v":""},{"$f":"IF(W328=\"\",\"\",IF(W328<5,\"Low\",IF(AND(W328>4,W328<7),\"Moderate\",IF(W328=7,\"High\",IF(W328>7,\"Extreme\",)))))","v":""}]
[null,null,null,null,null,null,null,null,null,null,null,null,null,null,null,null,"A-324",null,null,"",null,"","",""]
[null,null,null,null,null,null,null,null,null,null,null,null,null,null,null,null,"A-325",null,null,"",null,"","",""]
[null,"R-66",{"$f":"IF(F331=\"Sea level rise and storm surge\",\"SL\",IF(F331=\"Increased flooding\",\"FL\",IF(F331=\"Increased rainfall variability\",\"RV\",IF(F331=\"Increased average temperature\",\"AT\",IF(F331=\"Increase in hot days\",\"HD\",IF(F331=\"Increased fire risk\",\"FR\",IF(F331=\"Increased atmospheric CO2\",\"AC\",\"\")))))))","v":""},66,null,null,null,null,null,{"$f":"IF(I331=\"Almost Certain\",5,IF(I331=\"likely\",4,IF(I331=\"Possible\",3,IF(I331=\"Unlikely\",2,IF(I331=\"rare\",1,\"\")))))","v":""},null,{"$f":"IF(K331=\"Catastrophic\",5,IF(K331=\"Major\",4,IF(K331=\"Moderate\",3,IF(K331=\"Minor\",2,IF(K331=\"Insignificant\",1,\"\")))))","v":""},{"$f":"IF(L331=\"\",\"\",L331+J331)","v":""},{"$f":"IF(M331=\"\",\"\",IF(M331<5,\"Low\",IF(AND(M331>4,M331<7),\"Moderate\",IF(M331=7,\"High\",IF(M331>7,\"Extreme\",)))))","v":""},null,null,"A-326",null,null,"",null,"","",""]
[null,null,null,null,null,null,null,null,null,null,null,null,null,null,null,null,"A-327",null,null,"",null,"","",""]
[null,null,null,null,null,null,null,null,null,null,null,null,null,null,null,null,"A-328",null,null,"",null,"","",""]
[null,null,null,null,null,null,null,null,null,null,null,null,null,null,null,null,"A-329",null,null,"",null,"","",""]
[null,null,null,null,null,null,null,null,null,null,null,null,null,null,null,null,"A-330",null,null,"",null,"","",""]
[null,"R-67",{"$f":"IF(F336=\"Sea level rise and storm surge\",\"SL\",IF(F336=\"Increased flooding\",\"FL\",IF(F336=\"Increased rainfall variability\",\"RV\",IF(F336=\"Increased average temperature\",\"AT\",IF(F336=\"Increase in hot days\",\"HD\",IF(F336=\"Increased fire risk\",\"FR\",IF(F336=\"Increased atmospheric CO2\",\"AC\",\"\")))))))","v":""},67,null,null,null,null,null,{"$f":"IF(I336=\"Almost Certain\",5,IF(I336=\"likely\",4,IF(I336=\"Possible\",3,IF(I336=\"Unlikely\",2,IF(I336=\"rare\",1,\"\")))))","v":""},null,{"$f":"IF(K336=\"Catastrophic\",5,IF(K336=\"Major\",4,IF(K336=\"Moderate\",3,IF(K336=\"Minor\",2,IF(K336=\"Insignificant\",1,\"\")))))","v":""},{"$f":"IF(L336=\"\",\"\",L336+J336)","v":""},{"$f":"IF(M336=\"\",\"\",IF(M336<5,\"Low\",IF(AND(M336>4,M336<7),\"Moderate\",IF(M336=7,\"High\",IF(M336>7,\"Extreme\",)))))","v":""},null,null,"A-331",null,null,"",null,"","",""]
[null,null,null,null,null,null,null,null,null,null,null,null,null,null,null,null,"A-332",null,null,"",null,"","",""]
[null,null,null,null,null,null,null,null,null,null,null,null,null,null,null,null,"A-333",null,null,"",null,"","",""]
[null,null,null,null,null,null,null,null,null,null,null,null,null,null,null,null,"A-334",null,null,"",null,"","",""]
[null,null,null,null,null,null,null,null,null,null,null,null,null,null,null,null,"A-335",null,null,"",null,"","",""]
[null,"R-68",{"$f":"IF(F341=\"Sea level rise and storm surge\",\"SL\",IF(F341=\"Increased flooding\",\"FL\",IF(F341=\"Increased rainfall variability\",\"RV\",IF(F341=\"Increased average temperature\",\"AT\",IF(F341=\"Increase in hot days\",\"HD\",IF(F341=\"Increased fire risk\",\"FR\",IF(F341=\"Increased atmospheric CO2\",\"AC\",\"\")))))))","v":""},68,null,null,null,null,null,{"$f":"IF(I341=\"Almost Certain\",5,IF(I341=\"likely\",4,IF(I341=\"Possible\",3,IF(I341=\"Unlikely\",2,IF(I341=\"rare\",1,\"\")))))","v":""},null,{"$f":"IF(K341=\"Catastrophic\",5,IF(K341=\"Major\",4,IF(K341=\"Moderate\",3,IF(K341=\"Minor\",2,IF(K341=\"Insignificant\",1,\"\")))))","v":""},{"$f":"IF(L341=\"\",\"\",L341+J341)","v":""},{"$f":"IF(M341=\"\",\"\",IF(M341<5,\"Low\",IF(AND(M341>4,M341<7),\"Moderate\",IF(M341=7,\"High\",IF(M341>7,\"Extreme\",)))))","v":""},null,null,"A-336",null,null,"",null,"","",""]
[null,null,null,null,null,null,null,null,null,null,null,null,null,null,null,null,"A-337",null,null,{"$f":"IF(S342=\"Almost Certain\",5,IF(S342=\"likely\",4,IF(S342=\"Possible\",3,IF(S342=\"Unlikely\",2,IF(S342=\"rare\",1,\"\")))))","v":""},null,"","",""]
[null,null,null,null,null,null,null,null,null,null,null,null,null,null,null,null,"A-338",null,null,"",null,"","",""]
[null,null,null,null,null,null,null,null,null,null,null,null,null,null,null,null,"A-339",null,null,"",null,"","",""]
[null,null,null,null,null,null,null,null,null,null,null,null,null,null,null,null,"A-340",null,null,"",null,"","",""]
[null,"R-69",{"$f":"IF(F346=\"Sea level rise and storm surge\",\"SL\",IF(F346=\"Increased flooding\",\"FL\",IF(F346=\"Increased rainfall variability\",\"RV\",IF(F346=\"Increased average temperature\",\"AT\",IF(F346=\"Increase in hot days\",\"HD\",IF(F346=\"Increased fire risk\",\"FR\",IF(F346=\"Increased atmospheric CO2\",\"AC\",\"\")))))))","v":""},69,null,null,null,null,null,{"$f":"IF(I346=\"Almost Certain\",5,IF(I346=\"likely\",4,IF(I346=\"Possible\",3,IF(I346=\"Unlikely\",2,IF(I346=\"rare\",1,\"\")))))","v":""},null,{"$f":"IF(K346=\"Catastrophic\",5,IF(K346=\"Major\",4,IF(K346=\"Moderate\",3,IF(K346=\"Minor\",2,IF(K346=\"Insignificant\",1,\"\")))))","v":""},{"$f":"IF(L346=\"\",\"\",L346+J346)","v":""},{"$f":"IF(M346=\"\",\"\",IF(M346<5,\"Low\",IF(AND(M346>4,M346<7),\"Moderate\",IF(M346=7,\"High\",IF(M346>7,\"Extreme\",)))))","v":""},null,null,"A-341",null,null,"",null,"","",""]
[null,null,null,null,null,null,null,null,null,null,null,null,null,null,null,null,"A-342",null,null,"",null,"","",""]
[null,null,null,null,null,null,null,null,null,null,null,null,null,null,null,null,"A-343",null,null,"",null,"","",""]
[null,null,null,null,null,null,null,null,null,null,null,null,null,null,null,null,"A-344",null,null,"",null,"","",""]
[null,null,null,null,null,null,null,null,null,null,null,null,null,null,null,null,"A-345",null,null,"",null,"","",""]
[null,"R-70",{"$f":"IF(F351=\"Sea level rise and storm surge\",\"SL\",IF(F351=\"Increased flooding\",\"FL\",IF(F351=\"Increased rainfall variability\",\"RV\",IF(F351=\"Increased average temperature\",\"AT\",IF(F351=\"Increase in hot days\",\"HD\",IF(F351=\"Increased fire risk\",\"FR\",IF(F351=\"Increased atmospheric CO2\",\"AC\",\"\")))))))","v":""},70,null,null,null,null,null,{"$f":"IF(I351=\"Almost Certain\",5,IF(I351=\"likely\",4,IF(I351=\"Possible\",3,IF(I351=\"Unlikely\",2,IF(I351=\"rare\",1,\"\")))))","v":""},null,{"$f":"IF(K351=\"Catastrophic\",5,IF(K351=\"Major\",4,IF(K351=\"Moderate\",3,IF(K351=\"Minor\",2,IF(K351=\"Insignificant\",1,\"\")))))","v":""},{"$f":"IF(L351=\"\",\"\",L351+J351)","v":""},{"$f":"IF(M351=\"\",\"\",IF(M351<5,\"Low\",IF(AND(M351>4,M351<7),\"Moderate\",IF(M351=7,\"High\",IF(M351>7,\"Extreme\",)))))","v":""},null,null,"A-346",null,null,"",null,"","",""]
[null,null,null,null,null,null,null,null,null,null,null,null,null,null,null,null,"A-347",null,null,"",null,"","",""]
[null,null,null,null,null,null,null,null,null,null,null,null,null,null,null,null,"A-348",null,null,"",null,"","",""]
[null,null,null,null,null,null,null,null,null,null,null,null,null,null,null,null,"A-349",null,null,"",null,"","",""]
[null,null,null,null,null,null,null,null,null,null,null,null,null,null,null,null,"A-350",null,null,"",null,"","",""]
[null,"R-71",{"$f":"IF(F356=\"Sea level rise and storm surge\",\"SL\",IF(F356=\"Increased flooding\",\"FL\",IF(F356=\"Increased rainfall variability\",\"RV\",IF(F356=\"Increased average temperature\",\"AT\",IF(F356=\"Increase in hot days\",\"HD\",IF(F356=\"Increased fire risk\",\"FR\",IF(F356=\"Increased atmospheric CO2\",\"AC\",\"\")))))))","v":""},71,null,null,null,null,null,{"$f":"IF(I356=\"Almost Certain\",5,IF(I356=\"likely\",4,IF(I356=\"Possible\",3,IF(I356=\"Unlikely\",2,IF(I356=\"rare\",1,\"\")))))","v":""},null,{"$f":"IF(K356=\"Catastrophic\",5,IF(K356=\"Major\",4,IF(K356=\"Moderate\",3,IF(K356=\"Minor\",2,IF(K356=\"Insignificant\",1,\"\")))))","v":""},{"$f":"IF(L356=\"\",\"\",L356+J356)","v":""},{"$f":"IF(M356=\"\",\"\",IF(M356<5,\"Low\",IF(AND(M356>4,M356<7),\"Moderate\",IF(M356=7,\"High\",IF(M356>7,\"Extreme\",)))))","v":""},null,null,"A-351",null,null,"",null,"","",""]
[null,null,null,null,null,null,null,null,null,null,null,null,null,null,null,null,"A-352",null,null,"",null,"","",""]
[null,null,null,null,null,null,null,null,null,null,null,null,null,null,null,null,"A-353",null,null,"",null,"","",""]
[null,null,null,null,null,null,null,null,null,null,null,null,null,null,null,null,"A-354",null,null,"",null,"","",""]
[null,null,null,null,null,null,null,null,null,null,null,null,null,null,null,null,"A-355",null,null,"",null,"","",""]
[null,"R-72",{"$f":"IF(F361=\"Sea level rise and storm surge\",\"SL\",IF(F361=\"Increased flooding\",\"FL\",IF(F361=\"Increased rainfall variability\",\"RV\",IF(F361=\"Increased average temperature\",\"AT\",IF(F361=\"Increase in hot days\",\"HD\",IF(F361=\"Increased fire risk\",\"FR\",IF(F361=\"Increased atmospheric CO2\",\"AC\",\"\")))))))","v":""},72,null,null,null,null,null,{"$f":"IF(I361=\"Almost Certain\",5,IF(I361=\"likely\",4,IF(I361=\"Possible\",3,IF(I361=\"Unlikely\",2,IF(I361=\"rare\",1,\"\")))))","v":""},null,{"$f":"IF(K361=\"Catastrophic\",5,IF(K361=\"Major\",4,IF(K361=\"Moderate\",3,IF(K361=\"Minor\",2,IF(K361=\"Insignificant\",1,\"\")))))","v":""},{"$f":"IF(L361=\"\",\"\",L361+J361)","v":""},{"$f":"IF(M361=\"\",\"\",IF(M361<5,\"Low\",IF(AND(M361>4,M361<7),\"Moderate\",IF(M361=7,\"High\",IF(M361>7,\"Extreme\",)))))","v":""},null,null,"A-356",null,null,"",null,"","",""]
[null,null,null,null,null,null,null,null,null,null,null,null,null,null,null,null,"A-357",null,null,"",null,"","",""]
[null,null,null,null,null,null,null,null,null,null,null,null,null,null,null,null,"A-358",null,null,"",null,"","",""]
[null,null,null,null,null,null,null,null,null,null,null,null,null,null,null,null,"A-359",null,null,"",null,"","",""]
[null,null,null,null,null,null,null,null,null,null,null,null,null,null,null,null,"A-360",null,null,"",null,"","",""]
[null,"R-73",{"$f":"IF(F366=\"Sea level rise and storm surge\",\"SL\",IF(F366=\"Increased flooding\",\"FL\",IF(F366=\"Increased rainfall variability\",\"RV\",IF(F366=\"Increased average temperature\",\"AT\",IF(F366=\"Increase in hot days\",\"HD\",IF(F366=\"Increased fire risk\",\"FR\",IF(F366=\"Increased atmospheric CO2\",\"AC\",\"\")))))))","v":""},73,null,null,null,null,null,{"$f":"IF(I366=\"Almost Certain\",5,IF(I366=\"likely\",4,IF(I366=\"Possible\",3,IF(I366=\"Unlikely\",2,IF(I366=\"rare\",1,\"\")))))","v":""},null,{"$f":"IF(K366=\"Catastrophic\",5,IF(K366=\"Major\",4,IF(K366=\"Moderate\",3,IF(K366=\"Minor\",2,IF(K366=\"Insignificant\",1,\"\")))))","v":""},{"$f":"IF(L366=\"\",\"\",L366+J366)","v":""},{"$f":"IF(M366=\"\",\"\",IF(M366<5,\"Low\",IF(AND(M366>4,M366<7),\"Moderate\",IF(M366=7,\"High\",IF(M366>7,\"Extreme\",)))))","v":""},null,null,"A-361",null,null,"",null,"","",""]
[null,null,null,null,null,null,null,null,null,null,null,null,null,null,null,null,"A-362",null,null,"",null,"","",""]
[null,null,null,null,null,null,null,null,null,null,null,null,null,null,null,null,"A-363",null,null,"",null,"","",""]
[null,null,null,null,null,null,null,null,null,null,null,null,null,null,null,null,"A-364",null,null,"",null,"","",""]
[null,null,null,null,null,null,null,null,null,null,null,null,null,null,null,null,"A-365",null,null,"",null,"","",""]
[null,"R-74",{"$f":"IF(F371=\"Sea level rise and storm surge\",\"SL\",IF(F371=\"Increased flooding\",\"FL\",IF(F371=\"Increased rainfall variability\",\"RV\",IF(F371=\"Increased average temperature\",\"AT\",IF(F371=\"Increase in hot days\",\"HD\",IF(F371=\"Increased fire risk\",\"FR\",IF(F371=\"Increased atmospheric CO2\",\"AC\",\"\")))))))","v":""},74,null,null,null,null,null,{"$f":"IF(I371=\"Almost Certain\",5,IF(I371=\"likely\",4,IF(I371=\"Possible\",3,IF(I371=\"Unlikely\",2,IF(I371=\"rare\",1,\"\")))))","v":""},null,{"$f":"IF(K371=\"Catastrophic\",5,IF(K371=\"Major\",4,IF(K371=\"Moderate\",3,IF(K371=\"Minor\",2,IF(K371=\"Insignificant\",1,\"\")))))","v":""},{"$f":"IF(L371=\"\",\"\",L371+J371)","v":""},{"$f":"IF(M371=\"\",\"\",IF(M371<5,\"Low\",IF(AND(M371>4,M371<7),\"Moderate\",IF(M371=7,\"High\",IF(M371>7,\"Extreme\",)))))","v":""},null,null,"A-366",null,null,"",null,"","",""]
[null,null,null,null,null,null,null,null,null,null,null,null,null,null,null,null,"A-367",null,null,"",null,"","",""]
[null,null,null,null,null,null,null,null,null,null,null,null,null,null,null,null,"A-368",null,null,"",null,"","",""]
[null,null,null,null,null,null,null,null,null,null,null,null,null,null,null,null,"A-369",null,null,"",null,"","",""]
[null,null,null,null,null,null,null,null,null,null,null,null,null,null,null,null,"A-370",null,null,"",null,"","",""]
[null,"R-75",{"$f":"IF(F376=\"Sea level rise and storm surge\",\"SL\",IF(F376=\"Increased flooding\",\"FL\",IF(F376=\"Increased rainfall variability\",\"RV\",IF(F376=\"Increased average temperature\",\"AT\",IF(F376=\"Increase in hot days\",\"HD\",IF(F376=\"Increased fire risk\",\"FR\",IF(F376=\"Increased atmospheric CO2\",\"AC\",\"\")))))))","v":""},75,null,null,null,null,null,{"$f":"IF(I376=\"Almost Certain\",5,IF(I376=\"likely\",4,IF(I376=\"Possible\",3,IF(I376=\"Unlikely\",2,IF(I376=\"rare\",1,\"\")))))","v":""},null,{"$f":"IF(K376=\"Catastrophic\",5,IF(K376=\"Major\",4,IF(K376=\"Moderate\",3,IF(K376=\"Minor\",2,IF(K376=\"Insignificant\",1,\"\")))))","v":""},{"$f":"IF(L376=\"\",\"\",L376+J376)","v":""},{"$f":"IF(M376=\"\",\"\",IF(M376<5,\"Low\",IF(AND(M376>4,M376<7),\"Moderate\",IF(M376=7,\"High\",IF(M376>7,\"Extreme\",)))))","v":""},null,null,"A-371",null,null,"",null,"","",""]
[null,null,null,null,null,null,null,null,null,null,null,null,null,null,null,null,"A-372",null,null,"",null,"","",""]
[null,null,null,null,null,null,null,null,null,null,null,null,null,null,null,null,"A-373",null,null,"",null,"","",""]
[null,null,null,null,null,null,null,null,null,null,null,null,null,null,null,null,"A-374",null,null,"",null,"","",""]
[null,null,null,null,null,null,null,null,null,null,null,null,null,null,null,null,"A-375",null,null,"",null,"","",""]
[null,"R-76",{"$f":"IF(F381=\"Sea level rise and storm surge\",\"SL\",IF(F381=\"Increased flooding\",\"FL\",IF(F381=\"Increased rainfall variability\",\"RV\",IF(F381=\"Increased average temperature\",\"AT\",IF(F381=\"Increase in hot days\",\"HD\",IF(F381=\"Increased fire risk\",\"FR\",IF(F381=\"Increased atmospheric CO2\",\"AC\",\"\")))))))","v":""},76,null,null,null,null,null,{"$f":"IF(I381=\"Almost Certain\",5,IF(I381=\"likely\",4,IF(I381=\"Possible\",3,IF(I381=\"Unlikely\",2,IF(I381=\"rare\",1,\"\")))))","v":""},null,{"$f":"IF(K381=\"Catastrophic\",5,IF(K381=\"Major\",4,IF(K381=\"Moderate\",3,IF(K381=\"Minor\",2,IF(K381=\"Insignificant\",1,\"\")))))","v":""},{"$f":"IF(L381=\"\",\"\",L381+J381)","v":""},{"$f":"IF(M381=\"\",\"\",IF(M381<5,\"Low\",IF(AND(M381>4,M381<7),\"Moderate\",IF(M381=7,\"High\",IF(M381>7,\"Extreme\",)))))","v":""},null,null,"A-376",null,null,"",null,"","",""]
[null,null,null,null,null,null,null,null,null,null,null,null,null,null,null,null,"A-377",null,null,"",null,"","",""]
[null,null,null,null,null,null,null,null,null,null,null,null,null,null,null,null,"A-378",null,null,"",null,"","",""]
[null,null,null,null,null,null,null,null,null,null,null,null,null,null,null,null,"A-379",null,null,"",null,"","",""]
[null,null,null,null,null,null,null,null,null,null,null,null,null,null,null,null,"A-380",null,null,"",null,"","",""]
[null,"R-77",{"$f":"IF(F386=\"Sea level rise and storm surge\",\"SL\",IF(F386=\"Increased flooding\",\"FL\",IF(F386=\"Increased rainfall variability\",\"RV\",IF(F386=\"Increased average temperature\",\"AT\",IF(F386=\"Increase in hot days\",\"HD\",IF(F386=\"Increased fire risk\",\"FR\",IF(F386=\"Increased atmospheric CO2\",\"AC\",\"\")))))))","v":""},77,null,null,null,null,null,{"$f":"IF(I386=\"Almost Certain\",5,IF(I386=\"likely\",4,IF(I386=\"Possible\",3,IF(I386=\"Unlikely\",2,IF(I386=\"rare\",1,\"\")))))","v":""},null,{"$f":"IF(K386=\"Catastrophic\",5,IF(K386=\"Major\",4,IF(K386=\"Moderate\",3,IF(K386=\"Minor\",2,IF(K386=\"Insignificant\",1,\"\")))))","v":""},{"$f":"IF(L386=\"\",\"\",L386+J386)","v":""},{"$f":"IF(M386=\"\",\"\",IF(M386<5,\"Low\",IF(AND(M386>4,M386<7),\"Moderate\",IF(M386=7,\"High\",IF(M386>7,\"Extreme\",)))))","v":""},null,null,"A-381",null,null,"",null,"","",""]
[null,null,null,null,null,null,null,null,null,null,null,null,null,null,null,null,"A-382",null,null,"",null,"","",""]
[null,null,null,null,null,null,null,null,null,null,null,null,null,null,null,null,"A-383",null,null,"",null,"","",""]
[null,null,null,null,null,null,null,null,null,null,null,null,null,null,null,null,"A-384",null,null,"",null,"","",""]
[null,null,null,null,null,null,null,null,null,null,null,null,null,null,null,null,"A-385",null,null,"",null,"","",""]
[null,"R-78",{"$f":"IF(F391=\"Sea level rise and storm surge\",\"SL\",IF(F391=\"Increased flooding\",\"FL\",IF(F391=\"Increased rainfall variability\",\"RV\",IF(F391=\"Increased average temperature\",\"AT\",IF(F391=\"Increase in hot days\",\"HD\",IF(F391=\"Increased fire risk\",\"FR\",IF(F391=\"Increased atmospheric CO2\",\"AC\",\"\")))))))","v":""},78,null,null,null,null,null,{"$f":"IF(I391=\"Almost Certain\",5,IF(I391=\"likely\",4,IF(I391=\"Possible\",3,IF(I391=\"Unlikely\",2,IF(I391=\"rare\",1,\"\")))))","v":""},null,{"$f":"IF(K391=\"Catastrophic\",5,IF(K391=\"Major\",4,IF(K391=\"Moderate\",3,IF(K391=\"Minor\",2,IF(K391=\"Insignificant\",1,\"\")))))","v":""},{"$f":"IF(L391=\"\",\"\",L391+J391)","v":""},{"$f":"IF(M391=\"\",\"\",IF(M391<5,\"Low\",IF(AND(M391>4,M391<7),\"Moderate\",IF(M391=7,\"High\",IF(M391>7,\"Extreme\",)))))","v":""},null,null,"A-386",null,null,"",null,"","",""]
[null,null,null,null,null,null,null,null,null,null,null,null,null,null,null,null,"A-387",null,null,"",null,{"$f":"IF(U392=\"Catastrophic\",5,IF(U392=\"Major\",4,IF(U392=\"Moderate\",3,IF(U392=\"Minor\",2,IF(U392=\"Insignificant\",1,\"\")))))","v":""},{"$f":"IF(V392=\"\",\"\",V392+T392)","v":""},{"$f":"IF(W392=\"\",\"\",IF(W392<5,\"Low\",IF(AND(W392>4,W392<7),\"Moderate\",IF(W392=7,\"High\",IF(W392>7,\"Extreme\",)))))","v":""}]
[null,null,null,null,null,null,null,null,null,null,null,null,null,null,null,null,"A-388",null,null,"",null,"","",""]
[null,null,null,null,null,null,null,null,null,null,null,null,null,null,null,null,"A-389",null,null,"",null,"","",""]
[null,null,null,null,null,null,null,null,null,null,null,null,null,null,null,null,"A-390",null,null,"",null,"","",""]
[null,"R-79",{"$f":"IF(F396=\"Sea level rise and storm surge\",\"SL\",IF(F396=\"Increased flooding\",\"FL\",IF(F396=\"Increased rainfall variability\",\"RV\",IF(F396=\"Increased average temperature\",\"AT\",IF(F396=\"Increase in hot days\",\"HD\",IF(F396=\"Increased fire risk\",\"FR\",IF(F396=\"Increased atmospheric CO2\",\"AC\",\"\")))))))","v":""},79,null,null,null,null,null,{"$f":"IF(I396=\"Almost Certain\",5,IF(I396=\"likely\",4,IF(I396=\"Possible\",3,IF(I396=\"Unlikely\",2,IF(I396=\"rare\",1,\"\")))))","v":""},null,{"$f":"IF(K396=\"Catastrophic\",5,IF(K396=\"Major\",4,IF(K396=\"Moderate\",3,IF(K396=\"Minor\",2,IF(K396=\"Insignificant\",1,\"\")))))","v":""},{"$f":"IF(L396=\"\",\"\",L396+J396)","v":""},{"$f":"IF(M396=\"\",\"\",IF(M396<5,\"Low\",IF(AND(M396>4,M396<7),\"Moderate\",IF(M396=7,\"High\",IF(M396>7,\"Extreme\",)))))","v":""},null,null,"A-391",null,null,"",null,"","",""]
[null,null,null,null,null,null,null,null,null,null,null,null,null,null,null,null,"A-392",null,null,"",null,"","",""]
[null,null,null,null,null,null,null,null,null,null,null,null,null,null,null,null,"A-393",null,null,"",null,"","",""]
[null,null,null,null,null,null,null,null,null,null,null,null,null,null,null,null,"A-394",null,null,"",null,"","",""]
[null,null,null,null,null,null,null,null,null,null,null,null,null,null,null,null,"A-395",null,null,"",null,"","",""]
[null,"R-80",{"$f":"IF(F401=\"Sea level rise and storm surge\",\"SL\",IF(F401=\"Increased flooding\",\"FL\",IF(F401=\"Increased rainfall variability\",\"RV\",IF(F401=\"Increased average temperature\",\"AT\",IF(F401=\"Increase in hot days\",\"HD\",IF(F401=\"Increased fire risk\",\"FR\",IF(F401=\"Increased atmospheric CO2\",\"AC\",\"\")))))))","v":""},80,null,null,null,null,null,{"$f":"IF(I401=\"Almost Certain\",5,IF(I401=\"likely\",4,IF(I401=\"Possible\",3,IF(I401=\"Unlikely\",2,IF(I401=\"rare\",1,\"\")))))","v":""},null,{"$f":"IF(K401=\"Catastrophic\",5,IF(K401=\"Major\",4,IF(K401=\"Moderate\",3,IF(K401=\"Minor\",2,IF(K401=\"Insignificant\",1,\"\")))))","v":""},{"$f":"IF(L401=\"\",\"\",L401+J401)","v":""},{"$f":"IF(M401=\"\",\"\",IF(M401<5,\"Low\",IF(AND(M401>4,M401<7),\"Moderate\",IF(M401=7,\"High\",IF(M401>7,\"Extreme\",)))))","v":""},null,null,"A-396",null,null,"",null,"","",""]
[null,null,null,null,null,null,null,null,null,null,null,null,null,null,null,null,"A-397",null,null,"",null,"","",""]
[null,null,null,null,null,null,null,null,null,null,null,null,null,null,null,null,"A-398",null,null,"",null,"","",""]
[null,null,null,null,null,null,null,null,null,null,null,null,null,null,null,null,"A-399",null,null,"",null,"","",""]
[null,null,null,null,null,null,null,null,null,null,null,null,null,null,null,null,"A-400",null,null,"",null,"","",""]
[null,"R-81",{"$f":"IF(F406=\"Sea level rise and storm surge\",\"SL\",IF(F406=\"Increased flooding\",\"FL\",IF(F406=\"Increased rainfall variability\",\"RV\",IF(F406=\"Increased average temperature\",\"AT\",IF(F406=\"Increase in hot days\",\"HD\",IF(F406=\"Increased fire risk\",\"FR\",IF(F406=\"Increased atmospheric CO2\",\"AC\",\"\")))))))","v":""},81,null,null,null,null,null,{"$f":"IF(I406=\"Almost Certain\",5,IF(I406=\"likely\",4,IF(I406=\"Possible\",3,IF(I406=\"Unlikely\",2,IF(I406=\"rare\",1,\"\")))))","v":""},null,{"$f":"IF(K406=\"Catastrophic\",5,IF(K406=\"Major\",4,IF(K406=\"Moderate\",3,IF(K406=\"Minor\",2,IF(K406=\"Insignificant\",1,\"\")))))","v":""},{"$f":"IF(L406=\"\",\"\",L406+J406)","v":""},{"$f":"IF(M406=\"\",\"\",IF(M406<5,\"Low\",IF(AND(M406>4,M406<7),\"Moderate\",IF(M406=7,\"High\",IF(M406>7,\"Extreme\",)))))","v":""},null,null,"A-401",null,null,{"$f":"IF(S406=\"Almost Certain\",5,IF(S406=\"likely\",4,IF(S406=\"Possible\",3,IF(S406=\"Unlikely\",2,IF(S406=\"rare\",1,\"\")))))","v":""},null,"","",""]
[null,null,null,null,null,null,null,null,null,null,null,null,null,null,null,null,"A-402",null,null,"",null,"","",""]
[null,null,null,null,null,null,null,null,null,null,null,null,null,null,null,null,"A-403",null,null,"",null,"","",""]
[null,null,null,null,null,null,null,null,null,null,null,null,null,null,null,null,"A-404",null,null,"",null,"","",""]
[null,null,null,null,null,null,null,null,null,null,null,null,null,null,null,null,"A-405",null,null,"",null,"","",""]
[null,"R-82",{"$f":"IF(F411=\"Sea level rise and storm surge\",\"SL\",IF(F411=\"Increased flooding\",\"FL\",IF(F411=\"Increased rainfall variability\",\"RV\",IF(F411=\"Increased average temperature\",\"AT\",IF(F411=\"Increase in hot days\",\"HD\",IF(F411=\"Increased fire risk\",\"FR\",IF(F411=\"Increased atmospheric CO2\",\"AC\",\"\")))))))","v":""},82,null,null,null,null,null,{"$f":"IF(I411=\"Almost Certain\",5,IF(I411=\"likely\",4,IF(I411=\"Possible\",3,IF(I411=\"Unlikely\",2,IF(I411=\"rare\",1,\"\")))))","v":""},null,{"$f":"IF(K411=\"Catastrophic\",5,IF(K411=\"Major\",4,IF(K411=\"Moderate\",3,IF(K411=\"Minor\",2,IF(K411=\"Insignificant\",1,\"\")))))","v":""},{"$f":"IF(L411=\"\",\"\",L411+J411)","v":""},{"$f":"IF(M411=\"\",\"\",IF(M411<5,\"Low\",IF(AND(M411>4,M411<7),\"Moderate\",IF(M411=7,\"High\",IF(M411>7,\"Extreme\",)))))","v":""},null,null,"A-406",null,null,"",null,"","",""]
[null,null,null,null,null,null,null,null,null,null,null,null,null,null,null,null,"A-407",null,null,"",null,"","",""]
[null,null,null,null,null,null,null,null,null,null,null,null,null,null,null,null,"A-408",null,null,"",null,"","",""]
[null,null,null,null,null,null,null,null,null,null,null,null,null,null,null,null,"A-409",null,null,"",null,"","",""]
[null,null,null,null,null,null,null,null,null,null,null,null,null,null,null,null,"A-410",null,null,"",null,"","",""]
[null,"R-83",{"$f":"IF(F416=\"Sea level rise and storm surge\",\"SL\",IF(F416=\"Increased flooding\",\"FL\",IF(F416=\"Increased rainfall variability\",\"RV\",IF(F416=\"Increased average temperature\",\"AT\",IF(F416=\"Increase in hot days\",\"HD\",IF(F416=\"Increased fire risk\",\"FR\",IF(F416=\"Increased atmospheric CO2\",\"AC\",\"\")))))))","v":""},83,null,null,null,null,null,{"$f":"IF(I416=\"Almost Certain\",5,IF(I416=\"likely\",4,IF(I416=\"Possible\",3,IF(I416=\"Unlikely\",2,IF(I416=\"rare\",1,\"\")))))","v":""},null,{"$f":"IF(K416=\"Catastrophic\",5,IF(K416=\"Major\",4,IF(K416=\"Moderate\",3,IF(K416=\"Minor\",2,IF(K416=\"Insignificant\",1,\"\")))))","v":""},{"$f":"IF(L416=\"\",\"\",L416+J416)","v":""},{"$f":"IF(M416=\"\",\"\",IF(M416<5,\"Low\",IF(AND(M416>4,M416<7),\"Moderate\",IF(M416=7,\"High\",IF(M416>7,\"Extreme\",)))))","v":""},null,null,"A-411",null,null,"",null,"","",""]
[null,null,null,null,null,null,null,null,null,null,null,null,null,null,null,null,"A-412",null,null,"",null,"","",""]
[null,null,null,null,null,null,null,null,null,null,null,null,null,null,null,null,"A-413",null,null,"",null,"","",""]
[null,null,null,null,null,null,null,null,null,null,null,null,null,null,null,null,"A-414",null,null,"",null,"","",""]
[null,null,null,null,null,null,null,null,null,null,null,null,null,null,null,null,"A-415",null,null,"",null,"","",""]
[null,"R-84",{"$f":"IF(F421=\"Sea level rise and storm surge\",\"SL\",IF(F421=\"Increased flooding\",\"FL\",IF(F421=\"Increased rainfall variability\",\"RV\",IF(F421=\"Increased average temperature\",\"AT\",IF(F421=\"Increase in hot days\",\"HD\",IF(F421=\"Increased fire risk\",\"FR\",IF(F421=\"Increased atmospheric CO2\",\"AC\",\"\")))))))","v":""},84,null,null,null,null,null,{"$f":"IF(I421=\"Almost Certain\",5,IF(I421=\"likely\",4,IF(I421=\"Possible\",3,IF(I421=\"Unlikely\",2,IF(I421=\"rare\",1,\"\")))))","v":""},null,{"$f":"IF(K421=\"Catastrophic\",5,IF(K421=\"Major\",4,IF(K421=\"Moderate\",3,IF(K421=\"Minor\",2,IF(K421=\"Insignificant\",1,\"\")))))","v":""},{"$f":"IF(L421=\"\",\"\",L421+J421)","v":""},{"$f":"IF(M421=\"\",\"\",IF(M421<5,\"Low\",IF(AND(M421>4,M421<7),\"Moderate\",IF(M421=7,\"High\",IF(M421>7,\"Extreme\",)))))","v":""},null,null,"A-416",null,null,"",null,"","",""]
[null,null,null,null,null,null,null,null,null,null,null,null,null,null,null,null,"A-417",null,null,"",null,"","",""]
[null,null,null,null,null,null,null,null,null,null,null,null,null,null,null,null,"A-418",null,null,"",null,"","",""]
[null,null,null,null,null,null,null,null,null,null,null,null,null,null,null,null,"A-419",null,null,"",null,"","",""]
[null,null,null,null,null,null,null,null,null,null,null,null,null,null,null,null,"A-420",null,null,"",null,"","",""]
[null,"R-85",{"$f":"IF(F426=\"Sea level rise and storm surge\",\"SL\",IF(F426=\"Increased flooding\",\"FL\",IF(F426=\"Increased rainfall variability\",\"RV\",IF(F426=\"Increased average temperature\",\"AT\",IF(F426=\"Increase in hot days\",\"HD\",IF(F426=\"Increased fire risk\",\"FR\",IF(F426=\"Increased atmospheric CO2\",\"AC\",\"\")))))))","v":""},85,null,null,null,null,null,{"$f":"IF(I426=\"Almost Certain\",5,IF(I426=\"likely\",4,IF(I426=\"Possible\",3,IF(I426=\"Unlikely\",2,IF(I426=\"rare\",1,\"\")))))","v":""},null,{"$f":"IF(K426=\"Catastrophic\",5,IF(K426=\"Major\",4,IF(K426=\"Moderate\",3,IF(K426=\"Minor\",2,IF(K426=\"Insignificant\",1,\"\")))))","v":""},{"$f":"IF(L426=\"\",\"\",L426+J426)","v":""},{"$f":"IF(M426=\"\",\"\",IF(M426<5,\"Low\",IF(AND(M426>4,M426<7),\"Moderate\",IF(M426=7,\"High\",IF(M426>7,\"Extreme\",)))))","v":""},null,null,"A-421",null,null,"",null,"","",""]
[null,null,null,null,null,null,null,null,null,null,null,null,null,null,null,null,"A-422",null,null,"",null,"","",""]
[null,null,null,null,null,null,null,null,null,null,null,null,null,null,null,null,"A-423",null,null,"",null,"","",""]
[null,null,null,null,null,null,null,null,null,null,null,null,null,null,null,null,"A-424",null,null,"",null,"","",""]
[null,null,null,null,null,null,null,null,null,null,null,null,null,null,null,null,"A-425",null,null,"",null,"","",""]
[null,"R-86",{"$f":"IF(F431=\"Sea level rise and storm surge\",\"SL\",IF(F431=\"Increased flooding\",\"FL\",IF(F431=\"Increased rainfall variability\",\"RV\",IF(F431=\"Increased average temperature\",\"AT\",IF(F431=\"Increase in hot days\",\"HD\",IF(F431=\"Increased fire risk\",\"FR\",IF(F431=\"Increased atmospheric CO2\",\"AC\",\"\")))))))","v":""},86,null,null,null,null,null,{"$f":"IF(I431=\"Almost Certain\",5,IF(I431=\"likely\",4,IF(I431=\"Possible\",3,IF(I431=\"Unlikely\",2,IF(I431=\"rare\",1,\"\")))))","v":""},null,{"$f":"IF(K431=\"Catastrophic\",5,IF(K431=\"Major\",4,IF(K431=\"Moderate\",3,IF(K431=\"Minor\",2,IF(K431=\"Insignificant\",1,\"\")))))","v":""},{"$f":"IF(L431=\"\",\"\",L431+J431)","v":""},{"$f":"IF(M431=\"\",\"\",IF(M431<5,\"Low\",IF(AND(M431>4,M431<7),\"Moderate\",IF(M431=7,\"High\",IF(M431>7,\"Extreme\",)))))","v":""},null,null,"A-426",null,null,"",null,"","",""]
[null,null,null,null,null,null,null,null,null,null,null,null,null,null,null,null,"A-427",null,null,"",null,"","",""]
[null,null,null,null,null,null,null,null,null,null,null,null,null,null,null,null,"A-428",null,null,"",null,"","",""]
[null,null,null,null,null,null,null,null,null,null,null,null,null,null,null,null,"A-429",null,null,"",null,"","",""]
[null,null,null,null,null,null,null,null,null,null,null,null,null,null,null,null,"A-430",null,null,"",null,"","",""]
[null,"R-87",{"$f":"IF(F436=\"Sea level rise and storm surge\",\"SL\",IF(F436=\"Increased flooding\",\"FL\",IF(F436=\"Increased rainfall variability\",\"RV\",IF(F436=\"Increased average temperature\",\"AT\",IF(F436=\"Increase in hot days\",\"HD\",IF(F436=\"Increased fire risk\",\"FR\",IF(F436=\"Increased atmospheric CO2\",\"AC\",\"\")))))))","v":""},87,null,null,null,null,null,{"$f":"IF(I436=\"Almost Certain\",5,IF(I436=\"likely\",4,IF(I436=\"Possible\",3,IF(I436=\"Unlikely\",2,IF(I436=\"rare\",1,\"\")))))","v":""},null,{"$f":"IF(K436=\"Catastrophic\",5,IF(K436=\"Major\",4,IF(K436=\"Moderate\",3,IF(K436=\"Minor\",2,IF(K436=\"Insignificant\",1,\"\")))))","v":""},{"$f":"IF(L436=\"\",\"\",L436+J436)","v":""},{"$f":"IF(M436=\"\",\"\",IF(M436<5,\"Low\",IF(AND(M436>4,M436<7),\"Moderate\",IF(M436=7,\"High\",IF(M436>7,\"Extreme\",)))))","v":""},null,null,"A-431",null,null,"",null,"","",""]
[null,null,null,null,null,null,null,null,null,null,null,null,null,null,null,null,"A-432",null,null,"",null,"","",""]
[null,null,null,null,null,null,null,null,null,null,null,null,null,null,null,null,"A-433",null,null,"",null,"","",""]
[null,null,null,null,null,null,null,null,null,null,null,null,null,null,null,null,"A-434",null,null,"",null,"","",""]
[null,null,null,null,null,null,null,null,null,null,null,null,null,null,null,null,"A-435",null,null,"",null,"","",""]
[null,"R-88",{"$f":"IF(F441=\"Sea level rise and storm surge\",\"SL\",IF(F441=\"Increased flooding\",\"FL\",IF(F441=\"Increased rainfall variability\",\"RV\",IF(F441=\"Increased average temperature\",\"AT\",IF(F441=\"Increase in hot days\",\"HD\",IF(F441=\"Increased fire risk\",\"FR\",IF(F441=\"Increased atmospheric CO2\",\"AC\",\"\")))))))","v":""},88,null,null,null,null,null,{"$f":"IF(I441=\"Almost Certain\",5,IF(I441=\"likely\",4,IF(I441=\"Possible\",3,IF(I441=\"Unlikely\",2,IF(I441=\"rare\",1,\"\")))))","v":""},null,{"$f":"IF(K441=\"Catastrophic\",5,IF(K441=\"Major\",4,IF(K441=\"Moderate\",3,IF(K441=\"Minor\",2,IF(K441=\"Insignificant\",1,\"\")))))","v":""},{"$f":"IF(L441=\"\",\"\",L441+J441)","v":""},{"$f":"IF(M441=\"\",\"\",IF(M441<5,\"Low\",IF(AND(M441>4,M441<7),\"Moderate\",IF(M441=7,\"High\",IF(M441>7,\"Extreme\",)))))","v":""},null,null,"A-436",null,null,"",null,"","",""]
[null,null,null,null,null,null,null,null,null,null,null,null,null,null,null,null,"A-437",null,null,"",null,"","",""]
[null,null,null,null,null,null,null,null,null,null,null,null,null,null,null,null,"A-438",null,null,"",null,"","",""]
[null,null,null,null,null,null,null,null,null,null,null,null,null,null,null,null,"A-439",null,null,"",null,"","",""]
[null,null,null,null,null,null,null,null,null,null,null,null,null,null,null,null,"A-440",null,null,"",null,"","",""]
[null,"R-89",{"$f":"IF(F446=\"Sea level rise and storm surge\",\"SL\",IF(F446=\"Increased flooding\",\"FL\",IF(F446=\"Increased rainfall variability\",\"RV\",IF(F446=\"Increased average temperature\",\"AT\",IF(F446=\"Increase in hot days\",\"HD\",IF(F446=\"Increased fire risk\",\"FR\",IF(F446=\"Increased atmospheric CO2\",\"AC\",\"\")))))))","v":""},89,null,null,null,null,null,{"$f":"IF(I446=\"Almost Certain\",5,IF(I446=\"likely\",4,IF(I446=\"Possible\",3,IF(I446=\"Unlikely\",2,IF(I446=\"rare\",1,\"\")))))","v":""},null,{"$f":"IF(K446=\"Catastrophic\",5,IF(K446=\"Major\",4,IF(K446=\"Moderate\",3,IF(K446=\"Minor\",2,IF(K446=\"Insignificant\",1,\"\")))))","v":""},{"$f":"IF(L446=\"\",\"\",L446+J446)","v":""},{"$f":"IF(M446=\"\",\"\",IF(M446<5,\"Low\",IF(AND(M446>4,M446<7),\"Moderate\",IF(M446=7,\"High\",IF(M446>7,\"Extreme\",)))))","v":""},null,null,"A-441",null,null,"",null,"","",""]
[null,null,null,null,null,null,null,null,null,null,null,null,null,null,null,null,"A-442",null,null,"",null,"","",""]
[null,null,null,null,null,null,null,null,null,null,null,null,null,null,null,null,"A-443",null,null,"",null,"","",""]
[null,null,null,null,null,null,null,null,null,null,null,null,null,null,null,null,"A-444",null,null,"",null,"","",""]
[null,null,null,null,null,null,null,null,null,null,null,null,null,null,null,null,"A-445",null,null,"",null,"","",""]
[null,"R-90",{"$f":"IF(F451=\"Sea level rise and storm surge\",\"SL\",IF(F451=\"Increased flooding\",\"FL\",IF(F451=\"Increased rainfall variability\",\"RV\",IF(F451=\"Increased average temperature\",\"AT\",IF(F451=\"Increase in hot days\",\"HD\",IF(F451=\"Increased fire risk\",\"FR\",IF(F451=\"Increased atmospheric CO2\",\"AC\",\"\")))))))","v":""},90,null,null,null,null,null,{"$f":"IF(I451=\"Almost Certain\",5,IF(I451=\"likely\",4,IF(I451=\"Possible\",3,IF(I451=\"Unlikely\",2,IF(I451=\"rare\",1,\"\")))))","v":""},null,{"$f":"IF(K451=\"Catastrophic\",5,IF(K451=\"Major\",4,IF(K451=\"Moderate\",3,IF(K451=\"Minor\",2,IF(K451=\"Insignificant\",1,\"\")))))","v":""},{"$f":"IF(L451=\"\",\"\",L451+J451)","v":""},{"$f":"IF(M451=\"\",\"\",IF(M451<5,\"Low\",IF(AND(M451>4,M451<7),\"Moderate\",IF(M451=7,\"High\",IF(M451>7,\"Extreme\",)))))","v":""},null,null,"A-446",null,null,"",null,"","",""]
[null,null,null,null,null,null,null,null,null,null,null,null,null,null,null,null,"A-447",null,null,"",null,"","",""]
[null,null,null,null,null,null,null,null,null,null,null,null,null,null,null,null,"A-448",null,null,"",null,"","",""]
[null,null,null,null,null,null,null,null,null,null,null,null,null,null,null,null,"A-449",null,null,"",null,"","",""]
[null,null,null,null,null,null,null,null,null,null,null,null,null,null,null,null,"A-450",null,null,"",null,"","",""]
[null,"R-91",{"$f":"IF(F456=\"Sea level rise and storm surge\",\"SL\",IF(F456=\"Increased flooding\",\"FL\",IF(F456=\"Increased rainfall variability\",\"RV\",IF(F456=\"Increased average temperature\",\"AT\",IF(F456=\"Increase in hot days\",\"HD\",IF(F456=\"Increased fire risk\",\"FR\",IF(F456=\"Increased atmospheric CO2\",\"AC\",\"\")))))))","v":""},91,null,null,null,null,null,{"$f":"IF(I456=\"Almost Certain\",5,IF(I456=\"likely\",4,IF(I456=\"Possible\",3,IF(I456=\"Unlikely\",2,IF(I456=\"rare\",1,\"\")))))","v":""},null,{"$f":"IF(K456=\"Catastrophic\",5,IF(K456=\"Major\",4,IF(K456=\"Moderate\",3,IF(K456=\"Minor\",2,IF(K456=\"Insignificant\",1,\"\")))))","v":""},{"$f":"IF(L456=\"\",\"\",L456+J456)","v":""},{"$f":"IF(M456=\"\",\"\",IF(M456<5,\"Low\",IF(AND(M456>4,M456<7),\"Moderate\",IF(M456=7,\"High\",IF(M456>7,\"Extreme\",)))))","v":""},null,null,"A-451",null,null,"",null,{"$f":"IF(U456=\"Catastrophic\",5,IF(U456=\"Major\",4,IF(U456=\"Moderate\",3,IF(U456=\"Minor\",2,IF(U456=\"Insignificant\",1,\"\")))))","v":""},{"$f":"IF(V456=\"\",\"\",V456+T456)","v":""},{"$f":"IF(W456=\"\",\"\",IF(W456<5,\"Low\",IF(AND(W456>4,W456<7),\"Moderate\",IF(W456=7,\"High\",IF(W456>7,\"Extreme\",)))))","v":""}]
[null,null,null,null,null,null,null,null,null,null,null,null,null,null,null,null,"A-452",null,null,"",null,"","",""]
[null,null,null,null,null,null,null,null,null,null,null,null,null,null,null,null,"A-453",null,null,"",null,"","",""]
[null,null,null,null,null,null,null,null,null,null,null,null,null,null,null,null,"A-454",null,null,"",null,"","",""]
[null,null,null,null,null,null,null,null,null,null,null,null,null,null,null,null,"A-455",null,null,"",null,"","",""]
[null,"R-92",{"$f":"IF(F461=\"Sea level rise and storm surge\",\"SL\",IF(F461=\"Increased flooding\",\"FL\",IF(F461=\"Increased rainfall variability\",\"RV\",IF(F461=\"Increased average temperature\",\"AT\",IF(F461=\"Increase in hot days\",\"HD\",IF(F461=\"Increased fire risk\",\"FR\",IF(F461=\"Increased atmospheric CO2\",\"AC\",\"\")))))))","v":""},92,null,null,null,null,null,{"$f":"IF(I461=\"Almost Certain\",5,IF(I461=\"likely\",4,IF(I461=\"Possible\",3,IF(I461=\"Unlikely\",2,IF(I461=\"rare\",1,\"\")))))","v":""},null,{"$f":"IF(K461=\"Catastrophic\",5,IF(K461=\"Major\",4,IF(K461=\"Moderate\",3,IF(K461=\"Minor\",2,IF(K461=\"Insignificant\",1,\"\")))))","v":""},{"$f":"IF(L461=\"\",\"\",L461+J461)","v":""},{"$f":"IF(M461=\"\",\"\",IF(M461<5,\"Low\",IF(AND(M461>4,M461<7),\"Moderate\",IF(M461=7,\"High\",IF(M461>7,\"Extreme\",)))))","v":""},null,null,"A-456",null,null,"",null,"","",""]
[null,null,null,null,null,null,null,null,null,null,null,null,null,null,null,null,"A-457",null,null,"",null,"","",""]
[null,null,null,null,null,null,null,null,null,null,null,null,null,null,null,null,"A-458",null,null,"",null,"","",""]
[null,null,null,null,null,null,null,null,null,null,null,null,null,null,null,null,"A-459",null,null,"",null,"","",""]
[null,null,null,null,null,null,null,null,null,null,null,null,null,null,null,null,"A-460",null,null,"",null,"","",""]
[null,"R-93",{"$f":"IF(F466=\"Sea level rise and storm surge\",\"SL\",IF(F466=\"Increased flooding\",\"FL\",IF(F466=\"Increased rainfall variability\",\"RV\",IF(F466=\"Increased average temperature\",\"AT\",IF(F466=\"Increase in hot days\",\"HD\",IF(F466=\"Increased fire risk\",\"FR\",IF(F466=\"Increased atmospheric CO2\",\"AC\",\"\")))))))","v":""},93,null,null,null,null,null,{"$f":"IF(I466=\"Almost Certain\",5,IF(I466=\"likely\",4,IF(I466=\"Possible\",3,IF(I466=\"Unlikely\",2,IF(I466=\"rare\",1,\"\")))))","v":""},null,{"$f":"IF(K466=\"Catastrophic\",5,IF(K466=\"Major\",4,IF(K466=\"Moderate\",3,IF(K466=\"Minor\",2,IF(K466=\"Insignificant\",1,\"\")))))","v":""},{"$f":"IF(L466=\"\",\"\",L466+J466)","v":""},{"$f":"IF(M466=\"\",\"\",IF(M466<5,\"Low\",IF(AND(M466>4,M466<7),\"Moderate\",IF(M466=7,\"High\",IF(M466>7,\"Extreme\",)))))","v":""},null,null,"A-461",null,null,"",null,"","",""]
[null,null,null,null,null,null,null,null,null,null,null,null,null,null,null,null,"A-462",null,null,"",null,"","",""]
[null,null,null,null,null,null,null,null,null,null,null,null,null,null,null,null,"A-463",null,null,"",null,"","",""]
[null,null,null,null,null,null,null,null,null,null,null,null,null,null,null,null,"A-464",null,null,"",null,"","",""]
[null,null,null,null,null,null,null,null,null,null,null,null,null,null,null,null,"A-465",null,null,{"$f":"IF(S470=\"Almost Certain\",5,IF(S470=\"likely\",4,IF(S470=\"Possible\",3,IF(S470=\"Unlikely\",2,IF(S470=\"rare\",1,\"\")))))","v":""},null,"","",""]
[null,"R-94",{"$f":"IF(F471=\"Sea level rise and storm surge\",\"SL\",IF(F471=\"Increased flooding\",\"FL\",IF(F471=\"Increased rainfall variability\",\"RV\",IF(F471=\"Increased average temperature\",\"AT\",IF(F471=\"Increase in hot days\",\"HD\",IF(F471=\"Increased fire risk\",\"FR\",IF(F471=\"Increased atmospheric CO2\",\"AC\",\"\")))))))","v":""},94,null,null,null,null,null,{"$f":"IF(I471=\"Almost Certain\",5,IF(I471=\"likely\",4,IF(I471=\"Possible\",3,IF(I471=\"Unlikely\",2,IF(I471=\"rare\",1,\"\")))))","v":""},null,{"$f":"IF(K471=\"Catastrophic\",5,IF(K471=\"Major\",4,IF(K471=\"Moderate\",3,IF(K471=\"Minor\",2,IF(K471=\"Insignificant\",1,\"\")))))","v":""},{"$f":"IF(L471=\"\",\"\",L471+J471)","v":""},{"$f":"IF(M471=\"\",\"\",IF(M471<5,\"Low\",IF(AND(M471>4,M471<7),\"Moderate\",IF(M471=7,\"High\",IF(M471>7,\"Extreme\",)))))","v":""},null,null,"A-466",null,null,"",null,"","",""]
[null,null,null,null,null,null,null,null,null,null,null,null,null,null,null,null,"A-467",null,null,"",null,"","",""]
[null,null,null,null,null,null,null,null,null,null,null,null,null,null,null,null,"A-468",null,null,"",null,"","",""]
[null,null,null,null,null,null,null,null,null,null,null,null,null,null,null,null,"A-469",null,null,"",null,"","",""]
[null,null,null,null,null,null,null,null,null,null,null,null,null,null,null,null,"A-470",null,null,"",null,"","",""]
[null,"R-95",{"$f":"IF(F476=\"Sea level rise and storm surge\",\"SL\",IF(F476=\"Increased flooding\",\"FL\",IF(F476=\"Increased rainfall variability\",\"RV\",IF(F476=\"Increased average temperature\",\"AT\",IF(F476=\"Increase in hot days\",\"HD\",IF(F476=\"Increased fire risk\",\"FR\",IF(F476=\"Increased atmospheric CO2\",\"AC\",\"\")))))))","v":""},95,null,null,null,null,null,{"$f":"IF(I476=\"Almost Certain\",5,IF(I476=\"likely\",4,IF(I476=\"Possible\",3,IF(I476=\"Unlikely\",2,IF(I476=\"rare\",1,\"\")))))","v":""},null,{"$f":"IF(K476=\"Catastrophic\",5,IF(K476=\"Major\",4,IF(K476=\"Moderate\",3,IF(K476=\"Minor\",2,IF(K476=\"Insignificant\",1,\"\")))))","v":""},{"$f":"IF(L476=\"\",\"\",L476+J476)","v":""},{"$f":"IF(M476=\"\",\"\",IF(M476<5,\"Low\",IF(AND(M476>4,M476<7),\"Moderate\",IF(M476=7,\"High\",IF(M476>7,\"Extreme\",)))))","v":""},null,null,"A-471",null,null,"",null,"","",""]
[null,null,null,null,null,null,null,null,null,null,null,null,null,null,null,null,"A-472",null,null,"",null,"","",""]
[null,null,null,null,null,null,null,null,null,null,null,null,null,null,null,null,"A-473",null,null,"",null,"","",""]
[null,null,null,null,null,null,null,null,null,null,null,null,null,null,null,null,"A-474",null,null,"",null,"","",""]
[null,null,null,null,null,null,null,null,null,null,null,null,null,null,null,null,"A-475",null,null,"",null,"","",""]
[null,"R-96",{"$f":"IF(F481=\"Sea level rise and storm surge\",\"SL\",IF(F481=\"Increased flooding\",\"FL\",IF(F481=\"Increased rainfall variability\",\"RV\",IF(F481=\"Increased average temperature\",\"AT\",IF(F481=\"Increase in hot days\",\"HD\",IF(F481=\"Increased fire risk\",\"FR\",IF(F481=\"Increased atmospheric CO2\",\"AC\",\"\")))))))","v":""},96,null,null,null,null,null,{"$f":"IF(I481=\"Almost Certain\",5,IF(I481=\"likely\",4,IF(I481=\"Possible\",3,IF(I481=\"Unlikely\",2,IF(I481=\"rare\",1,\"\")))))","v":""},null,{"$f":"IF(K481=\"Catastrophic\",5,IF(K481=\"Major\",4,IF(K481=\"Moderate\",3,IF(K481=\"Minor\",2,IF(K481=\"Insignificant\",1,\"\")))))","v":""},{"$f":"IF(L481=\"\",\"\",L481+J481)","v":""},{"$f":"IF(M481=\"\",\"\",IF(M481<5,\"Low\",IF(AND(M481>4,M481<7),\"Moderate\",IF(M481=7,\"High\",IF(M481>7,\"Extreme\",)))))","v":""},null,null,"A-476",null,null,"",null,"","",""]
[null,null,null,null,null,null,null,null,null,null,null,null,null,null,null,null,"A-477",null,null,"",null,"","",""]
[null,null,null,null,null,null,null,null,null,null,null,null,null,null,null,null,"A-478",null,null,"",null,"","",""]
[null,null,null,null,null,null,null,null,null,null,null,null,null,null,null,null,"A-479",null,null,"",null,"","",""]
[null,null,null,null,null,null,null,null,null,null,null,null,null,null,null,null,"A-480",null,null,"",null,"","",""]
[null,"R-97",{"$f":"IF(F486=\"Sea level rise and storm surge\",\"SL\",IF(F486=\"Increased flooding\",\"FL\",IF(F486=\"Increased rainfall variability\",\"RV\",IF(F486=\"Increased average temperature\",\"AT\",IF(F486=\"Increase in hot days\",\"HD\",IF(F486=\"Increased fire risk\",\"FR\",IF(F486=\"Increased atmospheric CO2\",\"AC\",\"\")))))))","v":""},97,null,null,null,null,null,{"$f":"IF(I486=\"Almost Certain\",5,IF(I486=\"likely\",4,IF(I486=\"Possible\",3,IF(I486=\"Unlikely\",2,IF(I486=\"rare\",1,\"\")))))","v":""},null,{"$f":"IF(K486=\"Catastrophic\",5,IF(K486=\"Major\",4,IF(K486=\"Moderate\",3,IF(K486=\"Minor\",2,IF(K486=\"Insignificant\",1,\"\")))))","v":""},{"$f":"IF(L486=\"\",\"\",L486+J486)","v":""},{"$f":"IF(M486=\"\",\"\",IF(M486<5,\"Low\",IF(AND(M486>4,M486<7),\"Moderate\",IF(M486=7,\"High\",IF(M486>7,\"Extreme\",)))))","v":""},null,null,"A-481",null,null,"",null,"","",""]
[null,null,null,null,null,null,null,null,null,null,null,null,null,null,null,null,"A-482",null,null,"",null,"","",""]
[null,null,null,null,null,null,null,null,null,null,null,null,null,null,null,null,"A-483",null,null,"",null,"","",""]
[null,null,null,null,null,null,null,null,null,null,null,null,null,null,null,null,"A-484",null,null,"",null,"","",""]
[null,null,null,null,null,null,null,null,null,null,null,null,null,null,null,null,"A-485",null,null,"",null,"","",""]
[null,"R-98",{"$f":"IF(F491=\"Sea level rise and storm surge\",\"SL\",IF(F491=\"Increased flooding\",\"FL\",IF(F491=\"Increased rainfall variability\",\"RV\",IF(F491=\"Increased average temperature\",\"AT\",IF(F491=\"Increase in hot days\",\"HD\",IF(F491=\"Increased fire risk\",\"FR\",IF(F491=\"Increased atmospheric CO2\",\"AC\",\"\")))))))","v":""},98,null,null,null,null,null,{"$f":"IF(I491=\"Almost Certain\",5,IF(I491=\"likely\",4,IF(I491=\"Possible\",3,IF(I491=\"Unlikely\",2,IF(I491=\"rare\",1,\"\")))))","v":""},null,{"$f":"IF(K491=\"Catastrophic\",5,IF(K491=\"Major\",4,IF(K491=\"Moderate\",3,IF(K491=\"Minor\",2,IF(K491=\"Insignificant\",1,\"\")))))","v":""},{"$f":"IF(L491=\"\",\"\",L491+J491)","v":""},{"$f":"IF(M491=\"\",\"\",IF(M491<5,\"Low\",IF(AND(M491>4,M491<7),\"Moderate\",IF(M491=7,\"High\",IF(M491>7,\"Extreme\",)))))","v":""},null,null,"A-486",null,null,"",null,"","",""]
[null,null,null,null,null,null,null,null,null,null,null,null,null,null,null,null,"A-487",null,null,"",null,"","",""]
[null,null,null,null,null,null,null,null,null,null,null,null,null,null,null,null,"A-488",null,null,"",null,"","",""]
[null,null,null,null,null,null,null,null,null,null,null,null,null,null,null,null,"A-489",null,null,"",null,"","",""]
[null,null,null,null,null,null,null,null,null,null,null,null,null,null,null,null,"A-490",null,null,"",null,"","",""]
[null,"R-99",{"$f":"IF(F496=\"Sea level rise and storm surge\",\"SL\",IF(F496=\"Increased flooding\",\"FL\",IF(F496=\"Increased rainfall variability\",\"RV\",IF(F496=\"Increased average temperature\",\"AT\",IF(F496=\"Increase in hot days\",\"HD\",IF(F496=\"Increased fire risk\",\"FR\",IF(F496=\"Increased atmospheric CO2\",\"AC\",\"\")))))))","v":""},99,null,null,null,null,null,{"$f":"IF(I496=\"Almost Certain\",5,IF(I496=\"likely\",4,IF(I496=\"Possible\",3,IF(I496=\"Unlikely\",2,IF(I496=\"rare\",1,\"\")))))","v":""},null,{"$f":"IF(K496=\"Catastrophic\",5,IF(K496=\"Major\",4,IF(K496=\"Moderate\",3,IF(K496=\"Minor\",2,IF(K496=\"Insignificant\",1,\"\")))))","v":""},{"$f":"IF(L496=\"\",\"\",L496+J496)","v":""},{"$f":"IF(M496=\"\",\"\",IF(M496<5,\"Low\",IF(AND(M496>4,M496<7),\"Moderate\",IF(M496=7,\"High\",IF(M496>7,\"Extreme\",)))))","v":""},null,null,"A-491",null,null,"",null,"","",""]
[null,null,null,null,null,null,null,null,null,null,null,null,null,null,null,null,"A-492",null,null,"",null,"","",""]
[null,null,null,null,null,null,null,null,null,null,null,null,null,null,null,null,"A-493",null,null,"",null,"","",""]
[null,null,null,null,null,null,null,null,null,null,null,null,null,null,null,null,"A-494",null,null,"",null,"","",""]
[null,null,null,null,null,null,null,null,null,null,null,null,null,null,null,null,"A-495",null,null,"",null,"","",""]
[null,"R-100",{"$f":"IF(F501=\"Sea level rise and storm surge\",\"SL\",IF(F501=\"Increased flooding\",\"FL\",IF(F501=\"Increased rainfall variability\",\"RV\",IF(F501=\"Increased average temperature\",\"AT\",IF(F501=\"Increase in hot days\",\"HD\",IF(F501=\"Increased fire risk\",\"FR\",IF(F501=\"Increased atmospheric CO2\",\"AC\",\"\")))))))","v":""},100,null,null,null,null,null,{"$f":"IF(I501=\"Almost Certain\",5,IF(I501=\"likely\",4,IF(I501=\"Possible\",3,IF(I501=\"Unlikely\",2,IF(I501=\"rare\",1,\"\")))))","v":""},null,{"$f":"IF(K501=\"Catastrophic\",5,IF(K501=\"Major\",4,IF(K501=\"Moderate\",3,IF(K501=\"Minor\",2,IF(K501=\"Insignificant\",1,\"\")))))","v":""},{"$f":"IF(L501=\"\",\"\",L501+J501)","v":""},{"$f":"IF(M501=\"\",\"\",IF(M501<5,\"Low\",IF(AND(M501>4,M501<7),\"Moderate\",IF(M501=7,\"High\",IF(M501>7,\"Extreme\",)))))","v":""},null,null,"A-496",null,null,"",null,"","",""]
[null,null,null,null,null,null,null,null,null,null,null,null,null,null,null,null,"A-497",null,null,"",null,"","",""]
[null,null,null,null,null,null,null,null,null,null,null,null,null,null,null,null,"A-498",null,null,"",null,"","",""]
[null,null,null,null,null,null,null,null,null,null,null,null,null,null,null,null,"A-499",null,null,"",null,"","",""]
[null,null,null,null,null,null,null,null,null,null,null,null,null,null,null,null,"A-500",null,null,"",null,"","",""]
[null,"R-101",{"$f":"IF(F506=\"Sea level rise and storm surge\",\"SL\",IF(F506=\"Increased flooding\",\"FL\",IF(F506=\"Increased rainfall variability\",\"RV\",IF(F506=\"Increased average temperature\",\"AT\",IF(F506=\"Increase in hot days\",\"HD\",IF(F506=\"Increased fire risk\",\"FR\",IF(F506=\"Increased atmospheric CO2\",\"AC\",\"\")))))))","v":""},101,null,null,null,null,null,{"$f":"IF(I506=\"Almost Certain\",5,IF(I506=\"likely\",4,IF(I506=\"Possible\",3,IF(I506=\"Unlikely\",2,IF(I506=\"rare\",1,\"\")))))","v":""},null,{"$f":"IF(K506=\"Catastrophic\",5,IF(K506=\"Major\",4,IF(K506=\"Moderate\",3,IF(K506=\"Minor\",2,IF(K506=\"Insignificant\",1,\"\")))))","v":""},{"$f":"IF(L506=\"\",\"\",L506+J506)","v":""},{"$f":"IF(M506=\"\",\"\",IF(M506<5,\"Low\",IF(AND(M506>4,M506<7),\"Moderate\",IF(M506=7,\"High\",IF(M506>7,\"Extreme\",)))))","v":""},null,null,"A-501",null,null,"",null,"","",""]
[null,null,null,null,null,null,null,null,null,null,null,null,null,null,null,null,"A-502",null,null,"",null,"","",""]
[null,null,null,null,null,null,null,null,null,null,null,null,null,null,null,null,"A-503",null,null,"",null,"","",""]
[null,null,null,null,null,null,null,null,null,null,null,null,null,null,null,null,"A-504",null,null,"",null,"","",""]
[null,null,null,null,null,null,null,null,null,null,null,null,null,null,null,null,"A-505",null,null,"",null,"","",""]
[null,"R-102",{"$f":"IF(F511=\"Sea level rise and storm surge\",\"SL\",IF(F511=\"Increased flooding\",\"FL\",IF(F511=\"Increased rainfall variability\",\"RV\",IF(F511=\"Increased average temperature\",\"AT\",IF(F511=\"Increase in hot days\",\"HD\",IF(F511=\"Increased fire risk\",\"FR\",IF(F511=\"Increased atmospheric CO2\",\"AC\",\"\")))))))","v":""},102,null,null,null,null,null,{"$f":"IF(I511=\"Almost Certain\",5,IF(I511=\"likely\",4,IF(I511=\"Possible\",3,IF(I511=\"Unlikely\",2,IF(I511=\"rare\",1,\"\")))))","v":""},null,{"$f":"IF(K511=\"Catastrophic\",5,IF(K511=\"Major\",4,IF(K511=\"Moderate\",3,IF(K511=\"Minor\",2,IF(K511=\"Insignificant\",1,\"\")))))","v":""},{"$f":"IF(L511=\"\",\"\",L511+J511)","v":""},{"$f":"IF(M511=\"\",\"\",IF(M511<5,\"Low\",IF(AND(M511>4,M511<7),\"Moderate\",IF(M511=7,\"High\",IF(M511>7,\"Extreme\",)))))","v":""},null,null,"A-506",null,null,"",null,"","",""]
[null,null,null,null,null,null,null,null,null,null,null,null,null,null,null,null,"A-507",null,null,"",null,"","",""]
[null,null,null,null,null,null,null,null,null,null,null,null,null,null,null,null,"A-508",null,null,"",null,"","",""]
[null,null,null,null,null,null,null,null,null,null,null,null,null,null,null,null,"A-509",null,null,"",null,"","",""]
[null,null,null,null,null,null,null,null,null,null,null,null,null,null,null,null,"A-510",null,null,"",null,"","",""]
[null,"R-103",{"$f":"IF(F516=\"Sea level rise and storm surge\",\"SL\",IF(F516=\"Increased flooding\",\"FL\",IF(F516=\"Increased rainfall variability\",\"RV\",IF(F516=\"Increased average temperature\",\"AT\",IF(F516=\"Increase in hot days\",\"HD\",IF(F516=\"Increased fire risk\",\"FR\",IF(F516=\"Increased atmospheric CO2\",\"AC\",\"\")))))))","v":""},103,null,null,null,null,null,{"$f":"IF(I516=\"Almost Certain\",5,IF(I516=\"likely\",4,IF(I516=\"Possible\",3,IF(I516=\"Unlikely\",2,IF(I516=\"rare\",1,\"\")))))","v":""},null,{"$f":"IF(K516=\"Catastrophic\",5,IF(K516=\"Major\",4,IF(K516=\"Moderate\",3,IF(K516=\"Minor\",2,IF(K516=\"Insignificant\",1,\"\")))))","v":""},{"$f":"IF(L516=\"\",\"\",L516+J516)","v":""},{"$f":"IF(M516=\"\",\"\",IF(M516<5,\"Low\",IF(AND(M516>4,M516<7),\"Moderate\",IF(M516=7,\"High\",IF(M516>7,\"Extreme\",)))))","v":""},null,null,"A-511",null,null,"",null,"","",""]
[null,null,null,null,null,null,null,null,null,null,null,null,null,null,null,null,"A-512",null,null,"",null,"","",""]
[null,null,null,null,null,null,null,null,null,null,null,null,null,null,null,null,"A-513",null,null,"",null,"","",""]
[null,null,null,null,null,null,null,null,null,null,null,null,null,null,null,null,"A-514",null,null,"",null,"","",""]
[null,null,null,null,null,null,null,null,null,null,null,null,null,null,null,null,"A-515",null,null,"",null,{"$f":"IF(U520=\"Catastrophic\",5,IF(U520=\"Major\",4,IF(U520=\"Moderate\",3,IF(U520=\"Minor\",2,IF(U520=\"Insignificant\",1,\"\")))))","v":""},{"$f":"IF(V520=\"\",\"\",V520+T520)","v":""},{"$f":"IF(W520=\"\",\"\",IF(W520<5,\"Low\",IF(AND(W520>4,W520<7),\"Moderate\",IF(W520=7,\"High\",IF(W520>7,\"Extreme\",)))))","v":""}]
[null,"R-104",{"$f":"IF(F521=\"Sea level rise and storm surge\",\"SL\",IF(F521=\"Increased flooding\",\"FL\",IF(F521=\"Increased rainfall variability\",\"RV\",IF(F521=\"Increased average temperature\",\"AT\",IF(F521=\"Increase in hot days\",\"HD\",IF(F521=\"Increased fire risk\",\"FR\",IF(F521=\"Increased atmospheric CO2\",\"AC\",\"\")))))))","v":""},104,null,null,null,null,null,{"$f":"IF(I521=\"Almost Certain\",5,IF(I521=\"likely\",4,IF(I521=\"Possible\",3,IF(I521=\"Unlikely\",2,IF(I521=\"rare\",1,\"\")))))","v":""},null,{"$f":"IF(K521=\"Catastrophic\",5,IF(K521=\"Major\",4,IF(K521=\"Moderate\",3,IF(K521=\"Minor\",2,IF(K521=\"Insignificant\",1,\"\")))))","v":""},{"$f":"IF(L521=\"\",\"\",L521+J521)","v":""},{"$f":"IF(M521=\"\",\"\",IF(M521<5,\"Low\",IF(AND(M521>4,M521<7),\"Moderate\",IF(M521=7,\"High\",IF(M521>7,\"Extreme\",)))))","v":""},null,null,"A-516",null,null,"",null,"","",""]
[null,null,null,null,null,null,null,null,null,null,null,null,null,null,null,null,"A-517",null,null,"",null,"","",""]
[null,null,null,null,null,null,null,null,null,null,null,null,null,null,null,null,"A-518",null,null,"",null,"","",""]
[null,null,null,null,null,null,null,null,null,null,null,null,null,null,null,null,"A-519",null,null,"",null,"","",""]
[null,null,null,null,null,null,null,null,null,null,null,null,null,null,null,null,"A-520",null,null,"",null,"","",""]
[null,"R-105",{"$f":"IF(F526=\"Sea level rise and storm surge\",\"SL\",IF(F526=\"Increased flooding\",\"FL\",IF(F526=\"Increased rainfall variability\",\"RV\",IF(F526=\"Increased average temperature\",\"AT\",IF(F526=\"Increase in hot days\",\"HD\",IF(F526=\"Increased fire risk\",\"FR\",IF(F526=\"Increased atmospheric CO2\",\"AC\",\"\")))))))","v":""},105,null,null,null,null,null,{"$f":"IF(I526=\"Almost Certain\",5,IF(I526=\"likely\",4,IF(I526=\"Possible\",3,IF(I526=\"Unlikely\",2,IF(I526=\"rare\",1,\"\")))))","v":""},null,{"$f":"IF(K526=\"Catastrophic\",5,IF(K526=\"Major\",4,IF(K526=\"Moderate\",3,IF(K526=\"Minor\",2,IF(K526=\"Insignificant\",1,\"\")))))","v":""},{"$f":"IF(L526=\"\",\"\",L526+J526)","v":""},{"$f":"IF(M526=\"\",\"\",IF(M526<5,\"Low\",IF(AND(M526>4,M526<7),\"Moderate\",IF(M526=7,\"High\",IF(M526>7,\"Extreme\",)))))","v":""},null,null,"A-521",null,null,"",null,"","",""]
[null,null,null,null,null,null,null,null,null,null,null,null,null,null,null,null,"A-522",null,null,"",null,"","",""]
[null,null,null,null,null,null,null,null,null,null,null,null,null,null,null,null,"A-523",null,null,"",null,"","",""]
[null,null,null,null,null,null,null,null,null,null,null,null,null,null,null,null,"A-524",null,null,"",null,"","",""]
[null,null,null,null,null,null,null,null,null,null,null,null,null,null,null,null,"A-525",null,null,"",null,"","",""]
[null,"R-106",{"$f":"IF(F531=\"Sea level rise and storm surge\",\"SL\",IF(F531=\"Increased flooding\",\"FL\",IF(F531=\"Increased rainfall variability\",\"RV\",IF(F531=\"Increased average temperature\",\"AT\",IF(F531=\"Increase in hot days\",\"HD\",IF(F531=\"Increased fire risk\",\"FR\",IF(F531=\"Increased atmospheric CO2\",\"AC\",\"\")))))))","v":""},106,null,null,null,null,null,{"$f":"IF(I531=\"Almost Certain\",5,IF(I531=\"likely\",4,IF(I531=\"Possible\",3,IF(I531=\"Unlikely\",2,IF(I531=\"rare\",1,\"\")))))","v":""},null,{"$f":"IF(K531=\"Catastrophic\",5,IF(K531=\"Major\",4,IF(K531=\"Moderate\",3,IF(K531=\"Minor\",2,IF(K531=\"Insignificant\",1,\"\")))))","v":""},{"$f":"IF(L531=\"\",\"\",L531+J531)","v":""},{"$f":"IF(M531=\"\",\"\",IF(M531<5,\"Low\",IF(AND(M531>4,M531<7),\"Moderate\",IF(M531=7,\"High\",IF(M531>7,\"Extreme\",)))))","v":""},null,null,"A-526",null,null,"",null,"","",""]
[null,null,null,null,null,null,null,null,null,null,null,null,null,null,null,null,"A-527",null,null,"",null,"","",""]
[null,null,null,null,null,null,null,null,null,null,null,null,null,null,null,null,"A-528",null,null,"",null,"","",""]
[null,null,null,null,null,null,null,null,null,null,null,null,null,null,null,null,"A-529",null,null,{"$f":"IF(S534=\"Almost Certain\",5,IF(S534=\"likely\",4,IF(S534=\"Possible\",3,IF(S534=\"Unlikely\",2,IF(S534=\"rare\",1,\"\")))))","v":""},null,"","",""]
[null,null,null,null,null,null,null,null,null,null,null,null,null,null,null,null,"A-530",null,null,"",null,"","",""]
[null,"R-107",{"$f":"IF(F536=\"Sea level rise and storm surge\",\"SL\",IF(F536=\"Increased flooding\",\"FL\",IF(F536=\"Increased rainfall variability\",\"RV\",IF(F536=\"Increased average temperature\",\"AT\",IF(F536=\"Increase in hot days\",\"HD\",IF(F536=\"Increased fire risk\",\"FR\",IF(F536=\"Increased atmospheric CO2\",\"AC\",\"\")))))))","v":""},107,null,null,null,null,null,{"$f":"IF(I536=\"Almost Certain\",5,IF(I536=\"likely\",4,IF(I536=\"Possible\",3,IF(I536=\"Unlikely\",2,IF(I536=\"rare\",1,\"\")))))","v":""},null,{"$f":"IF(K536=\"Catastrophic\",5,IF(K536=\"Major\",4,IF(K536=\"Moderate\",3,IF(K536=\"Minor\",2,IF(K536=\"Insignificant\",1,\"\")))))","v":""},{"$f":"IF(L536=\"\",\"\",L536+J536)","v":""},{"$f":"IF(M536=\"\",\"\",IF(M536<5,\"Low\",IF(AND(M536>4,M536<7),\"Moderate\",IF(M536=7,\"High\",IF(M536>7,\"Extreme\",)))))","v":""},null,null,"A-531",null,null,"",null,"","",""]
[null,null,null,null,null,null,null,null,null,null,null,null,null,null,null,null,"A-532",null,null,"",null,"","",""]
[null,null,null,null,null,null,null,null,null,null,null,null,null,null,null,null,"A-533",null,null,"",null,"","",""]
[null,null,null,null,null,null,null,null,null,null,null,null,null,null,null,null,"A-534",null,null,"",null,"","",""]
[null,null,null,null,null,null,null,null,null,null,null,null,null,null,null,null,"A-535",null,null,"",null,"","",""]
[null,"R-108",{"$f":"IF(F541=\"Sea level rise and storm surge\",\"SL\",IF(F541=\"Increased flooding\",\"FL\",IF(F541=\"Increased rainfall variability\",\"RV\",IF(F541=\"Increased average temperature\",\"AT\",IF(F541=\"Increase in hot days\",\"HD\",IF(F541=\"Increased fire risk\",\"FR\",IF(F541=\"Increased atmospheric CO2\",\"AC\",\"\")))))))","v":""},108,null,null,null,null,null,{"$f":"IF(I541=\"Almost Certain\",5,IF(I541=\"likely\",4,IF(I541=\"Possible\",3,IF(I541=\"Unlikely\",2,IF(I541=\"rare\",1,\"\")))))","v":""},null,{"$f":"IF(K541=\"Catastrophic\",5,IF(K541=\"Major\",4,IF(K541=\"Moderate\",3,IF(K541=\"Minor\",2,IF(K541=\"Insignificant\",1,\"\")))))","v":""},{"$f":"IF(L541=\"\",\"\",L541+J541)","v":""},{"$f":"IF(M541=\"\",\"\",IF(M541<5,\"Low\",IF(AND(M541>4,M541<7),\"Moderate\",IF(M541=7,\"High\",IF(M541>7,\"Extreme\",)))))","v":""},null,null,"A-536",null,null,"",null,"","",""]
[null,null,null,null,null,null,null,null,null,null,null,null,null,null,null,null,"A-537",null,null,"",null,"","",""]
[null,null,null,null,null,null,null,null,null,null,null,null,null,null,null,null,"A-538",null,null,"",null,"","",""]
[null,null,null,null,null,null,null,null,null,null,null,null,null,null,null,null,"A-539",null,null,"",null,"","",""]
[null,null,null,null,null,null,null,null,null,null,null,null,null,null,null,null,"A-540",null,null,"",null,"","",""]
[null,"R-109",{"$f":"IF(F546=\"Sea level rise and storm surge\",\"SL\",IF(F546=\"Increased flooding\",\"FL\",IF(F546=\"Increased rainfall variability\",\"RV\",IF(F546=\"Increased average temperature\",\"AT\",IF(F546=\"Increase in hot days\",\"HD\",IF(F546=\"Increased fire risk\",\"FR\",IF(F546=\"Increased atmospheric CO2\",\"AC\",\"\")))))))","v":""},109,null,null,null,null,null,{"$f":"IF(I546=\"Almost Certain\",5,IF(I546=\"likely\",4,IF(I546=\"Possible\",3,IF(I546=\"Unlikely\",2,IF(I546=\"rare\",1,\"\")))))","v":""},null,{"$f":"IF(K546=\"Catastrophic\",5,IF(K546=\"Major\",4,IF(K546=\"Moderate\",3,IF(K546=\"Minor\",2,IF(K546=\"Insignificant\",1,\"\")))))","v":""},{"$f":"IF(L546=\"\",\"\",L546+J546)","v":""},{"$f":"IF(M546=\"\",\"\",IF(M546<5,\"Low\",IF(AND(M546>4,M546<7),\"Moderate\",IF(M546=7,\"High\",IF(M546>7,\"Extreme\",)))))","v":""},null,null,"A-541",null,null,"",null,"","",""]
[null,null,null,null,null,null,null,null,null,null,null,null,null,null,null,null,"A-542",null,null,"",null,"","",""]
[null,null,null,null,null,null,null,null,null,null,null,null,null,null,null,null,"A-543",null,null,"",null,"","",""]
[null,null,null,null,null,null,null,null,null,null,null,null,null,null,null,null,"A-544",null,null,"",null,"","",""]
[null,null,null,null,null,null,null,null,null,null,null,null,null,null,null,null,"A-545",null,null,"",null,"","",""]
[null,"R-110",{"$f":"IF(F551=\"Sea level rise and storm surge\",\"SL\",IF(F551=\"Increased flooding\",\"FL\",IF(F551=\"Increased rainfall variability\",\"RV\",IF(F551=\"Increased average temperature\",\"AT\",IF(F551=\"Increase in hot days\",\"HD\",IF(F551=\"Increased fire risk\",\"FR\",IF(F551=\"Increased atmospheric CO2\",\"AC\",\"\")))))))","v":""},110,null,null,null,null,null,{"$f":"IF(I551=\"Almost Certain\",5,IF(I551=\"likely\",4,IF(I551=\"Possible\",3,IF(I551=\"Unlikely\",2,IF(I551=\"rare\",1,\"\")))))","v":""},null,{"$f":"IF(K551=\"Catastrophic\",5,IF(K551=\"Major\",4,IF(K551=\"Moderate\",3,IF(K551=\"Minor\",2,IF(K551=\"Insignificant\",1,\"\")))))","v":""},{"$f":"IF(L551=\"\",\"\",L551+J551)","v":""},{"$f":"IF(M551=\"\",\"\",IF(M551<5,\"Low\",IF(AND(M551>4,M551<7),\"Moderate\",IF(M551=7,\"High\",IF(M551>7,\"Extreme\",)))))","v":""},null,null,"A-546",null,null,"",null,"","",""]
[null,null,null,null,null,null,null,null,null,null,null,null,null,null,null,null,"A-547",null,null,"",null,"","",""]
[null,null,null,null,null,null,null,null,null,null,null,null,null,null,null,null,"A-548",null,null,"",null,"","",""]
[null,null,null,null,null,null,null,null,null,null,null,null,null,null,null,null,"A-549",null,null,"",null,"","",""]
[null,null,null,null,null,null,null,null,null,null,null,null,null,null,null,null,"A-550",null,null,"",null,"","",""]
[null,"R-111",{"$f":"IF(F556=\"Sea level rise and storm surge\",\"SL\",IF(F556=\"Increased flooding\",\"FL\",IF(F556=\"Increased rainfall variability\",\"RV\",IF(F556=\"Increased average temperature\",\"AT\",IF(F556=\"Increase in hot days\",\"HD\",IF(F556=\"Increased fire risk\",\"FR\",IF(F556=\"Increased atmospheric CO2\",\"AC\",\"\")))))))","v":""},111,null,null,null,null,null,{"$f":"IF(I556=\"Almost Certain\",5,IF(I556=\"likely\",4,IF(I556=\"Possible\",3,IF(I556=\"Unlikely\",2,IF(I556=\"rare\",1,\"\")))))","v":""},null,{"$f":"IF(K556=\"Catastrophic\",5,IF(K556=\"Major\",4,IF(K556=\"Moderate\",3,IF(K556=\"Minor\",2,IF(K556=\"Insignificant\",1,\"\")))))","v":""},{"$f":"IF(L556=\"\",\"\",L556+J556)","v":""},{"$f":"IF(M556=\"\",\"\",IF(M556<5,\"Low\",IF(AND(M556>4,M556<7),\"Moderate\",IF(M556=7,\"High\",IF(M556>7,\"Extreme\",)))))","v":""},null,null,"A-551",null,null,"",null,"","",""]
[null,null,null,null,null,null,null,null,null,null,null,null,null,null,null,null,"A-552",null,null,"",null,"","",""]
[null,null,null,null,null,null,null,null,null,null,null,null,null,null,null,null,"A-553",null,null,"",null,"","",""]
[null,null,null,null,null,null,null,null,null,null,null,null,null,null,null,null,"A-554",null,null,"",null,"","",""]
[null,null,null,null,null,null,null,null,null,null,null,null,null,null,null,null,"A-555",null,null,"",null,"","",""]
[null,"R-112",{"$f":"IF(F561=\"Sea level rise and storm surge\",\"SL\",IF(F561=\"Increased flooding\",\"FL\",IF(F561=\"Increased rainfall variability\",\"RV\",IF(F561=\"Increased average temperature\",\"AT\",IF(F561=\"Increase in hot days\",\"HD\",IF(F561=\"Increased fire risk\",\"FR\",IF(F561=\"Increased atmospheric CO2\",\"AC\",\"\")))))))","v":""},112,null,null,null,null,null,{"$f":"IF(I561=\"Almost Certain\",5,IF(I561=\"likely\",4,IF(I561=\"Possible\",3,IF(I561=\"Unlikely\",2,IF(I561=\"rare\",1,\"\")))))","v":""},null,{"$f":"IF(K561=\"Catastrophic\",5,IF(K561=\"Major\",4,IF(K561=\"Moderate\",3,IF(K561=\"Minor\",2,IF(K561=\"Insignificant\",1,\"\")))))","v":""},{"$f":"IF(L561=\"\",\"\",L561+J561)","v":""},{"$f":"IF(M561=\"\",\"\",IF(M561<5,\"Low\",IF(AND(M561>4,M561<7),\"Moderate\",IF(M561=7,\"High\",IF(M561>7,\"Extreme\",)))))","v":""},null,null,"A-556",null,null,"",null,"","",""]
[null,null,null,null,null,null,null,null,null,null,null,null,null,null,null,null,"A-557",null,null,"",null,"","",""]
[null,null,null,null,null,null,null,null,null,null,null,null,null,null,null,null,"A-558",null,null,"",null,"","",""]
[null,null,null,null,null,null,null,null,null,null,null,null,null,null,null,null,"A-559",null,null,"",null,"","",""]
[null,null,null,null,null,null,null,null,null,null,null,null,null,null,null,null,"A-560",null,null,"",null,"","",""]
[null,"R-113",{"$f":"IF(F566=\"Sea level rise and storm surge\",\"SL\",IF(F566=\"Increased flooding\",\"FL\",IF(F566=\"Increased rainfall variability\",\"RV\",IF(F566=\"Increased average temperature\",\"AT\",IF(F566=\"Increase in hot days\",\"HD\",IF(F566=\"Increased fire risk\",\"FR\",IF(F566=\"Increased atmospheric CO2\",\"AC\",\"\")))))))","v":""},113,null,null,null,null,null,{"$f":"IF(I566=\"Almost Certain\",5,IF(I566=\"likely\",4,IF(I566=\"Possible\",3,IF(I566=\"Unlikely\",2,IF(I566=\"rare\",1,\"\")))))","v":""},null,{"$f":"IF(K566=\"Catastrophic\",5,IF(K566=\"Major\",4,IF(K566=\"Moderate\",3,IF(K566=\"Minor\",2,IF(K566=\"Insignificant\",1,\"\")))))","v":""},{"$f":"IF(L566=\"\",\"\",L566+J566)","v":""},{"$f":"IF(M566=\"\",\"\",IF(M566<5,\"Low\",IF(AND(M566>4,M566<7),\"Moderate\",IF(M566=7,\"High\",IF(M566>7,\"Extreme\",)))))","v":""},null,null,"A-561",null,null,"",null,"","",""]
[null,null,null,null,null,null,null,null,null,null,null,null,null,null,null,null,"A-562",null,null,"",null,"","",""]
[null,null,null,null,null,null,null,null,null,null,null,null,null,null,null,null,"A-563",null,null,"",null,"","",""]
[null,null,null,null,null,null,null,null,null,null,null,null,null,null,null,null,"A-564",null,null,"",null,"","",""]
[null,null,null,null,null,null,null,null,null,null,null,null,null,null,null,null,"A-565",null,null,"",null,"","",""]
[null,"R-114",{"$f":"IF(F571=\"Sea level rise and storm surge\",\"SL\",IF(F571=\"Increased flooding\",\"FL\",IF(F571=\"Increased rainfall variability\",\"RV\",IF(F571=\"Increased average temperature\",\"AT\",IF(F571=\"Increase in hot days\",\"HD\",IF(F571=\"Increased fire risk\",\"FR\",IF(F571=\"Increased atmospheric CO2\",\"AC\",\"\")))))))","v":""},114,null,null,null,null,null,{"$f":"IF(I571=\"Almost Certain\",5,IF(I571=\"likely\",4,IF(I571=\"Possible\",3,IF(I571=\"Unlikely\",2,IF(I571=\"rare\",1,\"\")))))","v":""},null,{"$f":"IF(K571=\"Catastrophic\",5,IF(K571=\"Major\",4,IF(K571=\"Moderate\",3,IF(K571=\"Minor\",2,IF(K571=\"Insignificant\",1,\"\")))))","v":""},{"$f":"IF(L571=\"\",\"\",L571+J571)","v":""},{"$f":"IF(M571=\"\",\"\",IF(M571<5,\"Low\",IF(AND(M571>4,M571<7),\"Moderate\",IF(M571=7,\"High\",IF(M571>7,\"Extreme\",)))))","v":""},null,null,"A-566",null,null,"",null,"","",""]
[null,null,null,null,null,null,null,null,null,null,null,null,null,null,null,null,"A-567",null,null,"",null,"","",""]
[null,null,null,null,null,null,null,null,null,null,null,null,null,null,null,null,"A-568",null,null,"",null,"","",""]
[null,null,null,null,null,null,null,null,null,null,null,null,null,null,null,null,"A-569",null,null,"",null,"","",""]
[null,null,null,null,null,null,null,null,null,null,null,null,null,null,null,null,"A-570",null,null,"",null,"","",""]
[null,"R-115",{"$f":"IF(F576=\"Sea level rise and storm surge\",\"SL\",IF(F576=\"Increased flooding\",\"FL\",IF(F576=\"Increased rainfall variability\",\"RV\",IF(F576=\"Increased average temperature\",\"AT\",IF(F576=\"Increase in hot days\",\"HD\",IF(F576=\"Increased fire risk\",\"FR\",IF(F576=\"Increased atmospheric CO2\",\"AC\",\"\")))))))","v":""},115,null,null,null,null,null,{"$f":"IF(I576=\"Almost Certain\",5,IF(I576=\"likely\",4,IF(I576=\"Possible\",3,IF(I576=\"Unlikely\",2,IF(I576=\"rare\",1,\"\")))))","v":""},null,{"$f":"IF(K576=\"Catastrophic\",5,IF(K576=\"Major\",4,IF(K576=\"Moderate\",3,IF(K576=\"Minor\",2,IF(K576=\"Insignificant\",1,\"\")))))","v":""},{"$f":"IF(L576=\"\",\"\",L576+J576)","v":""},{"$f":"IF(M576=\"\",\"\",IF(M576<5,\"Low\",IF(AND(M576>4,M576<7),\"Moderate\",IF(M576=7,\"High\",IF(M576>7,\"Extreme\",)))))","v":""},null,null,"A-571",null,null,"",null,"","",""]
[null,null,null,null,null,null,null,null,null,null,null,null,null,null,null,null,"A-572",null,null,"",null,"","",""]
[null,null,null,null,null,null,null,null,null,null,null,null,null,null,null,null,"A-573",null,null,"",null,"","",""]
[null,null,null,null,null,null,null,null,null,null,null,null,null,null,null,null,"A-574",null,null,"",null,"","",""]
[null,null,null,null,null,null,null,null,null,null,null,null,null,null,null,null,"A-575",null,null,"",null,"","",""]
[null,"R-116",{"$f":"IF(F581=\"Sea level rise and storm surge\",\"SL\",IF(F581=\"Increased flooding\",\"FL\",IF(F581=\"Increased rainfall variability\",\"RV\",IF(F581=\"Increased average temperature\",\"AT\",IF(F581=\"Increase in hot days\",\"HD\",IF(F581=\"Increased fire risk\",\"FR\",IF(F581=\"Increased atmospheric CO2\",\"AC\",\"\")))))))","v":""},116,null,null,null,null,null,{"$f":"IF(I581=\"Almost Certain\",5,IF(I581=\"likely\",4,IF(I581=\"Possible\",3,IF(I581=\"Unlikely\",2,IF(I581=\"rare\",1,\"\")))))","v":""},null,{"$f":"IF(K581=\"Catastrophic\",5,IF(K581=\"Major\",4,IF(K581=\"Moderate\",3,IF(K581=\"Minor\",2,IF(K581=\"Insignificant\",1,\"\")))))","v":""},{"$f":"IF(L581=\"\",\"\",L581+J581)","v":""},{"$f":"IF(M581=\"\",\"\",IF(M581<5,\"Low\",IF(AND(M581>4,M581<7),\"Moderate\",IF(M581=7,\"High\",IF(M581>7,\"Extreme\",)))))","v":""},null,null,"A-576",null,null,"",null,"","",""]
[null,null,null,null,null,null,null,null,null,null,null,null,null,null,null,null,"A-577",null,null,"",null,"","",""]
[null,null,null,null,null,null,null,null,null,null,null,null,null,null,null,null,"A-578",null,null,"",null,"","",""]
[null,null,null,null,null,null,null,null,null,null,null,null,null,null,null,null,"A-579",null,null,"",null,{"$f":"IF(U584=\"Catastrophic\",5,IF(U584=\"Major\",4,IF(U584=\"Moderate\",3,IF(U584=\"Minor\",2,IF(U584=\"Insignificant\",1,\"\")))))","v":""},{"$f":"IF(V584=\"\",\"\",V584+T584)","v":""},{"$f":"IF(W584=\"\",\"\",IF(W584<5,\"Low\",IF(AND(W584>4,W584<7),\"Moderate\",IF(W584=7,\"High\",IF(W584>7,\"Extreme\",)))))","v":""}]
[null,null,null,null,null,null,null,null,null,null,null,null,null,null,null,null,"A-580",null,null,"",null,"","",""]
[null,"R-117",{"$f":"IF(F586=\"Sea level rise and storm surge\",\"SL\",IF(F586=\"Increased flooding\",\"FL\",IF(F586=\"Increased rainfall variability\",\"RV\",IF(F586=\"Increased average temperature\",\"AT\",IF(F586=\"Increase in hot days\",\"HD\",IF(F586=\"Increased fire risk\",\"FR\",IF(F586=\"Increased atmospheric CO2\",\"AC\",\"\")))))))","v":""},117,null,null,null,null,null,{"$f":"IF(I586=\"Almost Certain\",5,IF(I586=\"likely\",4,IF(I586=\"Possible\",3,IF(I586=\"Unlikely\",2,IF(I586=\"rare\",1,\"\")))))","v":""},null,{"$f":"IF(K586=\"Catastrophic\",5,IF(K586=\"Major\",4,IF(K586=\"Moderate\",3,IF(K586=\"Minor\",2,IF(K586=\"Insignificant\",1,\"\")))))","v":""},{"$f":"IF(L586=\"\",\"\",L586+J586)","v":""},{"$f":"IF(M586=\"\",\"\",IF(M586<5,\"Low\",IF(AND(M586>4,M586<7),\"Moderate\",IF(M586=7,\"High\",IF(M586>7,\"Extreme\",)))))","v":""},null,null,"A-581",null,null,"",null,"","",""]
[null,null,null,null,null,null,null,null,null,null,null,null,null,null,null,null,"A-582",null,null,"",null,"","",""]
[null,null,null,null,null,null,null,null,null,null,null,null,null,null,null,null,"A-583",null,null,"",null,"","",""]
[null,null,null,null,null,null,null,null,null,null,null,null,null,null,null,null,"A-584",null,null,"",null,"","",""]
[null,null,null,null,null,null,null,null,null,null,null,null,null,null,null,null,"A-585",null,null,"",null,"","",""]
[null,"R-118",{"$f":"IF(F591=\"Sea level rise and storm surge\",\"SL\",IF(F591=\"Increased flooding\",\"FL\",IF(F591=\"Increased rainfall variability\",\"RV\",IF(F591=\"Increased average temperature\",\"AT\",IF(F591=\"Increase in hot days\",\"HD\",IF(F591=\"Increased fire risk\",\"FR\",IF(F591=\"Increased atmospheric CO2\",\"AC\",\"\")))))))","v":""},118,null,null,null,null,null,{"$f":"IF(I591=\"Almost Certain\",5,IF(I591=\"likely\",4,IF(I591=\"Possible\",3,IF(I591=\"Unlikely\",2,IF(I591=\"rare\",1,\"\")))))","v":""},null,{"$f":"IF(K591=\"Catastrophic\",5,IF(K591=\"Major\",4,IF(K591=\"Moderate\",3,IF(K591=\"Minor\",2,IF(K591=\"Insignificant\",1,\"\")))))","v":""},{"$f":"IF(L591=\"\",\"\",L591+J591)","v":""},{"$f":"IF(M591=\"\",\"\",IF(M591<5,\"Low\",IF(AND(M591>4,M591<7),\"Moderate\",IF(M591=7,\"High\",IF(M591>7,\"Extreme\",)))))","v":""},null,null,"A-586",null,null,"",null,"","",""]
[null,null,null,null,null,null,null,null,null,null,null,null,null,null,null,null,"A-587",null,null,"",null,"","",""]
[null,null,null,null,null,null,null,null,null,null,null,null,null,null,null,null,"A-588",null,null,"",null,"","",""]
[null,null,null,null,null,null,null,null,null,null,null,null,null,null,null,null,"A-589",null,null,"",null,"","",""]
[null,null,null,null,null,null,null,null,null,null,null,null,null,null,null,null,"A-590",null,null,"",null,"","",""]
[null,"R-119",{"$f":"IF(F596=\"Sea level rise and storm surge\",\"SL\",IF(F596=\"Increased flooding\",\"FL\",IF(F596=\"Increased rainfall variability\",\"RV\",IF(F596=\"Increased average temperature\",\"AT\",IF(F596=\"Increase in hot days\",\"HD\",IF(F596=\"Increased fire risk\",\"FR\",IF(F596=\"Increased atmospheric CO2\",\"AC\",\"\")))))))","v":""},119,null,null,null,null,null,{"$f":"IF(I596=\"Almost Certain\",5,IF(I596=\"likely\",4,IF(I596=\"Possible\",3,IF(I596=\"Unlikely\",2,IF(I596=\"rare\",1,\"\")))))","v":""},null,{"$f":"IF(K596=\"Catastrophic\",5,IF(K596=\"Major\",4,IF(K596=\"Moderate\",3,IF(K596=\"Minor\",2,IF(K596=\"Insignificant\",1,\"\")))))","v":""},{"$f":"IF(L596=\"\",\"\",L596+J596)","v":""},{"$f":"IF(M596=\"\",\"\",IF(M596<5,\"Low\",IF(AND(M596>4,M596<7),\"Moderate\",IF(M596=7,\"High\",IF(M596>7,\"Extreme\",)))))","v":""},null,null,"A-591",null,null,"",null,"","",""]
[null,null,null,null,null,null,null,null,null,null,null,null,null,null,null,null,"A-592",null,null,"",null,"","",""]
[null,null,null,null,null,null,null,null,null,null,null,null,null,null,null,null,"A-593",null,null,{"$f":"IF(S598=\"Almost Certain\",5,IF(S598=\"likely\",4,IF(S598=\"Possible\",3,IF(S598=\"Unlikely\",2,IF(S598=\"rare\",1,\"\")))))","v":""},null,"","",""]
[null,null,null,null,null,null,null,null,null,null,null,null,null,null,null,null,"A-594",null,null,"",null,"","",""]
[null,null,null,null,null,null,null,null,null,null,null,null,null,null,null,null,"A-595",null,null,"",null,"","",""]
[null,"R-120",{"$f":"IF(F601=\"Sea level rise and storm surge\",\"SL\",IF(F601=\"Increased flooding\",\"FL\",IF(F601=\"Increased rainfall variability\",\"RV\",IF(F601=\"Increased average temperature\",\"AT\",IF(F601=\"Increase in hot days\",\"HD\",IF(F601=\"Increased fire risk\",\"FR\",IF(F601=\"Increased atmospheric CO2\",\"AC\",\"\")))))))","v":""},120,null,null,null,null,null,{"$f":"IF(I601=\"Almost Certain\",5,IF(I601=\"likely\",4,IF(I601=\"Possible\",3,IF(I601=\"Unlikely\",2,IF(I601=\"rare\",1,\"\")))))","v":""},null,{"$f":"IF(K601=\"Catastrophic\",5,IF(K601=\"Major\",4,IF(K601=\"Moderate\",3,IF(K601=\"Minor\",2,IF(K601=\"Insignificant\",1,\"\")))))","v":""},{"$f":"IF(L601=\"\",\"\",L601+J601)","v":""},{"$f":"IF(M601=\"\",\"\",IF(M601<5,\"Low\",IF(AND(M601>4,M601<7),\"Moderate\",IF(M601=7,\"High\",IF(M601>7,\"Extreme\",)))))","v":""},null,null,"A-596",null,null,"",null,"","",""]
[null,null,null,null,null,null,null,null,null,null,null,null,null,null,null,null,"A-597",null,null,"",null,"","",""]
[null,null,null,null,null,null,null,null,null,null,null,null,null,null,null,null,"A-598",null,null,"",null,"","",""]
[null,null,null,null,null,null,null,null,null,null,null,null,null,null,null,null,"A-599",null,null,"",null,"","",""]
[null,null,null,null,null,null,null,null,null,null,null,null,null,null,null,null,"A-600",null,null,"",null,"","",""]
[null,"R-121",{"$f":"IF(F606=\"Sea level rise and storm surge\",\"SL\",IF(F606=\"Increased flooding\",\"FL\",IF(F606=\"Increased rainfall variability\",\"RV\",IF(F606=\"Increased average temperature\",\"AT\",IF(F606=\"Increase in hot days\",\"HD\",IF(F606=\"Increased fire risk\",\"FR\",IF(F606=\"Increased atmospheric CO2\",\"AC\",\"\")))))))","v":""},121,null,null,null,null,null,{"$f":"IF(I606=\"Almost Certain\",5,IF(I606=\"likely\",4,IF(I606=\"Possible\",3,IF(I606=\"Unlikely\",2,IF(I606=\"rare\",1,\"\")))))","v":""},null,{"$f":"IF(K606=\"Catastrophic\",5,IF(K606=\"Major\",4,IF(K606=\"Moderate\",3,IF(K606=\"Minor\",2,IF(K606=\"Insignificant\",1,\"\")))))","v":""},{"$f":"IF(L606=\"\",\"\",L606+J606)","v":""},{"$f":"IF(M606=\"\",\"\",IF(M606<5,\"Low\",IF(AND(M606>4,M606<7),\"Moderate\",IF(M606=7,\"High\",IF(M606>7,\"Extreme\",)))))","v":""},null,null,"A-601",null,null,"",null,"","",""]
[null,null,null,null,null,null,null,null,null,null,null,null,null,null,null,null,"A-602",null,null,"",null,"","",""]
[null,null,null,null,null,null,null,null,null,null,null,null,null,null,null,null,"A-603",null,null,"",null,"","",""]
[null,null,null,null,null,null,null,null,null,null,null,null,null,null,null,null,"A-604",null,null,"",null,"","",""]
[null,null,null,null,null,null,null,null,null,null,null,null,null,null,null,null,"A-605",null,null,"",null,"","",""]
[null,"R-122",{"$f":"IF(F611=\"Sea level rise and storm surge\",\"SL\",IF(F611=\"Increased flooding\",\"FL\",IF(F611=\"Increased rainfall variability\",\"RV\",IF(F611=\"Increased average temperature\",\"AT\",IF(F611=\"Increase in hot days\",\"HD\",IF(F611=\"Increased fire risk\",\"FR\",IF(F611=\"Increased atmospheric CO2\",\"AC\",\"\")))))))","v":""},122,null,null,null,null,null,{"$f":"IF(I611=\"Almost Certain\",5,IF(I611=\"likely\",4,IF(I611=\"Possible\",3,IF(I611=\"Unlikely\",2,IF(I611=\"rare\",1,\"\")))))","v":""},null,{"$f":"IF(K611=\"Catastrophic\",5,IF(K611=\"Major\",4,IF(K611=\"Moderate\",3,IF(K611=\"Minor\",2,IF(K611=\"Insignificant\",1,\"\")))))","v":""},{"$f":"IF(L611=\"\",\"\",L611+J611)","v":""},{"$f":"IF(M611=\"\",\"\",IF(M611<5,\"Low\",IF(AND(M611>4,M611<7),\"Moderate\",IF(M611=7,\"High\",IF(M611>7,\"Extreme\",)))))","v":""},null,null,"A-606",null,null,"",null,"","",""]
[null,null,null,null,null,null,null,null,null,null,null,null,null,null,null,null,"A-607",null,null,"",null,"","",""]
[null,null,null,null,null,null,null,null,null,null,null,null,null,null,null,null,"A-608",null,null,"",null,"","",""]
[null,null,null,null,null,null,null,null,null,null,null,null,null,null,null,null,"A-609",null,null,"",null,"","",""]
[null,null,null,null,null,null,null,null,null,null,null,null,null,null,null,null,"A-610",null,null,"",null,"","",""]
[null,"R-123",{"$f":"IF(F616=\"Sea level rise and storm surge\",\"SL\",IF(F616=\"Increased flooding\",\"FL\",IF(F616=\"Increased rainfall variability\",\"RV\",IF(F616=\"Increased average temperature\",\"AT\",IF(F616=\"Increase in hot days\",\"HD\",IF(F616=\"Increased fire risk\",\"FR\",IF(F616=\"Increased atmospheric CO2\",\"AC\",\"\")))))))","v":""},123,null,null,null,null,null,{"$f":"IF(I616=\"Almost Certain\",5,IF(I616=\"likely\",4,IF(I616=\"Possible\",3,IF(I616=\"Unlikely\",2,IF(I616=\"rare\",1,\"\")))))","v":""},null,{"$f":"IF(K616=\"Catastrophic\",5,IF(K616=\"Major\",4,IF(K616=\"Moderate\",3,IF(K616=\"Minor\",2,IF(K616=\"Insignificant\",1,\"\")))))","v":""},{"$f":"IF(L616=\"\",\"\",L616+J616)","v":""},{"$f":"IF(M616=\"\",\"\",IF(M616<5,\"Low\",IF(AND(M616>4,M616<7),\"Moderate\",IF(M616=7,\"High\",IF(M616>7,\"Extreme\",)))))","v":""},null,null,"A-611",null,null,"",null,"","",""]
[null,null,null,null,null,null,null,null,null,null,null,null,null,null,null,null,"A-612",null,null,"",null,"","",""]
[null,null,null,null,null,null,null,null,null,null,null,null,null,null,null,null,"A-613",null,null,"",null,"","",""]
[null,null,null,null,null,null,null,null,null,null,null,null,null,null,null,null,"A-614",null,null,"",null,"","",""]
[null,null,null,null,null,null,null,null,null,null,null,null,null,null,null,null,"A-615",null,null,"",null,"","",""]
[null,"R-124",{"$f":"IF(F621=\"Sea level rise and storm surge\",\"SL\",IF(F621=\"Increased flooding\",\"FL\",IF(F621=\"Increased rainfall variability\",\"RV\",IF(F621=\"Increased average temperature\",\"AT\",IF(F621=\"Increase in hot days\",\"HD\",IF(F621=\"Increased fire risk\",\"FR\",IF(F621=\"Increased atmospheric CO2\",\"AC\",\"\")))))))","v":""},124,null,null,null,null,null,{"$f":"IF(I621=\"Almost Certain\",5,IF(I621=\"likely\",4,IF(I621=\"Possible\",3,IF(I621=\"Unlikely\",2,IF(I621=\"rare\",1,\"\")))))","v":""},null,{"$f":"IF(K621=\"Catastrophic\",5,IF(K621=\"Major\",4,IF(K621=\"Moderate\",3,IF(K621=\"Minor\",2,IF(K621=\"Insignificant\",1,\"\")))))","v":""},{"$f":"IF(L621=\"\",\"\",L621+J621)","v":""},{"$f":"IF(M621=\"\",\"\",IF(M621<5,\"Low\",IF(AND(M621>4,M621<7),\"Moderate\",IF(M621=7,\"High\",IF(M621>7,\"Extreme\",)))))","v":""},null,null,"A-616",null,null,"",null,"","",""]
[null,null,null,null,null,null,null,null,null,null,null,null,null,null,null,null,"A-617",null,null,"",null,"","",""]
[null,null,null,null,null,null,null,null,null,null,null,null,null,null,null,null,"A-618",null,null,"",null,"","",""]
[null,null,null,null,null,null,null,null,null,null,null,null,null,null,null,null,"A-619",null,null,"",null,"","",""]
[null,null,null,null,null,null,null,null,null,null,null,null,null,null,null,null,"A-620",null,null,"",null,"","",""]
[null,"R-125",{"$f":"IF(F626=\"Sea level rise and storm surge\",\"SL\",IF(F626=\"Increased flooding\",\"FL\",IF(F626=\"Increased rainfall variability\",\"RV\",IF(F626=\"Increased average temperature\",\"AT\",IF(F626=\"Increase in hot days\",\"HD\",IF(F626=\"Increased fire risk\",\"FR\",IF(F626=\"Increased atmospheric CO2\",\"AC\",\"\")))))))","v":""},125,null,null,null,null,null,{"$f":"IF(I626=\"Almost Certain\",5,IF(I626=\"likely\",4,IF(I626=\"Possible\",3,IF(I626=\"Unlikely\",2,IF(I626=\"rare\",1,\"\")))))","v":""},null,{"$f":"IF(K626=\"Catastrophic\",5,IF(K626=\"Major\",4,IF(K626=\"Moderate\",3,IF(K626=\"Minor\",2,IF(K626=\"Insignificant\",1,\"\")))))","v":""},{"$f":"IF(L626=\"\",\"\",L626+J626)","v":""},{"$f":"IF(M626=\"\",\"\",IF(M626<5,\"Low\",IF(AND(M626>4,M626<7),\"Moderate\",IF(M626=7,\"High\",IF(M626>7,\"Extreme\",)))))","v":""},null,null,"A-621",null,null,"",null,"","",""]
[null,null,null,null,null,null,null,null,null,null,null,null,null,null,null,null,"A-622",null,null,"",null,"","",""]
[null,null,null,null,null,null,null,null,null,null,null,null,null,null,null,null,"A-623",null,null,"",null,"","",""]
[null,null,null,null,null,null,null,null,null,null,null,null,null,null,null,null,"A-624",null,null,"",null,"","",""]
[null,null,null,null,null,null,null,null,null,null,null,null,null,null,null,null,"A-625",null,null,"",null,"","",""]
[null,"R-126",{"$f":"IF(F631=\"Sea level rise and storm surge\",\"SL\",IF(F631=\"Increased flooding\",\"FL\",IF(F631=\"Increased rainfall variability\",\"RV\",IF(F631=\"Increased average temperature\",\"AT\",IF(F631=\"Increase in hot days\",\"HD\",IF(F631=\"Increased fire risk\",\"FR\",IF(F631=\"Increased atmospheric CO2\",\"AC\",\"\")))))))","v":""},126,null,null,null,null,null,{"$f":"IF(I631=\"Almost Certain\",5,IF(I631=\"likely\",4,IF(I631=\"Possible\",3,IF(I631=\"Unlikely\",2,IF(I631=\"rare\",1,\"\")))))","v":""},null,{"$f":"IF(K631=\"Catastrophic\",5,IF(K631=\"Major\",4,IF(K631=\"Moderate\",3,IF(K631=\"Minor\",2,IF(K631=\"Insignificant\",1,\"\")))))","v":""},{"$f":"IF(L631=\"\",\"\",L631+J631)","v":""},{"$f":"IF(M631=\"\",\"\",IF(M631<5,\"Low\",IF(AND(M631>4,M631<7),\"Moderate\",IF(M631=7,\"High\",IF(M631>7,\"Extreme\",)))))","v":""},null,null,"A-626",null,null,"",null,"","",""]
[null,null,null,null,null,null,null,null,null,null,null,null,null,null,null,null,"A-627",null,null,"",null,"","",""]
[null,null,null,null,null,null,null,null,null,null,null,null,null,null,null,null,"A-628",null,null,"",null,"","",""]
[null,null,null,null,null,null,null,null,null,null,null,null,null,null,null,null,"A-629",null,null,"",null,"","",""]
[null,null,null,null,null,null,null,null,null,null,null,null,null,null,null,null,"A-630",null,null,"",null,"","",""]
[null,"R-127",{"$f":"IF(F636=\"Sea level rise and storm surge\",\"SL\",IF(F636=\"Increased flooding\",\"FL\",IF(F636=\"Increased rainfall variability\",\"RV\",IF(F636=\"Increased average temperature\",\"AT\",IF(F636=\"Increase in hot days\",\"HD\",IF(F636=\"Increased fire risk\",\"FR\",IF(F636=\"Increased atmospheric CO2\",\"AC\",\"\")))))))","v":""},127,null,null,null,null,null,{"$f":"IF(I636=\"Almost Certain\",5,IF(I636=\"likely\",4,IF(I636=\"Possible\",3,IF(I636=\"Unlikely\",2,IF(I636=\"rare\",1,\"\")))))","v":""},null,{"$f":"IF(K636=\"Catastrophic\",5,IF(K636=\"Major\",4,IF(K636=\"Moderate\",3,IF(K636=\"Minor\",2,IF(K636=\"Insignificant\",1,\"\")))))","v":""},{"$f":"IF(L636=\"\",\"\",L636+J636)","v":""},{"$f":"IF(M636=\"\",\"\",IF(M636<5,\"Low\",IF(AND(M636>4,M636<7),\"Moderate\",IF(M636=7,\"High\",IF(M636>7,\"Extreme\",)))))","v":""},null,null,"A-631",null,null,"",null,"","",""]
[null,null,null,null,null,null,null,null,null,null,null,null,null,null,null,null,"A-632",null,null,"",null,"","",""]
[null,null,null,null,null,null,null,null,null,null,null,null,null,null,null,null,"A-633",null,null,"",null,"","",""]
[null,null,null,null,null,null,null,null,null,null,null,null,null,null,null,null,"A-634",null,null,"",null,"","",""]
[null,null,null,null,null,null,null,null,null,null,null,null,null,null,null,null,"A-635",null,null,"",null,"","",""]
[null,"R-128",{"$f":"IF(F641=\"Sea level rise and storm surge\",\"SL\",IF(F641=\"Increased flooding\",\"FL\",IF(F641=\"Increased rainfall variability\",\"RV\",IF(F641=\"Increased average temperature\",\"AT\",IF(F641=\"Increase in hot days\",\"HD\",IF(F641=\"Increased fire risk\",\"FR\",IF(F641=\"Increased atmospheric CO2\",\"AC\",\"\")))))))","v":""},128,null,null,null,null,null,{"$f":"IF(I641=\"Almost Certain\",5,IF(I641=\"likely\",4,IF(I641=\"Possible\",3,IF(I641=\"Unlikely\",2,IF(I641=\"rare\",1,\"\")))))","v":""},null,{"$f":"IF(K641=\"Catastrophic\",5,IF(K641=\"Major\",4,IF(K641=\"Moderate\",3,IF(K641=\"Minor\",2,IF(K641=\"Insignificant\",1,\"\")))))","v":""},{"$f":"IF(L641=\"\",\"\",L641+J641)","v":""},{"$f":"IF(M641=\"\",\"\",IF(M641<5,\"Low\",IF(AND(M641>4,M641<7),\"Moderate\",IF(M641=7,\"High\",IF(M641>7,\"Extreme\",)))))","v":""},null,null,"A-636",null,null,"",null,"","",""]
[null,null,null,null,null,null,null,null,null,null,null,null,null,null,null,null,"A-637",null,null,"",null,"","",""]
[null,null,null,null,null,null,null,null,null,null,null,null,null,null,null,null,"A-638",null,null,"",null,"","",""]
[null,null,null,null,null,null,null,null,null,null,null,null,null,null,null,null,"A-639",null,null,"",null,"","",""]
[null,null,null,null,null,null,null,null,null,null,null,null,null,null,null,null,"A-640",null,null,"",null,"","",""]
[null,"R-129",{"$f":"IF(F646=\"Sea level rise and storm surge\",\"SL\",IF(F646=\"Increased flooding\",\"FL\",IF(F646=\"Increased rainfall variability\",\"RV\",IF(F646=\"Increased average temperature\",\"AT\",IF(F646=\"Increase in hot days\",\"HD\",IF(F646=\"Increased fire risk\",\"FR\",IF(F646=\"Increased atmospheric CO2\",\"AC\",\"\")))))))","v":""},129,null,null,null,null,null,{"$f":"IF(I646=\"Almost Certain\",5,IF(I646=\"likely\",4,IF(I646=\"Possible\",3,IF(I646=\"Unlikely\",2,IF(I646=\"rare\",1,\"\")))))","v":""},null,{"$f":"IF(K646=\"Catastrophic\",5,IF(K646=\"Major\",4,IF(K646=\"Moderate\",3,IF(K646=\"Minor\",2,IF(K646=\"Insignificant\",1,\"\")))))","v":""},{"$f":"IF(L646=\"\",\"\",L646+J646)","v":""},{"$f":"IF(M646=\"\",\"\",IF(M646<5,\"Low\",IF(AND(M646>4,M646<7),\"Moderate\",IF(M646=7,\"High\",IF(M646>7,\"Extreme\",)))))","v":""},null,null,"A-641",null,null,"",null,"","",""]
[null,null,null,null,null,null,null,null,null,null,null,null,null,null,null,null,"A-642",null,null,"",null,"","",""]
[null,null,null,null,null,null,null,null,null,null,null,null,null,null,null,null,"A-643",null,null,"",null,{"$f":"IF(U648=\"Catastrophic\",5,IF(U648=\"Major\",4,IF(U648=\"Moderate\",3,IF(U648=\"Minor\",2,IF(U648=\"Insignificant\",1,\"\")))))","v":""},{"$f":"IF(V648=\"\",\"\",V648+T648)","v":""},{"$f":"IF(W648=\"\",\"\",IF(W648<5,\"Low\",IF(AND(W648>4,W648<7),\"Moderate\",IF(W648=7,\"High\",IF(W648>7,\"Extreme\",)))))","v":""}]
[null,null,null,null,null,null,null,null,null,null,null,null,null,null,null,null,"A-644",null,null,"",null,"","",""]
[null,null,null,null,null,null,null,null,null,null,null,null,null,null,null,null,"A-645",null,null,"",null,"","",""]
[null,"R-130",{"$f":"IF(F651=\"Sea level rise and storm surge\",\"SL\",IF(F651=\"Increased flooding\",\"FL\",IF(F651=\"Increased rainfall variability\",\"RV\",IF(F651=\"Increased average temperature\",\"AT\",IF(F651=\"Increase in hot days\",\"HD\",IF(F651=\"Increased fire risk\",\"FR\",IF(F651=\"Increased atmospheric CO2\",\"AC\",\"\")))))))","v":""},130,null,null,null,null,null,{"$f":"IF(I651=\"Almost Certain\",5,IF(I651=\"likely\",4,IF(I651=\"Possible\",3,IF(I651=\"Unlikely\",2,IF(I651=\"rare\",1,\"\")))))","v":""},null,{"$f":"IF(K651=\"Catastrophic\",5,IF(K651=\"Major\",4,IF(K651=\"Moderate\",3,IF(K651=\"Minor\",2,IF(K651=\"Insignificant\",1,\"\")))))","v":""},{"$f":"IF(L651=\"\",\"\",L651+J651)","v":""},{"$f":"IF(M651=\"\",\"\",IF(M651<5,\"Low\",IF(AND(M651>4,M651<7),\"Moderate\",IF(M651=7,\"High\",IF(M651>7,\"Extreme\",)))))","v":""},null,null,"A-646",null,null,"",null,"","",""]
[null,null,null,null,null,null,null,null,null,null,null,null,null,null,null,null,"A-647",null,null,"",null,"","",""]
[null,null,null,null,null,null,null,null,null,null,null,null,null,null,null,null,"A-648",null,null,"",null,"","",""]
[null,null,null,null,null,null,null,null,null,null,null,null,null,null,null,null,"A-649",null,null,"",null,"","",""]
[null,null,null,null,null,null,null,null,null,null,null,null,null,null,null,null,"A-650",null,null,"",null,"","",""]
[null,"R-131",{"$f":"IF(F656=\"Sea level rise and storm surge\",\"SL\",IF(F656=\"Increased flooding\",\"FL\",IF(F656=\"Increased rainfall variability\",\"RV\",IF(F656=\"Increased average temperature\",\"AT\",IF(F656=\"Increase in hot days\",\"HD\",IF(F656=\"Increased fire risk\",\"FR\",IF(F656=\"Increased atmospheric CO2\",\"AC\",\"\")))))))","v":""},131,null,null,null,null,null,{"$f":"IF(I656=\"Almost Certain\",5,IF(I656=\"likely\",4,IF(I656=\"Possible\",3,IF(I656=\"Unlikely\",2,IF(I656=\"rare\",1,\"\")))))","v":""},null,{"$f":"IF(K656=\"Catastrophic\",5,IF(K656=\"Major\",4,IF(K656=\"Moderate\",3,IF(K656=\"Minor\",2,IF(K656=\"Insignificant\",1,\"\")))))","v":""},{"$f":"IF(L656=\"\",\"\",L656+J656)","v":""},{"$f":"IF(M656=\"\",\"\",IF(M656<5,\"Low\",IF(AND(M656>4,M656<7),\"Moderate\",IF(M656=7,\"High\",IF(M656>7,\"Extreme\",)))))","v":""},null,null,"A-651",null,null,"",null,"","",""]
[null,null,null,null,null,null,null,null,null,null,null,null,null,null,null,null,"A-652",null,null,"",null,"","",""]
[null,null,null,null,null,null,null,null,null,null,null,null,null,null,null,null,"A-653",null,null,"",null,"","",""]
[null,null,null,null,null,null,null,null,null,null,null,null,null,null,null,null,"A-654",null,null,"",null,"","",""]
[null,null,null,null,null,null,null,null,null,null,null,null,null,null,null,null,"A-655",null,null,"",null,"","",""]
[null,"R-132",{"$f":"IF(F661=\"Sea level rise and storm surge\",\"SL\",IF(F661=\"Increased flooding\",\"FL\",IF(F661=\"Increased rainfall variability\",\"RV\",IF(F661=\"Increased average temperature\",\"AT\",IF(F661=\"Increase in hot days\",\"HD\",IF(F661=\"Increased fire risk\",\"FR\",IF(F661=\"Increased atmospheric CO2\",\"AC\",\"\")))))))","v":""},132,null,null,null,null,null,{"$f":"IF(I661=\"Almost Certain\",5,IF(I661=\"likely\",4,IF(I661=\"Possible\",3,IF(I661=\"Unlikely\",2,IF(I661=\"rare\",1,\"\")))))","v":""},null,{"$f":"IF(K661=\"Catastrophic\",5,IF(K661=\"Major\",4,IF(K661=\"Moderate\",3,IF(K661=\"Minor\",2,IF(K661=\"Insignificant\",1,\"\")))))","v":""},{"$f":"IF(L661=\"\",\"\",L661+J661)","v":""},{"$f":"IF(M661=\"\",\"\",IF(M661<5,\"Low\",IF(AND(M661>4,M661<7),\"Moderate\",IF(M661=7,\"High\",IF(M661>7,\"Extreme\",)))))","v":""},null,null,"A-656",null,null,"",null,"","",""]
[null,null,null,null,null,null,null,null,null,null,null,null,null,null,null,null,"A-657",null,null,{"$f":"IF(S662=\"Almost Certain\",5,IF(S662=\"likely\",4,IF(S662=\"Possible\",3,IF(S662=\"Unlikely\",2,IF(S662=\"rare\",1,\"\")))))","v":""},null,"","",""]
[null,null,null,null,null,null,null,null,null,null,null,null,null,null,null,null,"A-658",null,null,"",null,"","",""]
[null,null,null,null,null,null,null,null,null,null,null,null,null,null,null,null,"A-659",null,null,"",null,"","",""]
[null,null,null,null,null,null,null,null,null,null,null,null,null,null,null,null,"A-660",null,null,"",null,"","",""]
[null,"R-133",{"$f":"IF(F666=\"Sea level rise and storm surge\",\"SL\",IF(F666=\"Increased flooding\",\"FL\",IF(F666=\"Increased rainfall variability\",\"RV\",IF(F666=\"Increased average temperature\",\"AT\",IF(F666=\"Increase in hot days\",\"HD\",IF(F666=\"Increased fire risk\",\"FR\",IF(F666=\"Increased atmospheric CO2\",\"AC\",\"\")))))))","v":""},133,null,null,null,null,null,{"$f":"IF(I666=\"Almost Certain\",5,IF(I666=\"likely\",4,IF(I666=\"Possible\",3,IF(I666=\"Unlikely\",2,IF(I666=\"rare\",1,\"\")))))","v":""},null,{"$f":"IF(K666=\"Catastrophic\",5,IF(K666=\"Major\",4,IF(K666=\"Moderate\",3,IF(K666=\"Minor\",2,IF(K666=\"Insignificant\",1,\"\")))))","v":""},{"$f":"IF(L666=\"\",\"\",L666+J666)","v":""},{"$f":"IF(M666=\"\",\"\",IF(M666<5,\"Low\",IF(AND(M666>4,M666<7),\"Moderate\",IF(M666=7,\"High\",IF(M666>7,\"Extreme\",)))))","v":""},null,null,"A-661",null,null,"",null,"","",""]
[null,null,null,null,null,null,null,null,null,null,null,null,null,null,null,null,"A-662",null,null,"",null,"","",""]
[null,null,null,null,null,null,null,null,null,null,null,null,null,null,null,null,"A-663",null,null,"",null,"","",""]
[null,null,null,null,null,null,null,null,null,null,null,null,null,null,null,null,"A-664",null,null,"",null,"","",""]
[null,null,null,null,null,null,null,null,null,null,null,null,null,null,null,null,"A-665",null,null,"",null,"","",""]
[null,"R-134",{"$f":"IF(F671=\"Sea level rise and storm surge\",\"SL\",IF(F671=\"Increased flooding\",\"FL\",IF(F671=\"Increased rainfall variability\",\"RV\",IF(F671=\"Increased average temperature\",\"AT\",IF(F671=\"Increase in hot days\",\"HD\",IF(F671=\"Increased fire risk\",\"FR\",IF(F671=\"Increased atmospheric CO2\",\"AC\",\"\")))))))","v":""},134,null,null,null,null,null,{"$f":"IF(I671=\"Almost Certain\",5,IF(I671=\"likely\",4,IF(I671=\"Possible\",3,IF(I671=\"Unlikely\",2,IF(I671=\"rare\",1,\"\")))))","v":""},null,{"$f":"IF(K671=\"Catastrophic\",5,IF(K671=\"Major\",4,IF(K671=\"Moderate\",3,IF(K671=\"Minor\",2,IF(K671=\"Insignificant\",1,\"\")))))","v":""},{"$f":"IF(L671=\"\",\"\",L671+J671)","v":""},{"$f":"IF(M671=\"\",\"\",IF(M671<5,\"Low\",IF(AND(M671>4,M671<7),\"Moderate\",IF(M671=7,\"High\",IF(M671>7,\"Extreme\",)))))","v":""},null,null,"A-666",null,null,"",null,"","",""]
[null,null,null,null,null,null,null,null,null,null,null,null,null,null,null,null,"A-667",null,null,"",null,"","",""]
[null,null,null,null,null,null,null,null,null,null,null,null,null,null,null,null,"A-668",null,null,"",null,"","",""]
[null,null,null,null,null,null,null,null,null,null,null,null,null,null,null,null,"A-669",null,null,"",null,"","",""]
[null,null,null,null,null,null,null,null,null,null,null,null,null,null,null,null,"A-670",null,null,"",null,"","",""]
[null,"R-135",{"$f":"IF(F676=\"Sea level rise and storm surge\",\"SL\",IF(F676=\"Increased flooding\",\"FL\",IF(F676=\"Increased rainfall variability\",\"RV\",IF(F676=\"Increased average temperature\",\"AT\",IF(F676=\"Increase in hot days\",\"HD\",IF(F676=\"Increased fire risk\",\"FR\",IF(F676=\"Increased atmospheric CO2\",\"AC\",\"\")))))))","v":""},135,null,null,null,null,null,{"$f":"IF(I676=\"Almost Certain\",5,IF(I676=\"likely\",4,IF(I676=\"Possible\",3,IF(I676=\"Unlikely\",2,IF(I676=\"rare\",1,\"\")))))","v":""},null,{"$f":"IF(K676=\"Catastrophic\",5,IF(K676=\"Major\",4,IF(K676=\"Moderate\",3,IF(K676=\"Minor\",2,IF(K676=\"Insignificant\",1,\"\")))))","v":""},{"$f":"IF(L676=\"\",\"\",L676+J676)","v":""},{"$f":"IF(M676=\"\",\"\",IF(M676<5,\"Low\",IF(AND(M676>4,M676<7),\"Moderate\",IF(M676=7,\"High\",IF(M676>7,\"Extreme\",)))))","v":""},null,null,"A-671",null,null,"",null,"","",""]
[null,null,null,null,null,null,null,null,null,null,null,null,null,null,null,null,"A-672",null,null,"",null,"","",""]
[null,null,null,null,null,null,null,null,null,null,null,null,null,null,null,null,"A-673",null,null,"",null,"","",""]
[null,null,null,null,null,null,null,null,null,null,null,null,null,null,null,null,"A-674",null,null,"",null,"","",""]
[null,null,null,null,null,null,null,null,null,null,null,null,null,null,null,null,"A-675",null,null,"",null,"","",""]
[null,"R-136",{"$f":"IF(F681=\"Sea level rise and storm surge\",\"SL\",IF(F681=\"Increased flooding\",\"FL\",IF(F681=\"Increased rainfall variability\",\"RV\",IF(F681=\"Increased average temperature\",\"AT\",IF(F681=\"Increase in hot days\",\"HD\",IF(F681=\"Increased fire risk\",\"FR\",IF(F681=\"Increased atmospheric CO2\",\"AC\",\"\")))))))","v":""},136,null,null,null,null,null,{"$f":"IF(I681=\"Almost Certain\",5,IF(I681=\"likely\",4,IF(I681=\"Possible\",3,IF(I681=\"Unlikely\",2,IF(I681=\"rare\",1,\"\")))))","v":""},null,{"$f":"IF(K681=\"Catastrophic\",5,IF(K681=\"Major\",4,IF(K681=\"Moderate\",3,IF(K681=\"Minor\",2,IF(K681=\"Insignificant\",1,\"\")))))","v":""},{"$f":"IF(L681=\"\",\"\",L681+J681)","v":""},{"$f":"IF(M681=\"\",\"\",IF(M681<5,\"Low\",IF(AND(M681>4,M681<7),\"Moderate\",IF(M681=7,\"High\",IF(M681>7,\"Extreme\",)))))","v":""},null,null,"A-676",null,null,"",null,"","",""]
[null,null,null,null,null,null,null,null,null,null,null,null,null,null,null,null,"A-677",null,null,"",null,"","",""]
[null,null,null,null,null,null,null,null,null,null,null,null,null,null,null,null,"A-678",null,null,"",null,"","",""]
[null,null,null,null,null,null,null,null,null,null,null,null,null,null,null,null,"A-679",null,null,"",null,"","",""]
[null,null,null,null,null,null,null,null,null,null,null,null,null,null,null,null,"A-680",null,null,"",null,"","",""]
[null,"R-137",{"$f":"IF(F686=\"Sea level rise and storm surge\",\"SL\",IF(F686=\"Increased flooding\",\"FL\",IF(F686=\"Increased rainfall variability\",\"RV\",IF(F686=\"Increased average temperature\",\"AT\",IF(F686=\"Increase in hot days\",\"HD\",IF(F686=\"Increased fire risk\",\"FR\",IF(F686=\"Increased atmospheric CO2\",\"AC\",\"\")))))))","v":""},137,null,null,null,null,null,{"$f":"IF(I686=\"Almost Certain\",5,IF(I686=\"likely\",4,IF(I686=\"Possible\",3,IF(I686=\"Unlikely\",2,IF(I686=\"rare\",1,\"\")))))","v":""},null,{"$f":"IF(K686=\"Catastrophic\",5,IF(K686=\"Major\",4,IF(K686=\"Moderate\",3,IF(K686=\"Minor\",2,IF(K686=\"Insignificant\",1,\"\")))))","v":""},{"$f":"IF(L686=\"\",\"\",L686+J686)","v":""},{"$f":"IF(M686=\"\",\"\",IF(M686<5,\"Low\",IF(AND(M686>4,M686<7),\"Moderate\",IF(M686=7,\"High\",IF(M686>7,\"Extreme\",)))))","v":""},null,null,"A-681",null,null,"",null,"","",""]
[null,null,null,null,null,null,null,null,null,null,null,null,null,null,null,null,"A-682",null,null,"",null,"","",""]
[null,null,null,null,null,null,null,null,null,null,null,null,null,null,null,null,"A-683",null,null,"",null,"","",""]
[null,null,null,null,null,null,null,null,null,null,null,null,null,null,null,null,"A-684",null,null,"",null,"","",""]
[null,null,null,null,null,null,null,null,null,null,null,null,null,null,null,null,"A-685",null,null,"",null,"","",""]
[null,"R-138",{"$f":"IF(F691=\"Sea level rise and storm surge\",\"SL\",IF(F691=\"Increased flooding\",\"FL\",IF(F691=\"Increased rainfall variability\",\"RV\",IF(F691=\"Increased average temperature\",\"AT\",IF(F691=\"Increase in hot days\",\"HD\",IF(F691=\"Increased fire risk\",\"FR\",IF(F691=\"Increased atmospheric CO2\",\"AC\",\"\")))))))","v":""},138,null,null,null,null,null,{"$f":"IF(I691=\"Almost Certain\",5,IF(I691=\"likely\",4,IF(I691=\"Possible\",3,IF(I691=\"Unlikely\",2,IF(I691=\"rare\",1,\"\")))))","v":""},null,{"$f":"IF(K691=\"Catastrophic\",5,IF(K691=\"Major\",4,IF(K691=\"Moderate\",3,IF(K691=\"Minor\",2,IF(K691=\"Insignificant\",1,\"\")))))","v":""},{"$f":"IF(L691=\"\",\"\",L691+J691)","v":""},{"$f":"IF(M691=\"\",\"\",IF(M691<5,\"Low\",IF(AND(M691>4,M691<7),\"Moderate\",IF(M691=7,\"High\",IF(M691>7,\"Extreme\",)))))","v":""},null,null,"A-686",null,null,"",null,"","",""]
[null,null,null,null,null,null,null,null,null,null,null,null,null,null,null,null,"A-687",null,null,"",null,"","",""]
[null,null,null,null,null,null,null,null,null,null,null,null,null,null,null,null,"A-688",null,null,"",null,"","",""]
[null,null,null,null,null,null,null,null,null,null,null,null,null,null,null,null,"A-689",null,null,"",null,"","",""]
[null,null,null,null,null,null,null,null,null,null,null,null,null,null,null,null,"A-690",null,null,"",null,"","",""]
[null,"R-139",{"$f":"IF(F696=\"Sea level rise and storm surge\",\"SL\",IF(F696=\"Increased flooding\",\"FL\",IF(F696=\"Increased rainfall variability\",\"RV\",IF(F696=\"Increased average temperature\",\"AT\",IF(F696=\"Increase in hot days\",\"HD\",IF(F696=\"Increased fire risk\",\"FR\",IF(F696=\"Increased atmospheric CO2\",\"AC\",\"\")))))))","v":""},139,null,null,null,null,null,{"$f":"IF(I696=\"Almost Certain\",5,IF(I696=\"likely\",4,IF(I696=\"Possible\",3,IF(I696=\"Unlikely\",2,IF(I696=\"rare\",1,\"\")))))","v":""},null,{"$f":"IF(K696=\"Catastrophic\",5,IF(K696=\"Major\",4,IF(K696=\"Moderate\",3,IF(K696=\"Minor\",2,IF(K696=\"Insignificant\",1,\"\")))))","v":""},{"$f":"IF(L696=\"\",\"\",L696+J696)","v":""},{"$f":"IF(M696=\"\",\"\",IF(M696<5,\"Low\",IF(AND(M696>4,M696<7),\"Moderate\",IF(M696=7,\"High\",IF(M696>7,\"Extreme\",)))))","v":""},null,null,"A-691",null,null,"",null,"","",""]
[null,null,null,null,null,null,null,null,null,null,null,null,null,null,null,null,"A-692",null,null,"",null,"","",""]
[null,null,null,null,null,null,null,null,null,null,null,null,null,null,null,null,"A-693",null,null,"",null,"","",""]
[null,null,null,null,null,null,null,null,null,null,null,null,null,null,null,null,"A-694",null,null,"",null,"","",""]
[null,null,null,null,null,null,null,null,null,null,null,null,null,null,null,null,"A-695",null,null,"",null,"","",""]
[null,"R-140",{"$f":"IF(F701=\"Sea level rise and storm surge\",\"SL\",IF(F701=\"Increased flooding\",\"FL\",IF(F701=\"Increased rainfall variability\",\"RV\",IF(F701=\"Increased average temperature\",\"AT\",IF(F701=\"Increase in hot days\",\"HD\",IF(F701=\"Increased fire risk\",\"FR\",IF(F701=\"Increased atmospheric CO2\",\"AC\",\"\")))))))","v":""},140,null,null,null,null,null,{"$f":"IF(I701=\"Almost Certain\",5,IF(I701=\"likely\",4,IF(I701=\"Possible\",3,IF(I701=\"Unlikely\",2,IF(I701=\"rare\",1,\"\")))))","v":""},null,{"$f":"IF(K701=\"Catastrophic\",5,IF(K701=\"Major\",4,IF(K701=\"Moderate\",3,IF(K701=\"Minor\",2,IF(K701=\"Insignificant\",1,\"\")))))","v":""},{"$f":"IF(L701=\"\",\"\",L701+J701)","v":""},{"$f":"IF(M701=\"\",\"\",IF(M701<5,\"Low\",IF(AND(M701>4,M701<7),\"Moderate\",IF(M701=7,\"High\",IF(M701>7,\"Extreme\",)))))","v":""},null,null,"A-696",null,null,"",null,"","",""]
[null,null,null,null,null,null,null,null,null,null,null,null,null,null,null,null,"A-697",null,null,"",null,"","",""]
[null,null,null,null,null,null,null,null,null,null,null,null,null,null,null,null,"A-698",null,null,"",null,"","",""]
[null,null,null,null,null,null,null,null,null,null,null,null,null,null,null,null,"A-699",null,null,"",null,"","",""]
[null,null,null,null,null,null,null,null,null,null,null,null,null,null,null,null,"A-700",null,null,"",null,"","",""]
[null,"R-141",{"$f":"IF(F706=\"Sea level rise and storm surge\",\"SL\",IF(F706=\"Increased flooding\",\"FL\",IF(F706=\"Increased rainfall variability\",\"RV\",IF(F706=\"Increased average temperature\",\"AT\",IF(F706=\"Increase in hot days\",\"HD\",IF(F706=\"Increased fire risk\",\"FR\",IF(F706=\"Increased atmospheric CO2\",\"AC\",\"\")))))))","v":""},141,null,null,null,null,null,{"$f":"IF(I706=\"Almost Certain\",5,IF(I706=\"likely\",4,IF(I706=\"Possible\",3,IF(I706=\"Unlikely\",2,IF(I706=\"rare\",1,\"\")))))","v":""},null,{"$f":"IF(K706=\"Catastrophic\",5,IF(K706=\"Major\",4,IF(K706=\"Moderate\",3,IF(K706=\"Minor\",2,IF(K706=\"Insignificant\",1,\"\")))))","v":""},{"$f":"IF(L706=\"\",\"\",L706+J706)","v":""},{"$f":"IF(M706=\"\",\"\",IF(M706<5,\"Low\",IF(AND(M706>4,M706<7),\"Moderate\",IF(M706=7,\"High\",IF(M706>7,\"Extreme\",)))))","v":""},null,null,"A-701",null,null,"",null,"","",""]
[null,null,null,null,null,null,null,null,null,null,null,null,null,null,null,null,"A-702",null,null,"",null,"","",""]
[null,null,null,null,null,null,null,null,null,null,null,null,null,null,null,null,"A-703",null,null,"",null,"","",""]
[null,null,null,null,null,null,null,null,null,null,null,null,null,null,null,null,"A-704",null,null,"",null,"","",""]
[null,null,null,null,null,null,null,null,null,null,null,null,null,null,null,null,"A-705",null,null,"",null,"","",""]
[null,"R-142",{"$f":"IF(F711=\"Sea level rise and storm surge\",\"SL\",IF(F711=\"Increased flooding\",\"FL\",IF(F711=\"Increased rainfall variability\",\"RV\",IF(F711=\"Increased average temperature\",\"AT\",IF(F711=\"Increase in hot days\",\"HD\",IF(F711=\"Increased fire risk\",\"FR\",IF(F711=\"Increased atmospheric CO2\",\"AC\",\"\")))))))","v":""},142,null,null,null,null,null,{"$f":"IF(I711=\"Almost Certain\",5,IF(I711=\"likely\",4,IF(I711=\"Possible\",3,IF(I711=\"Unlikely\",2,IF(I711=\"rare\",1,\"\")))))","v":""},null,{"$f":"IF(K711=\"Catastrophic\",5,IF(K711=\"Major\",4,IF(K711=\"Moderate\",3,IF(K711=\"Minor\",2,IF(K711=\"Insignificant\",1,\"\")))))","v":""},{"$f":"IF(L711=\"\",\"\",L711+J711)","v":""},{"$f":"IF(M711=\"\",\"\",IF(M711<5,\"Low\",IF(AND(M711>4,M711<7),\"Moderate\",IF(M711=7,\"High\",IF(M711>7,\"Extreme\",)))))","v":""},null,null,"A-706",null,null,"",null,"","",""]
[null,null,null,null,null,null,null,null,null,null,null,null,null,null,null,null,"A-707",null,null,"",null,{"$f":"IF(U712=\"Catastrophic\",5,IF(U712=\"Major\",4,IF(U712=\"Moderate\",3,IF(U712=\"Minor\",2,IF(U712=\"Insignificant\",1,\"\")))))","v":""},{"$f":"IF(V712=\"\",\"\",V712+T712)","v":""},{"$f":"IF(W712=\"\",\"\",IF(W712<5,\"Low\",IF(AND(W712>4,W712<7),\"Moderate\",IF(W712=7,\"High\",IF(W712>7,\"Extreme\",)))))","v":""}]
[null,null,null,null,null,null,null,null,null,null,null,null,null,null,null,null,"A-708",null,null,"",null,"","",""]
[null,null,null,null,null,null,null,null,null,null,null,null,null,null,null,null,"A-709",null,null,"",null,"","",""]
[null,null,null,null,null,null,null,null,null,null,null,null,null,null,null,null,"A-710",null,null,"",null,"","",""]
[null,"R-143",{"$f":"IF(F716=\"Sea level rise and storm surge\",\"SL\",IF(F716=\"Increased flooding\",\"FL\",IF(F716=\"Increased rainfall variability\",\"RV\",IF(F716=\"Increased average temperature\",\"AT\",IF(F716=\"Increase in hot days\",\"HD\",IF(F716=\"Increased fire risk\",\"FR\",IF(F716=\"Increased atmospheric CO2\",\"AC\",\"\")))))))","v":""},143,null,null,null,null,null,{"$f":"IF(I716=\"Almost Certain\",5,IF(I716=\"likely\",4,IF(I716=\"Possible\",3,IF(I716=\"Unlikely\",2,IF(I716=\"rare\",1,\"\")))))","v":""},null,{"$f":"IF(K716=\"Catastrophic\",5,IF(K716=\"Major\",4,IF(K716=\"Moderate\",3,IF(K716=\"Minor\",2,IF(K716=\"Insignificant\",1,\"\")))))","v":""},{"$f":"IF(L716=\"\",\"\",L716+J716)","v":""},{"$f":"IF(M716=\"\",\"\",IF(M716<5,\"Low\",IF(AND(M716>4,M716<7),\"Moderate\",IF(M716=7,\"High\",IF(M716>7,\"Extreme\",)))))","v":""},null,null,"A-711",null,null,"",null,"","",""]
[null,null,null,null,null,null,null,null,null,null,null,null,null,null,null,null,"A-712",null,null,"",null,"","",""]
[null,null,null,null,null,null,null,null,null,null,null,null,null,null,null,null,"A-713",null,null,"",null,"","",""]
[null,null,null,null,null,null,null,null,null,null,null,null,null,null,null,null,"A-714",null,null,"",null,"","",""]
[null,null,null,null,null,null,null,null,null,null,null,null,null,null,null,null,"A-715",null,null,"",null,"","",""]
[null,"R-144",{"$f":"IF(F721=\"Sea level rise and storm surge\",\"SL\",IF(F721=\"Increased flooding\",\"FL\",IF(F721=\"Increased rainfall variability\",\"RV\",IF(F721=\"Increased average temperature\",\"AT\",IF(F721=\"Increase in hot days\",\"HD\",IF(F721=\"Increased fire risk\",\"FR\",IF(F721=\"Increased atmospheric CO2\",\"AC\",\"\")))))))","v":""},144,null,null,null,null,null,{"$f":"IF(I721=\"Almost Certain\",5,IF(I721=\"likely\",4,IF(I721=\"Possible\",3,IF(I721=\"Unlikely\",2,IF(I721=\"rare\",1,\"\")))))","v":""},null,{"$f":"IF(K721=\"Catastrophic\",5,IF(K721=\"Major\",4,IF(K721=\"Moderate\",3,IF(K721=\"Minor\",2,IF(K721=\"Insignificant\",1,\"\")))))","v":""},{"$f":"IF(L721=\"\",\"\",L721+J721)","v":""},{"$f":"IF(M721=\"\",\"\",IF(M721<5,\"Low\",IF(AND(M721>4,M721<7),\"Moderate\",IF(M721=7,\"High\",IF(M721>7,\"Extreme\",)))))","v":""},null,null,"A-716",null,null,"",null,"","",""]
[null,null,null,null,null,null,null,null,null,null,null,null,null,null,null,null,"A-717",null,null,"",null,"","",""]
[null,null,null,null,null,null,null,null,null,null,null,null,null,null,null,null,"A-718",null,null,"",null,"","",""]
[null,null,null,null,null,null,null,null,null,null,null,null,null,null,null,null,"A-719",null,null,"",null,"","",""]
[null,null,null,null,null,null,null,null,null,null,null,null,null,null,null,null,"A-720",null,null,"",null,"","",""]
[null,"R-145",{"$f":"IF(F726=\"Sea level rise and storm surge\",\"SL\",IF(F726=\"Increased flooding\",\"FL\",IF(F726=\"Increased rainfall variability\",\"RV\",IF(F726=\"Increased average temperature\",\"AT\",IF(F726=\"Increase in hot days\",\"HD\",IF(F726=\"Increased fire risk\",\"FR\",IF(F726=\"Increased atmospheric CO2\",\"AC\",\"\")))))))","v":""},145,null,null,null,null,null,{"$f":"IF(I726=\"Almost Certain\",5,IF(I726=\"likely\",4,IF(I726=\"Possible\",3,IF(I726=\"Unlikely\",2,IF(I726=\"rare\",1,\"\")))))","v":""},null,{"$f":"IF(K726=\"Catastrophic\",5,IF(K726=\"Major\",4,IF(K726=\"Moderate\",3,IF(K726=\"Minor\",2,IF(K726=\"Insignificant\",1,\"\")))))","v":""},{"$f":"IF(L726=\"\",\"\",L726+J726)","v":""},{"$f":"IF(M726=\"\",\"\",IF(M726<5,\"Low\",IF(AND(M726>4,M726<7),\"Moderate\",IF(M726=7,\"High\",IF(M726>7,\"Extreme\",)))))","v":""},null,null,"A-721",null,null,{"$f":"IF(S726=\"Almost Certain\",5,IF(S726=\"likely\",4,IF(S726=\"Possible\",3,IF(S726=\"Unlikely\",2,IF(S726=\"rare\",1,\"\")))))","v":""},null,"","",""]
[null,null,null,null,null,null,null,null,null,null,null,null,null,null,null,null,"A-722",null,null,"",null,"","",""]
[null,null,null,null,null,null,null,null,null,null,null,null,null,null,null,null,"A-723",null,null,"",null,"","",""]
[null,null,null,null,null,null,null,null,null,null,null,null,null,null,null,null,"A-724",null,null,"",null,"","",""]
[null,null,null,null,null,null,null,null,null,null,null,null,null,null,null,null,"A-725",null,null,"",null,"","",""]
[null,"R-146",{"$f":"IF(F731=\"Sea level rise and storm surge\",\"SL\",IF(F731=\"Increased flooding\",\"FL\",IF(F731=\"Increased rainfall variability\",\"RV\",IF(F731=\"Increased average temperature\",\"AT\",IF(F731=\"Increase in hot days\",\"HD\",IF(F731=\"Increased fire risk\",\"FR\",IF(F731=\"Increased atmospheric CO2\",\"AC\",\"\")))))))","v":""},146,null,null,null,null,null,{"$f":"IF(I731=\"Almost Certain\",5,IF(I731=\"likely\",4,IF(I731=\"Possible\",3,IF(I731=\"Unlikely\",2,IF(I731=\"rare\",1,\"\")))))","v":""},null,{"$f":"IF(K731=\"Catastrophic\",5,IF(K731=\"Major\",4,IF(K731=\"Moderate\",3,IF(K731=\"Minor\",2,IF(K731=\"Insignificant\",1,\"\")))))","v":""},{"$f":"IF(L731=\"\",\"\",L731+J731)","v":""},{"$f":"IF(M731=\"\",\"\",IF(M731<5,\"Low\",IF(AND(M731>4,M731<7),\"Moderate\",IF(M731=7,\"High\",IF(M731>7,\"Extreme\",)))))","v":""},null,null,"A-726",null,null,"",null,"","",""]
[null,null,null,null,null,null,null,null,null,null,null,null,null,null,null,null,"A-727",null,null,"",null,"","",""]
[null,null,null,null,null,null,null,null,null,null,null,null,null,null,null,null,"A-728",null,null,"",null,"","",""]
[null,null,null,null,null,null,null,null,null,null,null,null,null,null,null,null,"A-729",null,null,"",null,"","",""]
[null,null,null,null,null,null,null,null,null,null,null,null,null,null,null,null,"A-730",null,null,"",null,"","",""]
[null,"R-147",{"$f":"IF(F736=\"Sea level rise and storm surge\",\"SL\",IF(F736=\"Increased flooding\",\"FL\",IF(F736=\"Increased rainfall variability\",\"RV\",IF(F736=\"Increased average temperature\",\"AT\",IF(F736=\"Increase in hot days\",\"HD\",IF(F736=\"Increased fire risk\",\"FR\",IF(F736=\"Increased atmospheric CO2\",\"AC\",\"\")))))))","v":""},147,null,null,null,null,null,{"$f":"IF(I736=\"Almost Certain\",5,IF(I736=\"likely\",4,IF(I736=\"Possible\",3,IF(I736=\"Unlikely\",2,IF(I736=\"rare\",1,\"\")))))","v":""},null,{"$f":"IF(K736=\"Catastrophic\",5,IF(K736=\"Major\",4,IF(K736=\"Moderate\",3,IF(K736=\"Minor\",2,IF(K736=\"Insignificant\",1,\"\")))))","v":""},{"$f":"IF(L736=\"\",\"\",L736+J736)","v":""},{"$f":"IF(M736=\"\",\"\",IF(M736<5,\"Low\",IF(AND(M736>4,M736<7),\"Moderate\",IF(M736=7,\"High\",IF(M736>7,\"Extreme\",)))))","v":""},null,null,"A-731",null,null,"",null,"","",""]
[null,null,null,null,null,null,null,null,null,null,null,null,null,null,null,null,"A-732",null,null,"",null,"","",""]
[null,null,null,null,null,null,null,null,null,null,null,null,null,null,null,null,"A-733",null,null,"",null,"","",""]
[null,null,null,null,null,null,null,null,null,null,null,null,null,null,null,null,"A-734",null,null,"",null,"","",""]
[null,null,null,null,null,null,null,null,null,null,null,null,null,null,null,null,"A-735",null,null,"",null,"","",""]
[null,"R-148",{"$f":"IF(F741=\"Sea level rise and storm surge\",\"SL\",IF(F741=\"Increased flooding\",\"FL\",IF(F741=\"Increased rainfall variability\",\"RV\",IF(F741=\"Increased average temperature\",\"AT\",IF(F741=\"Increase in hot days\",\"HD\",IF(F741=\"Increased fire risk\",\"FR\",IF(F741=\"Increased atmospheric CO2\",\"AC\",\"\")))))))","v":""},148,null,null,null,null,null,{"$f":"IF(I741=\"Almost Certain\",5,IF(I741=\"likely\",4,IF(I741=\"Possible\",3,IF(I741=\"Unlikely\",2,IF(I741=\"rare\",1,\"\")))))","v":""},null,{"$f":"IF(K741=\"Catastrophic\",5,IF(K741=\"Major\",4,IF(K741=\"Moderate\",3,IF(K741=\"Minor\",2,IF(K741=\"Insignificant\",1,\"\")))))","v":""},{"$f":"IF(L741=\"\",\"\",L741+J741)","v":""},{"$f":"IF(M741=\"\",\"\",IF(M741<5,\"Low\",IF(AND(M741>4,M741<7),\"Moderate\",IF(M741=7,\"High\",IF(M741>7,\"Extreme\",)))))","v":""},null,null,"A-736",null,null,"",null,"","",""]
[null,null,null,null,null,null,null,null,null,null,null,null,null,null,null,null,"A-737",null,null,"",null,"","",""]
[null,null,null,null,null,null,null,null,null,null,null,null,null,null,null,null,"A-738",null,null,"",null,"","",""]
[null,null,null,null,null,null,null,null,null,null,null,null,null,null,null,null,"A-739",null,null,"",null,"","",""]
[null,null,null,null,null,null,null,null,null,null,null,null,null,null,null,null,"A-740",null,null,"",null,"","",""]
[null,"R-149",{"$f":"IF(F746=\"Sea level rise and storm surge\",\"SL\",IF(F746=\"Increased flooding\",\"FL\",IF(F746=\"Increased rainfall variability\",\"RV\",IF(F746=\"Increased average temperature\",\"AT\",IF(F746=\"Increase in hot days\",\"HD\",IF(F746=\"Increased fire risk\",\"FR\",IF(F746=\"Increased atmospheric CO2\",\"AC\",\"\")))))))","v":""},149,null,null,null,null,null,{"$f":"IF(I746=\"Almost Certain\",5,IF(I746=\"likely\",4,IF(I746=\"Possible\",3,IF(I746=\"Unlikely\",2,IF(I746=\"rare\",1,\"\")))))","v":""},null,{"$f":"IF(K746=\"Catastrophic\",5,IF(K746=\"Major\",4,IF(K746=\"Moderate\",3,IF(K746=\"Minor\",2,IF(K746=\"Insignificant\",1,\"\")))))","v":""},{"$f":"IF(L746=\"\",\"\",L746+J746)","v":""},{"$f":"IF(M746=\"\",\"\",IF(M746<5,\"Low\",IF(AND(M746>4,M746<7),\"Moderate\",IF(M746=7,\"High\",IF(M746>7,\"Extreme\",)))))","v":""},null,null,"A-741",null,null,"",null,"","",""]
[null,null,null,null,null,null,null,null,null,null,null,null,null,null,null,null,"A-742",null,null,"",null,"","",""]
[null,null,null,null,null,null,null,null,null,null,null,null,null,null,null,null,"A-743",null,null,"",null,"","",""]
[null,null,null,null,null,null,null,null,null,null,null,null,null,null,null,null,"A-744",null,null,"",null,"","",""]
[null,null,null,null,null,null,null,null,null,null,null,null,null,null,null,null,"A-745",null,null,"",null,"","",""]
[null,"R-150",{"$f":"IF(F751=\"Sea level rise and storm surge\",\"SL\",IF(F751=\"Increased flooding\",\"FL\",IF(F751=\"Increased rainfall variability\",\"RV\",IF(F751=\"Increased average temperature\",\"AT\",IF(F751=\"Increase in hot days\",\"HD\",IF(F751=\"Increased fire risk\",\"FR\",IF(F751=\"Increased atmospheric CO2\",\"AC\",\"\")))))))","v":""},150,null,null,null,null,null,{"$f":"IF(I751=\"Almost Certain\",5,IF(I751=\"likely\",4,IF(I751=\"Possible\",3,IF(I751=\"Unlikely\",2,IF(I751=\"rare\",1,\"\")))))","v":""},null,{"$f":"IF(K751=\"Catastrophic\",5,IF(K751=\"Major\",4,IF(K751=\"Moderate\",3,IF(K751=\"Minor\",2,IF(K751=\"Insignificant\",1,\"\")))))","v":""},{"$f":"IF(L751=\"\",\"\",L751+J751)","v":""},{"$f":"IF(M751=\"\",\"\",IF(M751<5,\"Low\",IF(AND(M751>4,M751<7),\"Moderate\",IF(M751=7,\"High\",IF(M751>7,\"Extreme\",)))))","v":""},null,null,"A-746",null,null,"",null,"","",""]
[null,null,null,null,null,null,null,null,null,null,null,null,null,null,null,null,"A-747",null,null,"",null,"","",""]
[null,null,null,null,null,null,null,null,null,null,null,null,null,null,null,null,"A-748",null,null,"",null,"","",""]
[null,null,null,null,null,null,null,null,null,null,null,null,null,null,null,null,"A-749",null,null,"",null,"","",""]
[null,null,null,null,null,null,null,null,null,null,null,null,null,null,null,null,"A-750",null,null,"",null,"","",""]

{"sheet":"Action Prioritisation","index":2,"n_rows":255,"n_cols":19,"rows_kept":255,"cut":false,"hidden":false,"merged":[[12,18,14,18],[12,1,14,1],[12,7,12,17],[12,2,13,6],[4,1,8,18]]}
[]
[null,"Climate Change Adaptation Planning Project - Action Prioritisation Multi Criteria Analysis"]
[]
[]
[null,"The multi-criteria analysis tool is designed to assist in prioritising adaptation actions to determine which actions should be considered first. The criteria used for prioritisation include cost, immediacy, political feasibility, community acceptance, flexibility and concurrent effects. For each adaptation action determine which risks are treated, then use the drop down menus to rate the action according to each criteria. The total score will provide an indication of priority ranking of that adaptation action relative to the other actions. For each action, also determine the responsible business unit, the timeline for implementation and any other comments. This information will be used to develop an implementation action plan.  The weightings may be adjusted to match the organisation's strategic priorities and will ideally be set to comply with the strategic plan.  The total score weighting must add up to 100%."]
[]
[]
[]
[]
[]
[]
[]
[null,"Action Code","Weightings: ",null,null,null,null,"Multi Criteria Analysis",null,null,null,null,null,null,null,null,null,null,"Comments"]
[null,null,null,null,null,null,null,0.3,null,0.25,null,0.25,null,0.1,null,0.1,null,{"$f":"SUM(H14:Q14)","v":1}]
[null,null,"Adaptation Action","Risks treated","Responsible Business Unit","Relevant Council Document","Timeframe for Implementation","Cost","Score","Political feasibility","Score","Community acceptance","Score","Influence level","Score","Concurrent effects","Score","Total Score"]
[null,"A-1",null,null,null,null,null,null,{"$f":"IF(H16=\"Low\",5,IF(H16=\"Medium\",3,IF(H16=\"high\",1,\"\")))","v":""},null,{"$f":"IF(J16=\"Unsupportive\",1,IF(J16=\"Neutral\",3,IF(J16=\"Supportive\",5,\"\")))","v":""},null,{"$f":"IF(L16=\"Controversial\",1,IF(L16=\"Indifferent\",3,IF(L16=\"Popular\",5,\"\")))","v":""},null,{"$f":"IF(N16=\"Leader\",5,IF(N16=\"Collaborator\",3,IF(N16=\"Influencer\",1,\"\")))","v":""},null,{"$f":"IF(P16=\"Potential negative effects\",1,IF(P16=\"Neutral\",3,IF(P16=\"Potential positive effects\",5,\"\")))","v":""},{"$f":"IF(Q16=\"\",\"\",IF(O16=\"\",\"\",IF(M16=\"\",\"\",IF(K16=\"\",\"\",IF(I16=\"\",\"\",SUM(Q16*$P$14,O16*$N$14,M16*$L$14,K16*$J$14,I16*$H$14))))))","v":""}]
[null,"A-2",null,null,null,null,null,null,{"$f":"IF(H17=\"Low\",5,IF(H17=\"Medium\",3,IF(H17=\"high\",1,\"\")))","v":""},null,{"$f":"IF(J17=\"Unsupportive\",1,IF(J17=\"Neutral\",3,IF(J17=\"Supportive\",5,\"\")))","v":""},null,{"$f":"IF(L17=\"Controversial\",1,IF(L17=\"Indifferent\",3,IF(L17=\"Popular\",5,\"\")))","v":""},null,{"$f":"IF(N17=\"Leader\",5,IF(N17=\"Collaborator\",3,IF(N17=\"Influencer\",1,\"\")))","v":""},null,{"$f":"IF(P17=\"Potential negative effects\",1,IF(P17=\"Neutral\",3,IF(P17=\"Potential positive effects\",5,\"\")))","v":""},""]
[null,"A-3",null,null,null,null,null,null,"",null,"",null,"",null,"",null,"",""]
[null,"A-4",null,null,null,null,null,null,"",null,"",null,"",null,"",null,"",""]
[null,"A-5",null,null,null,null,null,null,"",null,"",null,"",null,"",null,"",""]
[null,"A-6",null,null,null,null,null,null,"",null,"",null,"",null,"",null,"",""]
[null,"A-7",null,null,null,null,null,null,"",null,"",null,"",null,"",null,"",""]
[null,"A-8",null,null,null,null,null,null,"",null,"",null,"",null,"",null,"",""]
[null,"A-9",null,null,null,null,null,null,"",null,"",null,"",null,"",null,"",""]
[null,"A-10",null,null,null,null,null,null,"",null,"",null,"",null,"",null,"",""]
[null,"A-11",null,null,null,null,null,null,"",null,"",null,"",null,"",null,"",""]
[null,"A-12",null,null,null,null,null,null,"",null,"",null,"",null,"",null,"",""]
[null,"A-13",null,null,null,null,null,null,"",null,"",null,"",null,"",null,"",""]
[null,"A-14",null,null,null,null,null,null,"",null,"",null,"",null,"",null,"",""]
[null,"A-15",null,null,null,null,null,null,"",null,"",null,"",null,"",null,"",""]
[null,"A-16",null,null,null,null,null,null,"",null,"",null,"",null,"",null,"",""]
[null,"A-17",null,null,null,null,null,null,"",null,"",null,"",null,"",null,"",""]
[null,"A-18",null,null,null,null,null,null,"",null,"",null,"",null,"",null,"",""]
[null,"A-19",null,null,null,null,null,null,"",null,"",null,"",null,"",null,"",""]
[null,"A-20",null,null,null,null,null,null,"",null,"",null,"",null,"",null,"",""]
[null,"A-21",null,null,null,null,null,null,"",null,"",null,"",null,"",null,"",""]
[null,"A-22",null,null,null,null,null,null,"",null,"",null,"",null,"",null,"",""]
[null,"A-23",null,null,null,null,null,null,"",null,"",null,"",null,"",null,"",""]
[null,"A-24",null,null,null,null,null,null,"",null,"",null,"",null,"",null,"",""]
[null,"A-25",null,null,null,null,null,null,"",null,"",null,"",null,"",null,"",""]
[null,"A-26",null,null,null,null,null,null,"",null,"",null,"",null,"",null,"",""]
[null,"A-27",null,null,null,null,null,null,"",null,"",null,"",null,"",null,"",""]
[null,"A-28",null,null,null,null,null,null,"",null,"",null,"",null,"",null,"",""]
[null,"A-29",null,null,null,null,null,null,"",null,"",null,"",null,"",null,"",""]
[null,"A-30",null,null,null,null,null,null,"",null,"",null,"",null,"",null,"",""]
[null,"A-31",null,null,null,null,null,null,"",null,"",null,"",null,"",null,"",""]
[null,"A-32",null,null,null,null,null,null,"",null,"",null,"",null,"",null,"",""]
[null,"A-33",null,null,null,null,null,null,"",null,"",null,"",null,"",null,"",{"$f":"IF(Q48=\"\",\"\",IF(O48=\"\",\"\",IF(M48=\"\",\"\",IF(K48=\"\",\"\",IF(I48=\"\",\"\",SUM(Q48*$P$14,O48*$N$14,M48*$L$14,K48*$J$14,I48*$H$14))))))","v":""}]
[null,"A-34",null,null,null,null,null,null,"",null,"",null,"",null,"",null,"",""]
[null,"A-35",null,null,null,null,null,null,"",null,"",null,"",null,"",null,"",""]
[null,"A-36",null,null,null,null,null,null,"",null,"",null,"",null,"",null,"",""]
[null,"A-37",null,null,null,null,null,null,"",null,"",null,"",null,"",null,"",""]
[null,"A-38",null,null,null,null,null,null,"",null,"",null,"",null,"",null,"",""]
[null,"A-39",null,null,null,null,null,null,"",null,"",null,"",null,"",null,"",""]
[null,"A-40",null,null,null,null,null,null,"",null,"",null,"",null,"",null,"",""]
[null,"A-41",null,null,null,null,null,null,"",null,"",null,"",null,"",null,"",""]
[null,"A-42",null,null,null,null,null,null,"",null,"",null,"",null,"",null,"",""]
[null,"A-43",null,null,null,null,null,null,"",null,"",null,"",null,"",null,"",""]
[null,"A-44",null,null,null,null,null,null,"",null,"",null,"",null,"",null,"",""]
[null,"A-45",null,null,null,null,null,null,"",null,"",null,"",null,"",null,"",""]
[null,"A-46",null,null,null,null,null,null,"",null,"",null,"",null,"",null,"",""]
[null,"A-47",null,null,null,null,null,null,"",null,"",null,"",null,"",null,"",""]
[null,"A-48",null,null,null,null,null,null,"",null,"",null,"",null,"",null,"",""]
[null,"A-49",null,null,null,null,null,null,"",null,"",null,"",null,"",null,"",""]
[null,"A-50",null,null,null,null,null,null,"",null,"",null,"",null,"",null,"",""]
[null,"A-51",null,null,null,null,null,null,"",null,"",null,"",null,"",null,"",""]
[null,"A-52",null,null,null,null,null,null,"",null,"",null,"",null,"",null,"",""]
[null,"A-53",null,null,null,null,null,null,"",null,"",null,"",null,"",null,"",""]
[null,"A-54",null,null,null,null,null,null,"",null,"",null,"",null,"",null,"",""]
[null,"A-55",null,null,null,null,null,null,"",null,"",null,"",null,"",null,"",""]
[null,"A-56",null,null,null,null,null,null,"",null,"",null,"",null,"",null,"",""]
[null,"A-57",null,null,null,null,null,null,"",null,"",null,"",null,"",null,"",""]
[null,"A-58",null,null,null,null,null,null,"",null,"",null,"",null,"",null,"",""]
[null,"A-59",null,null,null,null,null,null,"",null,"",null,"",null,"",null,"",""]
[null,"A-60",null,null,null,null,null,null,"",null,"",null,"",null,"",null,"",""]
[null,"A-61",null,null,null,null,null,null,"",null,"",null,"",null,"",null,"",""]
[null,"A-62",null,null,null,null,null,null,"",null,"",null,"",null,"",null,"",""]
[null,"A-63",null,null,null,null,null,null,"",null,"",null,"",null,"",null,"",""]
[null,"A-64",null,null,null,null,null,null,{"$f":"IF(H79=\"Low\",5,IF(H79=\"Medium\",3,IF(H79=\"high\",1,\"\")))","v":""},null,{"$f":"IF(J79=\"Unsupportive\",1,IF(J79=\"Neutral\",3,IF(J79=\"Supportive\",5,\"\")))","v":""},null,{"$f":"IF(L79=\"Controversial\",1,IF(L79=\"Indifferent\",3,IF(L79=\"Popular\",5,\"\")))","v":""},null,{"$f":"IF(N79=\"Leader\",5,IF(N79=\"Collaborator\",3,IF(N79=\"Influencer\",1,\"\")))","v":""},null,{"$f":"IF(P79=\"Potential negative effects\",1,IF(P79=\"Neutral\",3,IF(P79=\"Potential positive effects\",5,\"\")))","v":""},{"$f":"IF(Q79=\"\",\"\",IF(O79=\"\",\"\",IF(M79=\"\",\"\",IF(K79=\"\",\"\",IF(I79=\"\",\"\",SUM(Q79*$P$14,O79*$N$14,M79*$L$14,K79*$J$14,I79*$H$14))))))","v":""}]
[null,"A-65",null,null,null,null,null,null,"",null,"",null,"",null,"",null,"",""]
[null,"A-66",null,null,null,null,null,null,"",null,"",null,"",null,"",null,"",""]
[null,"A-67",null,null,null,null,null,null,"",null,"",null,"",null,"",null,"",""]
[null,"A-68",null,null,null,null,null,null,"",null,"",null,"",null,"",null,"",""]
[null,"A-69",null,null,null,null,null,null,"",null,"",null,"",null,"",null,"",""]
[null,"A-70",null,null,null,null,null,null,"",null,"",null,"",null,"",null,"",""]
[null,"A-71",null,null,null,null,null,null,"",null,"",null,"",null,"",null,"",""]
[null,"A-72",null,null,null,null,null,null,"",null,"",null,"",null,"",null,"",""]
[null,"A-73",null,null,null,null,null,null,"",null,"",null,"",null,"",null,"",""]
[null,"A-74",null,null,null,null,null,null,"",null,"",null,"",null,"",null,"",""]
[null,"A-75",null,null,null,null,null,null,"",null,"",null,"",null,"",null,"",""]
[null,"A-76",null,null,null,null,null,null,"",null,"",null,"",null,"",null,"",""]
[null,"A-77",null,null,null,null,null,null,"",null,"",null,"",null,"",null,"",""]
[null,"A-78",null,null,null,null,null,null,"",null,"",null,"",null,"",null,"",""]
[null,"A-79",null,null,null,null,null,null,"",null,"",null,"",null,"",null,"",""]
[null,"A-80",null,null,null,null,null,null,"",null,"",null,"",null,"",null,"",""]
[null,"A-81",null,null,null,null,null,null,"",null,"",null,"",null,"",null,"",""]
[null,"A-82",null,null,null,null,null,null,"",null,"",null,"",null,"",null,"",""]
[null,"A-83",null,null,null,null,null,null,"",null,"",null,"",null,"",null,"",""]
[null,"A-84",null,null,null,null,null,null,"",null,"",null,"",null,"",null,"",""]
[null,"A-85",null,null,null,null,null,null,"",null,"",null,"",null,"",null,"",""]
[null,"A-86",null,null,null,null,null,null,"",null,"",null,"",null,"",null,"",""]
[null,"A-87",null,null,null,null,null,null,"",null,"",null,"",null,"",null,"",""]
[null,"A-88",null,null,null,null,null,null,"",null,"",null,"",null,"",null,"",""]
[null,"A-89",null,null,null,null,null,null,"",null,"",null,"",null,"",null,"",""]
[null,"A-90",null,null,null,null,null,null,"",null,"",null,"",null,"",null,"",""]
[null,"A-91",null,null,null,null,null,null,"",null,"",null,"",null,"",null,"",""]
[null,"A-92",null,null,null,null,null,null,"",null,"",null,"",null,"",null,"",""]
[null,"A-93",null,null,null,null,null,null,"",null,"",null,"",null,"",null,"",""]
[null,"A-94",null,null,null,null,null,null,"",null,"",null,"",null,"",null,"",""]
[null,"A-95",null,null,null,null,null,null,"",null,"",null,"",null,"",null,"",""]
[null,"A-96",null,null,null,null,null,null,"",null,"",null,"",null,"",null,"",""]
[null,"A-97",null,null,null,null,null,null,"",null,"",null,"",null,"",null,"",""]
[null,"A-98",null,null,null,null,null,null,"",null,"",null,"",null,"",null,"",""]
[null,"A-99",null,null,null,null,null,null,"",null,"",null,"",null,"",null,"",""]
[null,"A-100",null,null,null,null,null,null,"",null,"",null,"",null,"",null,"",""]
[null,"A-101",null,null,null,null,null,null,"",null,"",null,"",null,"",null,"",""]
[null,"A-102",null,null,null,null,null,null,"",null,"",null,"",null,"",null,"",""]
[null,"A-103",null,null,null,null,null,null,"",null,"",null,"",null,"",null,"",""]
[null,"A-104",null,null,null,null,null,null,"",null,"",null,"",null,"",null,"",""]
[null,"A-105",null,null,null,null,null,null,"",null,"",null,"",null,"",null,"",""]
[null,"A-106",null,null,null,null,null,null,"",null,"",null,"",null,"",null,"",""]
[null,"A-107",null,null,null,null,null,null,"",null,"",null,"",null,"",null,"",""]
[null,"A-108",null,null,null,null,null,null,"",null,"",null,"",null,"",null,"",""]
[null,"A-109",null,null,null,null,null,null,"",null,"",null,"",null,"",null,"",""]
[null,"A-110",null,null,null,null,null,null,"",null,"",null,"",null,"",null,"",""]
[null,"A-111",null,null,null,null,null,null,"",null,"",null,"",null,"",null,"",""]
[null,"A-112",null,null,null,null,null,null,"",null,"",null,"",null,"",null,"",""]
[null,"A-113",null,null,null,null,null,null,"",null,"",null,"",null,"",null,"",""]
[null,"A-114",null,null,null,null,null,null,"",null,"",null,"",null,"",null,"",""]
[null,"A-115",null,null,null,null,null,null,"",null,"",null,"",null,"",null,"",""]
[null,"A-116",null,null,null,null,null,null,"",null,"",null,"",null,"",null,"",""]
[null,"A-117",null,null,null,null,null,null,"",null,"",null,"",null,"",null,"",""]
[null,"A-118",null,null,null,null,null,null,"",null,"",null,"",null,"",null,"",""]
[null,"A-119",null,null,null,null,null,null,"",null,"",null,"",null,"",null,"",""]
[null,"A-120",null,null,null,null,null,null,"",null,"",null,"",null,"",null,"",""]
[null,"A-121",null,null,null,null,null,null,"",null,"",null,"",null,"",null,"",""]
[null,"A-122",null,null,null,null,null,null,"",null,"",null,"",null,"",null,"",""]
[null,"A-123",null,null,null,null,null,null,"",null,"",null,"",null,"",null,"",""]
[null,"A-124",null,null,null,null,null,null,"",null,"",null,"",null,"",null,"",""]
[null,"A-125",null,null,null,null,null,null,"",null,"",null,"",null,"",null,"",""]
[null,"A-126",null,null,null,null,null,null,"",null,"",null,"",null,"",null,"",""]
[null,"A-127",null,null,null,null,null,null,"",null,"",null,"",null,"",null,"",""]
[null,"A-128",null,null,null,null,null,null,{"$f":"IF(H143=\"Low\",5,IF(H143=\"Medium\",3,IF(H143=\"high\",1,\"\")))","v":""},null,{"$f":"IF(J143=\"Unsupportive\",1,IF(J143=\"Neutral\",3,IF(J143=\"Supportive\",5,\"\")))","v":""},null,{"$f":"IF(L143=\"Controversial\",1,IF(L143=\"Indifferent\",3,IF(L143=\"Popular\",5,\"\")))","v":""},null,{"$f":"IF(N143=\"Leader\",5,IF(N143=\"Collaborator\",3,IF(N143=\"Influencer\",1,\"\")))","v":""},null,{"$f":"IF(P143=\"Potential negative effects\",1,IF(P143=\"Neutral\",3,IF(P143=\"Potential positive effects\",5,\"\")))","v":""},{"$f":"IF(Q143=\"\",\"\",IF(O143=\"\",\"\",IF(M143=\"\",\"\",IF(K143=\"\",\"\",IF(I143=\"\",\"\",SUM(Q143*$P$14,O143*$N$14,M143*$L$14,K143*$J$14,I143*$H$14))))))","v":""}]
[null,"A-129",null,null,null,null,null,null,"",null,"",null,"",null,"",null,"",""]
[null,"A-130",null,null,null,null,null,null,"",null,"",null,"",null,"",null,"",""]
[null,"A-131",null,null,null,null,null,null,"",null,"",null,"",null,"",null,"",""]
[null,"A-132",null,null,null,null,null,null,"",null,"",null,"",null,"",null,"",""]
[null,"A-133",null,null,null,null,null,null,"",null,"",null,"",null,"",null,"",""]
[null,"A-134",null,null,null,null,null,null,"",null,"",null,"",null,"",null,"",""]
[null,"A-135",null,null,null,null,null,null,"",null,"",null,"",null,"",null,"",""]
[null,"A-136",null,null,null,null,null,null,"",null,"",null,"",null,"",null,"",""]
[null,"A-137",null,null,null,null,null,null,"",null,"",null,"",null,"",null,"",""]
[null,"A-138",null,null,null,null,null,null,"",null,"",null,"",null,"",null,"",""]
[null,"A-139",null,null,null,null,null,null,"",null,"",null,"",null,"",null,"",""]
[null,"A-140",null,null,null,null,null,null,"",null,"",null,"",null,"",null,"",""]
[null,"A-141",null,null,null,null,null,null,"",null,"",null,"",null,"",null,"",""]
[null,"A-142",null,null,null,null,null,null,"",null,"",null,"",null,"",null,"",""]
[null,"A-143",null,null,null,null,null,null,"",null,"",null,"",null,"",null,"",""]
[null,"A-144",null,null,null,null,null,null,"",null,"",null,"",null,"",null,"",""]
[null,"A-145",null,null,null,null,null,null,"",null,"",null,"",null,"",null,"",""]
[null,"A-146",null,null,null,null,null,null,"",null,"",null,"",null,"",null,"",""]
[null,"A-147",null,null,null,null,null,null,"",null,"",null,"",null,"",null,"",""]
[null,"A-148",null,null,null,null,null,null,"",null,"",null,"",null,"",null,"",""]
[null,"A-149",null,null,null,null,null,null,"",null,"",null,"",null,"",null,"",""]
[null,"A-150",null,null,null,null,null,null,"",null,"",null,"",null,"",null,"",""]
[null,"A-151",null,null,null,null,null,null,"",null,"",null,"",null,"",null,"",""]
[null,"A-152",null,null,null,null,null,null,"",null,"",null,"",null,"",null,"",""]
[null,"A-153",null,null,null,null,null,null,"",null,"",null,"",null,"",null,"",""]
[null,"A-154",null,null,null,null,null,null,"",null,"",null,"",null,"",null,"",""]
[null,"A-155",null,null,null,null,null,null,"",null,"",null,"",null,"",null,"",""]
[null,"A-156",null,null,null,null,null,null,"",null,"",null,"",null,"",null,"",""]
[null,"A-157",null,null,null,null,null,null,"",null,"",null,"",null,"",null,"",""]
[null,"A-158",null,null,null,null,null,null,"",null,"",null,"",null,"",null,"",""]
[null,"A-159",null,null,null,null,null,null,"",null,"",null,"",null,"",null,"",""]
[null,"A-160",null,null,null,null,null,null,"",null,"",null,"",null,"",null,"",""]
[null,"A-161",null,null,null,null,null,null,"",null,"",null,"",null,"",null,"",""]
[null,"A-162",null,null,null,null,null,null,"",null,"",null,"",null,"",null,"",""]
[null,"A-163",null,null,null,null,null,null,"",null,"",null,"",null,"",null,"",""]
[null,"A-164",null,null,null,null,null,null,"",null,"",null,"",null,"",null,"",""]
[null,"A-165",null,null,null,null,null,null,"",null,"",null,"",null,"",null,"",""]
[null,"A-166",null,null,null,null,null,null,"",null,"",null,"",null,"",null,"",""]
[null,"A-167",null,null,null,null,null,null,"",null,"",null,"",null,"",null,"",""]
[null,"A-168",null,null,null,null,null,null,"",null,"",null,"",null,"",null,"",""]
[null,"A-169",null,null,null,null,null,null,"",null,"",null,"",null,"",null,"",""]
[null,"A-170",null,null,null,null,null,null,"",null,"",null,"",null,"",null,"",""]
[null,"A-171",null,null,null,null,null,null,"",null,"",null,"",null,"",null,"",""]
[null,"A-172",null,null,null,null,null,null,"",null,"",null,"",null,"",null,"",""]
[null,"A-173",null,null,null,null,null,null,"",null,"",null,"",null,"",null,"",""]
[null,"A-174",null,null,null,null,null,null,"",null,"",null,"",null,"",null,"",""]
[null,"A-175",null,null,null,null,null,null,"",null,"",null,"",null,"",null,"",""]
[null,"A-176",null,null,null,null,null,null,"",null,"",null,"",null,"",null,"",""]
[null,"A-177",null,null,null,null,null,null,"",null,"",null,"",null,"",null,"",""]
[null,"A-178",null,null,null,null,null,null,"",null,"",null,"",null,"",null,"",""]
[null,"A-179",null,null,null,null,null,null,"",null,"",null,"",null,"",null,"",""]
[null,"A-180",null,null,null,null,null,null,"",null,"",null,"",null,"",null,"",""]
[null,"A-181",null,null,null,null,null,null,"",null,"",null,"",null,"",null,"",""]
[null,"A-182",null,null,null,null,null,null,"",null,"",null,"",null,"",null,"",""]
[null,"A-183",null,null,null,null,null,null,"",null,"",null,"",null,"",null,"",""]
[null,"A-184",null,null,null,null,null,null,"",null,"",null,"",null,"",null,"",""]
[null,"A-185",null,null,null,null,null,null,"",null,"",null,"",null,"",null,"",""]
[null,"A-186",null,null,null,null,null,null,"",null,"",null,"",null,"",null,"",""]
[null,"A-187",null,null,null,null,null,null,"",null,"",null,"",null,"",null,"",""]
[null,"A-188",null,null,null,null,null,null,"",null,"",null,"",null,"",null,"",""]
[null,"A-189",null,null,null,null,null,null,"",null,"",null,"",null,"",null,"",""]
[null,"A-190",null,null,null,null,null,null,"",null,"",null,"",null,"",null,"",""]
[null,"A-191",null,null,null,null,null,null,"",null,"",null,"",null,"",null,"",""]
[null,"A-192",null,null,null,null,null,null,{"$f":"IF(H207=\"Low\",5,IF(H207=\"Medium\",3,IF(H207=\"high\",1,\"\")))","v":""},null,{"$f":"IF(J207=\"Unsupportive\",1,IF(J207=\"Neutral\",3,IF(J207=\"Supportive\",5,\"\")))","v":""},null,{"$f":"IF(L207=\"Controversial\",1,IF(L207=\"Indifferent\",3,IF(L207=\"Popular\",5,\"\")))","v":""},null,{"$f":"IF(N207=\"Leader\",5,IF(N207=\"Collaborator\",3,IF(N207=\"Influencer\",1,\"\")))","v":""},null,{"$f":"IF(P207=\"Potential negative effects\",1,IF(P207=\"Neutral\",3,IF(P207=\"Potential positive effects\",5,\"\")))","v":""},{"$f":"IF(Q207=\"\",\"\",IF(O207=\"\",\"\",IF(M207=\"\",\"\",IF(K207=\"\",\"\",IF(I207=\"\",\"\",SUM(Q207*$P$14,O207*$N$14,M207*$L$14,K207*$J$14,I207*$H$14))))))","v":""}]
[null,"A-193",null,null,null,null,null,null,"",null,"",null,"",null,"",null,"",""]
[null,"A-194",null,null,null,null,null,null,"",null,"",null,"",null,"",null,"",""]
[null,"A-195",null,null,null,null,null,null,"",null,"",null,"",null,"",null,"",""]
[null,"A-196",null,null,null,null,null,null,"",null,"",null,"",null,"",null,"",""]
[null,"A-197",null,null,null,null,null,null,"",null,"",null,"",null,"",null,"",""]
[null,"A-198",null,null,null,null,null,null,"",null,"",null,"",null,"",null,"",""]
[null,"A-199",null,null,null,null,null,null,"",null,"",null,"",null,"",null,"",""]
[null,"A-200",null,null,null,null,null,null,"",null,"",null,"",null,"",null,"",""]
[null,"A-201",null,null,null,null,null,null,"",null,"",null,"",null,"",null,"",""]
[null,"A-202",null,null,null,null,null,null,"",null,"",null,"",null,"",null,"",""]
[null,"A-203",null,null,null,null,null,null,"",null,"",null,"",null,"",null,"",""]
[null,"A-204",null,null,null,null,null,null,"",null,"",null,"",null,"",null,"",""]
[null,"A-205",null,null,null,null,null,null,"",null,"",null,"",null,"",null,"",""]
[null,"A-206",null,null,null,null,null,null,"",null,"",null,"",null,"",null,"",""]
[null,"A-207",null,null,null,null,null,null,"",null,"",null,"",null,"",null,"",""]
[null,"A-208",null,null,null,null,null,null,"",null,"",null,"",null,"",null,"",""]
[null,"A-209",null,null,null,null,null,null,"",null,"",null,"",null,"",null,"",""]
[null,"A-210",null,null,null,null,null,null,"",null,"",null,"",null,"",null,"",""]
[null,"A-211",null,null,null,null,null,null,"",null,"",null,"",null,"",null,"",""]
[null,"A-212",null,null,null,null,null,null,"",null,"",null,"",null,"",null,"",""]
[null,"A-213",null,null,null,null,null,null,"",null,"",null,"",null,"",null,"",""]
[null,"A-214",null,null,null,null,null,null,"",null,"",null,"",null,"",null,"",""]
[null,"A-215",null,null,null,null,null,null,"",null,"",null,"",null,"",null,"",""]
[null,"A-216",null,null,null,null,null,null,"",null,"",null,"",null,"",null,"",""]
[null,"A-217",null,null,null,null,null,null,"",null,"",null,"",null,"",null,"",""]
[null,"A-218",null,null,null,null,null,null,"",null,"",null,"",null,"",null,"",""]
[null,"A-219",null,null,null,null,null,null,"",null,"",null,"",null,"",null,"",""]
[null,"A-220",null,null,null,null,null,null,"",null,"",null,"",null,"",null,"",""]
[null,"A-221",null,null,null,null,null,null,"",null,"",null,"",null,"",null,"",""]
[null,"A-222",null,null,null,null,null,null,"",null,"",null,"",null,"",null,"",""]
[null,"A-223",null,null,null,null,null,null,"",null,"",null,"",null,"",null,"",""]
[null,"A-224",null,null,null,null,null,null,"",null,"",null,"",null,"",null,"",""]
[null,"A-225",null,null,null,null,null,null,"",null,"",null,"",null,"",null,"",""]
[null,"A-226",null,null,null,null,null,null,"",null,"",null,"",null,"",null,"",""]
[null,"A-227",null,null,null,null,null,null,"",null,"",null,"",null,"",null,"",""]
[null,"A-228",null,null,null,null,null,null,"",null,"",null,"",null,"",null,"",""]
[null,"A-229",null,null,null,null,null,null,"",null,"",null,"",null,"",null,"",""]
[null,"A-230",null,null,null,null,null,null,"",null,"",null,"",null,"",null,"",""]
[null,"A-231",null,null,null,null,null,null,"",null,"",null,"",null,"",null,"",""]
[null,"A-232",null,null,null,null,null,null,"",null,"",null,"",null,"",null,"",""]
[null,"A-233",null,null,null,null,null,null,"",null,"",null,"",null,"",null,"",""]
[null,null,null,null,null,null,null,null,null,null,null,null,null,null,{"$f":"IF(N249=\"Non responsive\",1,IF(N249=\"Moderately flexible\",3,IF(N249=\"Adaptive\",5,\"\")))","v":""}]
[null,null,null,null,null,null,null,null,null,null,null,null,null,null,""]
[null,null,null,null,null,null,null,null,null,null,null,null,null,null,""]
[null,null,null,null,null,null,null,null,null,null,null,null,null,null,""]
[null,null,null,null,null,null,null,null,null,null,null,null,null,null,""]
[null,null,null,null,null,null,null,null,null,null,null,null,null,null,""]
[null,null,null,null,null,null,null,null,null,null,null,null,null,null,""]